Workbook

Sheet Main
B10: 2019-10-16
B12: Sheet No. | C12: Template Name | D12: Summary
B13: 1 | C13: Future Intra | D13: For Intraday trading in F&O segment
B14: 2 | C14: Cash Intra | D14: For Intraday trading in cash market segment
B15: 3 | C15: Mid-cap Intra | D15: For Intraday trading in Mid-cap stocks
B16: 4 | C16: Bulk Deals | D16: Reveals Bulk Deals carried on NSE & BSE
B17: 5 | C17: Call Tracker
K27: `

Sheet Future Intra
M5: Back to Main Page
A6: FOR INTRA DAY TRADING | L6: =Main!B10 -> 2019-10-16
A9: Sr.no | B9: Sector | C9: Scrip | D9: CLOSE RATE | E9: Pivot Point | F9: Supports | I9: Resistances
B10: Sector | D10: Point | E10: Point | F10: S1 | G10: S2 | H10: S3 | I10: R1 | J10: R2 | K10: R3 | L10: HIGH | M10: LOW | N10: OI | O10: % Change in OI
A11: 1 | B11: Index | C11: BANKNIFTY | D11: 28618.65 | E11: 28548.22 | F11: 28321.43 | G11: 28024.22 | H11: 27797.43 | I11: 28845.43 | J11: 29072.22 | K11: 29369.43 | L11: 28775 | M11: 28251 | N11: 1604420 | O11: -0.19%
A12: 2 | B12: Index | C12: NIFTY | D12: 11439.40 | E12: 11420.95 | F12: 11368.45 | G12: 11297.50 | H12: 11245.00 | I12: 11491.90 | J12: 11544.40 | K12: 11615.35 | L12: 11473.45 | M12: 11350 | N12: 16167675 | O12: 3.21%
A13: 3 | B13: Index | C13: NIFTYIT | D13: 15113.00 | E13: 15129.00 | F13: 15058.00 | G13: 15003.00 | H13: 14932.00 | I13: 15184.00 | J13: 15255.00 | K13: 15310.00 | L13: 15200 | M13: 15074 | N13: 13550 | O13: -4.58%
A14: 4 | B14: Cement | C14: ACC | D14: 1501.95 | E14: 1491.18 | F14: 1472.42 | G14: 1442.88 | H14: 1424.12 | I14: 1520.72 | J14: 1539.48 | K14: 1569.02 | L14: 1509.95 | M14: 1461.65 | N14: 2436800 | O14: 6.19%
A15: 5 | B15: Others | C15: ADANIENT | D15: 155.65 | E15: 153.02 | F15: 149.63 | G15: 143.62 | H15: 140.23 | I15: 159.03 | J15: 162.42 | K15: 168.43 | L15: 156.4 | M15: 147 | N15: 29348000 | O15: 6.16%
A16: 6 | B16: Others | C16: ADANIPORTS | D16: 414.10 | E16: 412.63 | F16: 410.47 | G16: 406.83 | H16: 404.67 | I16: 416.27 | J16: 418.43 | K16: 422.07 | L16: 414.8 | M16: 409 | N16: 11720000 | O16: -1.31%
A17: 7 | B17: Power | C17: ADANIPOWER | D17: 61.85 | E17: 61.60 | F17: 61.00 | G17: 60.15 | H17: 59.55 | I17: 62.45 | J17: 63.05 | K17: 63.90 | L17: 62.2 | M17: 60.75 | N17: 88340000 | O17: -1.65%
A18: 8 | B18: Automobile | C18: AMARAJABAT | D18: 680.55 | E18: 674.67 | F18: 653.83 | G18: 627.12 | H18: 606.28 | I18: 701.38 | J18: 722.22 | K18: 748.93 | L18: 695.5 | M18: 647.95 | N18: 1605100 | O18: 0.66%
A19: 9 | B19: Cement | C19: AMBUJACEM | D19: 197.70 | E19: 196.80 | F19: 194.95 | G19: 192.20 | H19: 190.35 | I19: 199.55 | J19: 201.40 | K19: 204.15 | L19: 198.65 | M19: 194.05 | N19: 23907500 | O19: -2.06%
A20: 10 | B20: Others | C20: APOLLOHOSP | D20: 1487.00 | E20: 1480.00 | F20: 1469.00 | G20: 1451.00 | H20: 1440.00 | I20: 1498.00 | J20: 1509.00 | K20: 1527.00 | L20: 1491 | M20: 1462 | N20: 1327500 | O20: -1.92%
A21: 11 | B21: Automobile | C21: APOLLOTYRE | D21: 173.60 | E21: 172.32 | F21: 170.38 | G21: 167.17 | H21: 165.23 | I21: 175.53 | J21: 177.47 | K21: 180.68 | L21: 174.25 | M21: 169.1 | N21: 7050000 | O21: -0.97%
A22: 13 | B22: Automobile | C22: ASHOKLEY | D22: 69.40 | E22: 68.93 | F22: 67.97 | G22: 66.53 | H22: 65.57 | I22: 70.37 | J22: 71.33 | K22: 72.77 | L22: 69.9 | M22: 67.5 | N22: 67398000 | O22: 1.35%
A23: 14 | B23: FMCG | C23: ASIANPAINT | D23: 1807.35 | E23: 1808.60 | F23: 1794.65 | G23: 1781.95 | H23: 1768.00 | I23: 1821.30 | J23: 1835.25 | K23: 1847.95 | L23: 1822.55 | M23: 1795.9 | N23: 8307600 | O23: 0.54%
A24: 15 | B24: Pharma | C24: AUROPHARMA | D24: 456.95 | E24: 458.47 | F24: 449.13 | G24: 441.32 | H24: 431.98 | I24: 466.28 | J24: 475.62 | K24: 483.43 | L24: 467.8 | M24: 450.65 | N24: 19485000 | O24: 0.62%
A25: 16 | B25: Banking | C25: AXISBANK | D25: 693.05 | E25: 691.87 | F25: 684.73 | G25: 676.42 | H25: 669.28 | I25: 700.18 | J25: 707.32 | K25: 715.63 | L25: 699 | M25: 683.55 | N25: 62258400 | O25: 2.07%
A26: 17 | B26: Automobile | C26: BAJAJ-AUTO | D26: 3021.10 | E26: 3007.22 | F26: 2972.78 | G26: 2924.47 | H26: 2890.03 | I26: 3055.53 | J26: 3089.97 | K26: 3138.28 | L26: 3041.65 | M26: 2958.9 | N26: 2260000 | O26: 4.26%
A27: 18 | B27: Finance | C27: BAJAJFINSV | D27: 8071.80 | E27: 8095.50 | F27: 8026.30 | G27: 7980.80 | H27: 7911.60 | I27: 8141.00 | J27: 8210.20 | K27: 8255.70 | L27: 8164.7 | M27: 8050 | N27: 1137375 | O27: 3.36%
A28: 19 | B28: Finance | C28: BAJFINANCE | D28: 3896.20 | E28: 3892.33 | F28: 3859.12 | G28: 3822.03 | H28: 3788.82 | I28: 3929.42 | J28: 3962.63 | K28: 3999.72 | L28: 3925.55 | M28: 3855.25 | N28: 6722500 | O28: 2.94%
A29: 20 | B29: Automobile | C29: BALKRISIND | D29: 773.90 | E29: 772.40 | F29: 762.80 | G29: 751.70 | H29: 742.10 | I29: 783.50 | J29: 793.10 | K29: 804.20 | L29: 782 | M29: 761.3 | N29: 1517600 | O29: -0.42%
A30: 21 | B30: Banking | C30: BANKBARODA | D30: 88.35 | E30: 88.08 | F30: 87.17 | G30: 85.98 | H30: 85.07 | I30: 89.27 | J30: 90.18 | K30: 91.37 | L30: 89 | M30: 86.9 | N30: 71743500 | O30: 1.88%
A31: 22 | B31: Banking | C31: BANKINDIA | D31: 61.25 | E31: 60.77 | F31: 59.93 | G31: 58.62 | H31: 57.78 | I31: 62.08 | J31: 62.92 | K31: 64.23 | L31: 61.6 | M31: 59.45 | N31: 27282000 | O31: -1.39%
A32: 23 | B32: FMCG | C32: BATAINDIA | D32: 1713.40 | E32: 1712.40 | F32: 1698.65 | G32: 1683.90 | H32: 1670.15 | I32: 1727.15 | J32: 1740.90 | K32: 1755.65 | L32: 1726.15 | M32: 1697.65 | N32: 2853400 | O32: -0.57%
A33: 24 | B33: Capital_Goods | C33: BEL | D33: 110.65 | E33: 110.12 | F33: 108.98 | G33: 107.32 | H33: 106.18 | I33: 111.78 | J33: 112.92 | K33: 114.58 | L33: 111.25 | M33: 108.45 | N33: 24330000 | O33: 0.85%
A34: 25 | B34: FMCG | C34: BERGEPAINT | D34: 473.75 | E34: 470.87 | F34: 467.08 | G34: 460.42 | H34: 456.63 | I34: 477.53 | J34: 481.32 | K34: 487.98 | L34: 474.65 | M34: 464.2 | N34: 7502000 | O34: 5.25%
A35: 26 | B35: Automobile | C35: BHARATFORG | D35: 429.85 | E35: 431.57 | F35: 425.13 | G35: 420.42 | H35: 413.98 | I35: 436.28 | J35: 442.72 | K35: 447.43 | L35: 438 | M35: 426.85 | N35: 8020800 | O35: 0.53%
A36: 27 | B36: Telecom | C36: BHARTIARTL | D36: 385.30 | E36: 386.87 | F36: 381.53 | G36: 377.77 | H36: 372.43 | I36: 390.63 | J36: 395.97 | K36: 399.73 | L36: 392.2 | M36: 383.1 | N36: 40955226 | O36: -1.54%
A37: 28 | B37: Capital_Goods | C37: BHEL | D37: 42.95 | E37: 43.08 | F37: 42.52 | G37: 42.08 | H37: 41.52 | I37: 43.52 | J37: 44.08 | K37: 44.52 | L37: 43.65 | M37: 42.65 | N37: 53445000 | O37: 2.00%
A38: 29 | B38: Pharma | C38: BIOCON | D38: 258.85 | E38: 256.70 | F38: 252.45 | G38: 246.05 | H38: 241.80 | I38: 263.10 | J38: 267.35 | K38: 273.75 | L38: 260.95 | M38: 250.3 | N38: 14610600 | O38: 12.35%
A39: 30 | B39: Automobile | C39: BOSCHLTD | D39: 13919.00 | E39: 13771.38 | F39: 13547.77 | G39: 13176.53 | H39: 12952.92 | I39: 14142.62 | J39: 14366.23 | K39: 14737.47 | L39: 13995 | M39: 13400.15 | N39: 150240 | O39: 1.62%
A40: 31 | B40: Oil_Gas | C40: BPCL | D40: 492.25 | E40: 492.57 | F40: 488.73 | G40: 485.22 | H40: 481.38 | I40: 496.08 | J40: 499.92 | K40: 503.43 | L40: 496.4 | M40: 489.05 | N40: 23518800 | O40: -0.63%
A41: 32 | B41: FMCG | C41: BRITANNIA | D41: 3172.75 | E41: 3155.62 | F41: 3128.18 | G41: 3083.62 | H41: 3056.18 | I41: 3200.18 | J41: 3227.62 | K41: 3272.18 | L41: 3183.05 | M41: 3111.05 | N41: 2037800 | O41: -0.01%
A42: 34 | B42: Pharma | C42: CADILAHC | D42: 235.45 | E42: 234.83 | F42: 233.87 | G42: 232.28 | H42: 231.32 | I42: 236.42 | J42: 237.38 | K42: 238.97 | L42: 235.8 | M42: 233.25 | N42: 8814400 | O42: 0.75%
A43: 35 | B43: Banking | C43: CANBK | D43: 181.30 | E43: 180.30 | F43: 178.05 | G43: 174.80 | H43: 172.55 | I43: 183.55 | J43: 185.80 | K43: 189.05 | L43: 182.55 | M43: 177.05 | N43: 11140000 | O43: -3.01%
A44: 36 | B44: Oil_Gas | C44: CASTROLIND | D44: 133.75 | E44: 133.63 | F44: 132.97 | G44: 132.18 | H44: 131.52 | I44: 134.42 | J44: 135.08 | K44: 135.87 | L44: 134.3 | M44: 132.85 | N44: 5385600 | O44: -1.98%
A45: 37 | B45: Textile | C45: CENTURYTEX | D45: 383.10 | E45: 374.70 | F45: 360.40 | G45: 337.70 | H45: 323.40 | I45: 397.40 | J45: 411.70 | K45: 434.40 | L45: 389 | M45: 352 | N45: 1892400 | O45: 18.66%
A46: 38 | B46: Power | C46: CESC | D46: 782.00 | E46: 778.75 | F46: 772.75 | G46: 763.50 | H46: 757.50 | I46: 788.00 | J46: 794.00 | K46: 803.25 | L46: 784.75 | M46: 769.5 | N46: 1010400 | O46: -9.40%
A47: 39 | B47: Finance | C47: CHOLAFIN | D47: 280.15 | E47: 280.10 | F47: 274.90 | G47: 269.65 | H47: 264.45 | I47: 285.35 | J47: 290.55 | K47: 295.80 | L47: 285.3 | M47: 274.85 | N47: 3122500 | O47: 6.48%
A48: 40 | B48: Pharma | C48: CIPLA | D48: 447.40 | E48: 444.12 | F48: 439.73 | G48: 432.07 | H48: 427.68 | I48: 451.78 | J48: 456.17 | K48: 463.83 | L48: 448.5 | M48: 436.45 | N48: 12847000 | O48: -0.25%
A49: 41 | B49: Others | C49: COALINDIA | D49: 192.00 | E49: 191.37 | F49: 189.28 | G49: 186.57 | H49: 184.48 | I49: 194.08 | J49: 196.17 | K49: 198.88 | L49: 193.45 | M49: 188.65 | N49: 34157200 | O49: 0.30%
A50: 42 | B50: FMCG | C50: COLPAL | D50: 1554.25 | E50: 1545.70 | F50: 1526.65 | G50: 1499.05 | H50: 1480.00 | I50: 1573.30 | J50: 1592.35 | K50: 1619.95 | L50: 1564.75 | M50: 1518.1 | N50: 1814400 | O50: 10.49%
A51: 43 | B51: Others | C51: CONCOR | D51: 595.50 | E51: 592.45 | F51: 587.05 | G51: 578.60 | H51: 573.20 | I51: 600.90 | J51: 606.30 | K51: 614.75 | L51: 597.85 | M51: 584 | N51: 4521759 | O51: -4.36%
A52: 44 | B52: Capital_Goods | C52: CUMMINSIND | D52: 571.85 | E52: 570.52 | F52: 568.08 | G52: 564.32 | H52: 561.88 | I52: 574.28 | J52: 576.72 | K52: 580.48 | L52: 572.95 | M52: 566.75 | N52: 1526000 | O52: -0.64%
A53: 45 | B53: FMCG | C53: DABUR | D53: 451.75 | E53: 452.92 | F53: 446.63 | G53: 441.52 | H53: 435.23 | I53: 458.03 | J53: 464.32 | K53: 469.43 | L53: 459.2 | M53: 447.8 | N53: 11370000 | O53: 0.95%
A54: 47 | B54: Media | C54: DISHTV | D54: 17.00 | E54: 16.88 | F54: 16.32 | G54: 15.63 | H54: 15.07 | I54: 17.57 | J54: 18.13 | K54: 18.82 | L54: 17.45 | M54: 16.2 | N54: 104286000 | O54: 1.28%
A55: 48 | B55: Pharma | C55: DIVISLAB | D55: 1700.75 | E55: 1696.57 | F55: 1686.18 | G55: 1671.62 | H55: 1661.23 | I55: 1711.13 | J55: 1721.52 | K55: 1736.08 | L55: 1706.95 | M55: 1682 | N55: 2373600 | O55: -0.90%
A56: 49 | B56: Realty | C56: DLF | D56: 156.40 | E56: 156.28 | F56: 152.62 | G56: 148.83 | H56: 145.17 | I56: 160.07 | J56: 163.73 | K56: 167.52 | L56: 159.95 | M56: 152.5 | N56: 44802800 | O56: 3.14%
A57: 50 | B57: Pharma | C57: DRREDDY | D57: 2690.25 | E57: 2683.53 | F57: 2666.17 | G57: 2642.08 | H57: 2624.72 | I57: 2707.62 | J57: 2724.98 | K57: 2749.07 | L57: 2700.9 | M57: 2659.45 | N57: 3506000 | O57: -0.79%
A58: 51 | B58: Automobile | C58: EICHERMOT | D58: 19249.80 | E58: 18991.20 | F58: 18637.45 | G58: 18025.10 | H58: 17671.35 | I58: 19603.55 | J58: 19957.30 | K58: 20569.65 | L58: 19344.95 | M58: 18378.85 | N58: 325975 | O58: -0.06%
A59: 53 | B59: Finance | C59: EQUITAS | D59: 101.70 | E59: 100.98 | F59: 99.82 | G59: 97.93 | H59: 96.77 | I59: 102.87 | J59: 104.03 | K59: 105.92 | L59: 102.15 | M59: 99.1 | N59: 9756000 | O59: -3.25%
A60: 54 | B60: Automobile | C60: ESCORTS | D60: 631.80 | E60: 625.42 | F60: 616.93 | G60: 602.07 | H60: 593.58 | I60: 640.28 | J60: 648.77 | K60: 663.63 | L60: 633.9 | M60: 610.55 | N60: 5800300 | O60: 3.80%
A61: 55 | B61: Automobile | C61: EXIDEIND | D61: 188.45 | E61: 187.43 | F61: 184.67 | G61: 180.88 | H61: 178.12 | I61: 191.22 | J61: 193.98 | K61: 197.77 | L61: 190.2 | M61: 183.65 | N61: 11085600 | O61: 6.95%
A62: 56 | B62: Banking | C62: FEDERALBNK | D62: 85.20 | E62: 84.23 | F62: 82.82 | G62: 80.43 | H62: 79.02 | I62: 86.62 | J62: 88.03 | K62: 90.42 | L62: 85.65 | M62: 81.85 | N62: 45486000 | O62: 0.87%
A63: 57 | B63: Oil_Gas | C63: GAIL | D63: 128.45 | E63: 127.83 | F63: 126.37 | G63: 124.28 | H63: 122.82 | I63: 129.92 | J63: 131.38 | K63: 133.47 | L63: 129.3 | M63: 125.75 | N63: 47675292 | O63: 2.76%
A64: 58 | B64: Pharma | C64: GLENMARK | D64: 287.60 | E64: 284.75 | F64: 281.15 | G64: 274.70 | H64: 271.10 | I64: 291.20 | J64: 294.80 | K64: 301.25 | L64: 288.35 | M64: 278.3 | N64: 6500000 | O64: 2.09%
A65: 59 | B65: Infrastructure | C65: GMRINFRA | D65: 17.40 | E65: 17.30 | F65: 17.20 | G65: 17.00 | H65: 16.90 | I65: 17.50 | J65: 17.60 | K65: 17.80 | L65: 17.4 | M65: 17.1 | N65: 150930000 | O65: 1.21%
A66: 60 | B66: FMCG | C66: GODREJCP | D66: 692.50 | E66: 691.82 | F66: 685.68 | G66: 678.87 | H66: 672.73 | I66: 698.63 | J66: 704.77 | K66: 711.58 | L66: 697.95 | M66: 685 | N66: 6403200 | O66: -0.39%
A67: 61 | B67: Cement | C67: GRASIM | D67: 706.55 | E67: 703.27 | F67: 697.13 | G67: 687.72 | H67: 681.58 | I67: 712.68 | J67: 718.82 | K67: 728.23 | L67: 709.4 | M67: 693.85 | N67: 17629500 | O67: 0.07%
A68: 62 | B68: Others | C68: HAVELLS | D68: 669.20 | E68: 666.83 | F68: 657.37 | G68: 645.53 | H68: 636.07 | I68: 678.67 | J68: 688.13 | K68: 699.97 | L68: 676.3 | M68: 655 | N68: 5475000 | O68: -0.76%
A69: 63 | B69: Technology | C69: HCLTECH | D69: 1085.15 | E69: 1086.45 | F69: 1076.90 | G69: 1068.65 | H69: 1059.10 | I69: 1094.70 | J69: 1104.25 | K69: 1112.50 | L69: 1096 | M69: 1078.2 | N69: 10532900 | O69: -0.80%
A70: 64 | B70: Finance | C70: HDFC | D70: 2019.70 | E70: 2023.13 | F70: 2012.57 | G70: 2005.43 | H70: 1994.87 | I70: 2030.27 | J70: 2040.83 | K70: 2047.97 | L70: 2033.7 | M70: 2016 | N70: 37004500 | O70: 0.22%
A71: 65 | B71: Banking | C71: HDFCBANK | D71: 1225.35 | E71: 1221.03 | F71: 1213.17 | G71: 1200.98 | H71: 1193.12 | I71: 1233.22 | J71: 1241.08 | K71: 1253.27 | L71: 1228.9 | M71: 1208.85 | N71: 40751000 | O71: -0.15%
A72: 66 | B72: Automobile | C72: HEROMOTOCO | D72: 2684.50 | E72: 2671.67 | F72: 2632.53 | G72: 2580.57 | H72: 2541.43 | I72: 2723.63 | J72: 2762.77 | K72: 2814.73 | L72: 2710.8 | M72: 2619.7 | N72: 3108800 | O72: -0.10%
A73: 67 | B73: Technology | C73: HEXAWARE | D73: 371.65 | E73: 371.47 | F73: 369.53 | G73: 367.42 | H73: 365.48 | I73: 373.58 | J73: 375.52 | K73: 377.63 | L73: 373.4 | M73: 369.35 | N73: 2031000 | O73: -0.66%
A74: 68 | B74: Metals | C74: HINDALCO | D74: 192.85 | E74: 191.52 | F74: 187.43 | G74: 182.02 | H74: 177.93 | I74: 196.93 | J74: 201.02 | K74: 206.43 | L74: 195.6 | M74: 186.1 | N74: 32756500 | O74: 2.13%
A75: 69 | B75: Oil_Gas | C75: HINDPETRO | D75: 312.30 | E75: 312.98 | F75: 309.62 | G75: 306.93 | H75: 303.57 | I75: 315.67 | J75: 319.03 | K75: 321.72 | L75: 316.35 | M75: 310.3 | N75: 21976500 | O75: -0.28%
A76: 70 | B76: FMCG | C76: HINDUNILVR | D76: 2056.70 | E76: 2047.95 | F76: 2026.80 | G76: 1996.90 | H76: 1975.75 | I76: 2077.85 | J76: 2099.00 | K76: 2128.90 | L76: 2069.1 | M76: 2018.05 | N76: 8904900 | O76: -3.66%
A77: 72 | B77: Finance | C77: IBULHSGFIN | D77: 181.60 | E77: 182.57 | F77: 173.53 | G77: 165.47 | H77: 156.43 | I77: 190.63 | J77: 199.67 | K77: 207.73 | L77: 191.6 | M77: 174.5 | N77: 29246400 | O77: -1.39%
A78: 73 | B78: Banking | C78: ICICIBANK | D78: 432.70 | E78: 432.60 | F78: 428.80 | G78: 424.90 | H78: 421.10 | I78: 436.50 | J78: 440.30 | K78: 444.20 | L78: 436.4 | M78: 428.7 | N78: 76018250 | O78: 1.56%
A79: 74 | B79: Finance | C79: ICICIPRULI | D79: 454.15 | E79: 453.53 | F79: 448.17 | G79: 442.18 | H79: 436.82 | I79: 459.52 | J79: 464.88 | K79: 470.87 | L79: 458.9 | M79: 447.55 | N79: 6550500 | O79: -1.49%
A80: 76 | B80: Telecom | C80: IDEA | D80: 6.20 | E80: 6.25 | F80: 6.05 | G80: 5.90 | H80: 5.70 | I80: 6.40 | J80: 6.60 | K80: 6.75 | L80: 6.45 | M80: 6.1 | N80: 539840000 | O80: -0.42%
A81: 77 | B81: Banking | C81: IDFCFIRSTB | D81: 37.40 | E81: 37.10 | F81: 36.65 | G81: 35.90 | H81: 35.45 | I81: 37.85 | J81: 38.30 | K81: 39.05 | L81: 37.55 | M81: 36.35 | N81: 258672000 | O81: 1.02%
A82: 78 | B82: Oil_Gas | C82: IGL | D82: 370.10 | E82: 371.57 | F82: 367.68 | G82: 365.27 | H82: 361.38 | I82: 373.98 | J82: 377.87 | K82: 380.28 | L82: 375.45 | M82: 369.15 | N82: 3723500 | O82: 0.52%
A83: 79 | B83: Others | C83: INDIGO | D83: 1756.15 | E83: 1759.25 | F83: 1744.70 | G83: 1733.25 | H83: 1718.70 | I83: 1770.70 | J83: 1785.25 | K83: 1796.70 | L83: 1773.8 | M83: 1747.8 | N83: 3034800 | O83: 11.46%
A84: 80 | B84: Banking | C84: INDUSINDBK | D84: 1273.60 | E84: 1263.72 | F84: 1247.63 | G84: 1221.67 | H84: 1205.58 | I84: 1289.68 | J84: 1305.77 | K84: 1331.73 | L84: 1279.8 | M84: 1237.75 | N84: 14577600 | O84: -0.88%
A85: 81 | B85: Telecom | C85: INFRATEL | D85: 257.50 | E85: 258.03 | F85: 255.37 | G85: 253.23 | H85: 250.57 | I85: 260.17 | J85: 262.83 | K85: 264.97 | L85: 260.7 | M85: 255.9 | N85: 7036000 | O85: 2.06%
A86: 82 | B86: Technology | C86: INFY | D86: 762.30 | E86: 763.18 | F86: 757.57 | G86: 752.83 | H86: 747.22 | I86: 767.92 | J86: 773.53 | K86: 778.27 | L86: 768.8 | M86: 758.45 | N86: 47665200 | O86: 7.05%
A87: 83 | B87: Oil_Gas | C87: IOC | D87: 146.85 | E87: 147.20 | F87: 145.60 | G87: 144.35 | H87: 142.75 | I87: 148.45 | J87: 150.05 | K87: 151.30 | L87: 148.8 | M87: 145.95 | N87: 43725500 | O87: -0.02%
A88: 84 | B88: FMCG | C88: ITC | D88: 248.10 | E88: 247.72 | F88: 245.98 | G88: 243.87 | H88: 242.13 | I88: 249.83 | J88: 251.57 | K88: 253.68 | L88: 249.45 | M88: 245.6 | N88: 109339200 | O88: 0.10%
A89: 85 | B89: Metals | C89: JINDALSTEL | D89: 103.20 | E89: 101.65 | F89: 97.95 | G89: 92.70 | H89: 89.00 | I89: 106.90 | J89: 110.60 | K89: 115.85 | L89: 105.35 | M89: 96.4 | N89: 33705600 | O89: -0.17%
A90: 86 | B90: Metals | C90: JSWSTEEL | D90: 220.20 | E90: 220.75 | F90: 213.90 | G90: 207.60 | H90: 200.75 | I90: 227.05 | J90: 233.90 | K90: 240.20 | L90: 227.6 | M90: 214.45 | N90: 50964000 | O90: -1.74%
A91: 87 | B91: Others | C91: JUBLFOOD | D91: 1318.55 | E91: 1318.55 | F91: 1302.10 | G91: 1285.65 | H91: 1269.20 | I91: 1335.00 | J91: 1351.45 | K91: 1367.90 | L91: 1335 | M91: 1302.1 | N91: 2298500 | O91: 2.20%
A92: 88 | B92: Others | C92: JUSTDIAL | D92: 580.90 | E92: 589.67 | F92: 563.43 | G92: 545.97 | H92: 519.73 | I92: 607.13 | J92: 633.37 | K92: 650.83 | L92: 615.9 | M92: 572.2 | N92: 3152800 | O92: 8.48%
A93: 90 | B93: Banking | C93: KOTAKBANK | D93: 1617.65 | E93: 1610.05 | F93: 1589.90 | G93: 1562.15 | H93: 1542.00 | I93: 1637.80 | J93: 1657.95 | K93: 1685.70 | L93: 1630.2 | M93: 1582.3 | N93: 9210000 | O93: 3.95%
A94: 91 | B94: Finance | C94: L&TFH | D94: 83.15 | E94: 82.60 | F94: 81.75 | G94: 80.35 | H94: 79.50 | I94: 84.00 | J94: 84.85 | K94: 86.25 | L94: 83.45 | M94: 81.2 | N94: 41566500 | O94: -0.46%
A95: 92 | B95: Finance | C95: LICHSGFIN | D95: 364.75 | E95: 362.93 | F95: 356.87 | G95: 348.98 | H95: 342.92 | I95: 370.82 | J95: 376.88 | K95: 384.77 | L95: 369 | M95: 355.05 | N95: 11011000 | O95: 4.14%
A96: 93 | B96: Capital_Goods | C96: LT | D96: 1438.50 | E96: 1438.25 | F96: 1426.50 | G96: 1414.50 | H96: 1402.75 | I96: 1450.25 | J96: 1462.00 | K96: 1474.00 | L96: 1450 | M96: 1426.25 | N96: 12511125 | O96: 1.32%
A97: 94 | B97: Pharma | C97: LUPIN | D97: 722.30 | E97: 719.72 | F97: 714.53 | G97: 706.77 | H97: 701.58 | I97: 727.48 | J97: 732.67 | K97: 740.43 | L97: 724.9 | M97: 711.95 | N97: 7512400 | O97: 0.28%
A98: 95 | B98: Automobile | C98: M&M | D98: 583.85 | E98: 579.58 | F98: 571.47 | G98: 559.08 | H98: 550.97 | I98: 591.97 | J98: 600.08 | K98: 612.47 | L98: 587.7 | M98: 567.2 | N98: 22005000 | O98: 0.65%
A99: 96 | B99: Finance | C99: M&MFIN | D99: 317.35 | E99: 316.88 | F99: 312.47 | G99: 307.58 | H99: 303.17 | I99: 321.77 | J99: 326.18 | K99: 331.07 | L99: 321.3 | M99: 312 | N99: 13906250 | O99: 0.83%
A100: 97 | B100: Finance | C100: MANAPPURAM | D100: 138.20 | E100: 137.72 | F100: 135.73 | G100: 133.27 | H100: 131.28 | I100: 140.18 | J100: 142.17 | K100: 144.63 | L100: 139.7 | M100: 135.25 | N100: 11892000 | O100: -2.60%
A101: 98 | B101: FMCG | C101: MARICO | D101: 384.60 | E101: 383.40 | F101: 381.70 | G101: 378.80 | H101: 377.10 | I101: 386.30 | J101: 388.00 | K101: 390.90 | L101: 385.1 | M101: 380.5 | N101: 12118600 | O101: 2.87%
A102: 99 | B102: Automobile | C102: MARUTI | D102: 7011.65 | E102: 6960.38 | F102: 6875.32 | G102: 6738.98 | H102: 6653.92 | I102: 7096.72 | J102: 7181.78 | K102: 7318.12 | L102: 7045.45 | M102: 6824.05 | N102: 2484300 | O102: 4.08%
A103: 100 | B103: FMCG | C103: MCDOWELL-N | D103: 618.55 | E103: 620.25 | F103: 615.30 | G103: 612.05 | H103: 607.10 | I103: 623.50 | J103: 628.45 | K103: 631.70 | L103: 625.2 | M103: 617 | N103: 10881250 | O103: -2.40%
A104: 102 | B104: Finance | C104: MFSL | D104: 409.40 | E104: 412.37 | F104: 403.38 | G104: 397.37 | H104: 388.38 | I104: 418.38 | J104: 427.37 | K104: 433.38 | L104: 421.35 | M104: 406.35 | N104: 2474400 | O104: 0.24%
A105: 103 | B105: Oil_Gas | C105: MGL | D105: 950.95 | E105: 952.23 | F105: 940.47 | G105: 929.98 | H105: 918.22 | I105: 962.72 | J105: 974.48 | K105: 984.97 | L105: 964 | M105: 941.75 | N105: 1409400 | O105: -3.21%
A106: 104 | B106: Technology | C106: MINDTREE | D106: 724.60 | E106: 725.35 | F106: 718.45 | G106: 712.30 | H106: 705.40 | I106: 731.50 | J106: 738.40 | K106: 744.55 | L106: 732.25 | M106: 719.2 | N106: 1384200 | O106: 0.30%
A107: 105 | B107: Automobile | C107: MOTHERSUMI | D107: 102.20 | E107: 101.13 | F107: 99.12 | G107: 96.03 | H107: 94.02 | I107: 104.22 | J107: 106.23 | K107: 109.32 | L107: 103.15 | M107: 98.05 | N107: 32049600 | O107: 1.46%
A108: 106 | B108: Automobile | C108: MRF | D108: 63211.35 | E108: 62932.12 | F108: 62364.23 | G108: 61517.12 | H108: 60949.23 | I108: 63779.23 | J108: 64347.12 | K108: 65194.23 | L108: 63500 | M108: 62085 | N108: 19840 | O108: -0.55%
A109: 107 | B109: Finance | C109: MUTHOOTFIN | D109: 655.50 | E109: 649.98 | F109: 640.37 | G109: 625.23 | H109: 615.62 | I109: 665.12 | J109: 674.73 | K109: 689.87 | L109: 659.6 | M109: 634.85 | N109: 2178000 | O109: 11.69%
A110: 108 | B110: Metals | C110: NATIONALUM | D110: 41.15 | E110: 40.95 | F110: 40.30 | G110: 39.45 | H110: 38.80 | I110: 41.80 | J110: 42.45 | K110: 43.30 | L110: 41.6 | M110: 40.1 | N110: 70290000 | O110: 0.92%
A111: 109 | B111: Infrastructure | C111: NBCC | D111: 32.85 | E111: 32.65 | F111: 32.25 | G111: 31.65 | H111: 31.25 | I111: 33.25 | J111: 33.65 | K111: 34.25 | L111: 33.05 | M111: 32.05 | N111: 31382000 | O111: -0.19%
A112: 110 | B112: Infrastructure | C112: NCC | D112: 49.55 | E112: 49.12 | F112: 47.83 | G112: 46.12 | H112: 44.83 | I112: 50.83 | J112: 52.12 | K112: 53.83 | L112: 50.4 | M112: 47.4 | N112: 42256000 | O112: 0.71%
A113: 111 | B113: FMCG | C113: NESTLEIND | D113: 14149.40 | E113: 14160.82 | F113: 14072.93 | G113: 13996.47 | H113: 13908.58 | I113: 14237.28 | J113: 14325.17 | K113: 14401.63 | L113: 14248.7 | M113: 14084.35 | N113: 563600 | O113: 2.16%
A114: 112 | B114: Technology | C114: NIITTECH | D114: 1401.30 | E114: 1402.82 | F114: 1387.48 | G114: 1373.67 | H114: 1358.33 | I114: 1416.63 | J114: 1431.97 | K114: 1445.78 | L114: 1418.15 | M114: 1389 | N114: 621000 | O114: -3.27%
A115: 113 | B115: Metals | C115: NMDC | D115: 101.55 | E115: 100.12 | F115: 98.33 | G115: 95.12 | H115: 93.33 | I115: 103.33 | J115: 105.12 | K115: 108.33 | L115: 101.9 | M115: 96.9 | N115: 24162000 | O115: -1.73%
A116: 114 | B116: Power | C116: NTPC | D116: 119.55 | E116: 119.13 | F116: 118.27 | G116: 116.98 | H116: 116.12 | I116: 120.42 | J116: 121.28 | K116: 122.57 | L116: 120 | M116: 117.85 | N116: 57633600 | O116: -1.99%
A117: 116 | B117: Oil_Gas | C117: OIL | D117: 158.85 | E117: 156.95 | F117: 154.40 | G117: 149.95 | H117: 147.40 | I117: 161.40 | J117: 163.95 | K117: 168.40 | L117: 159.5 | M117: 152.5 | N117: 10050843 | O117: 1.93%
A118: 117 | B118: Oil_Gas | C118: ONGC | D118: 138.70 | E118: 137.78 | F118: 136.37 | G118: 134.03 | H118: 132.62 | I118: 140.12 | J118: 141.53 | K118: 143.87 | L118: 139.2 | M118: 135.45 | N118: 64125000 | O118: 1.47%
A119: 118 | B119: Textile | C119: PAGEIND | D119: 21120.90 | E119: 21244.78 | F119: 20689.57 | G119: 20258.23 | H119: 19703.02 | I119: 21676.12 | J119: 22231.33 | K119: 22662.67 | L119: 21800 | M119: 20813.45 | N119: 182275 | O119: -0.74%
A120: 119 | B120: Pharma | C120: PEL | D120: 1281.75 | E120: 1288.70 | F120: 1259.50 | G120: 1237.25 | H120: 1208.05 | I120: 1310.95 | J120: 1340.15 | K120: 1362.40 | L120: 1317.9 | M120: 1266.45 | N120: 7314742 | O120: -0.25%
A121: 120 | B121: Oil_Gas | C121: PETRONET | D121: 260.35 | E121: 260.15 | F121: 258.90 | G121: 257.45 | H121: 256.20 | I121: 261.60 | J121: 262.85 | K121: 264.30 | L121: 261.4 | M121: 258.7 | N121: 21111000 | O121: 0.95%
A122: 121 | B122: Finance | C122: PFC | D122: 94.65 | E122: 94.05 | F122: 93.05 | G122: 91.45 | H122: 90.45 | I122: 95.65 | J122: 96.65 | K122: 98.25 | L122: 95.05 | M122: 92.45 | N122: 45439800 | O122: -2.18%
A123: 122 | B123: FMCG | C123: PIDILITIND | D123: 1380.50 | E123: 1374.97 | F123: 1358.53 | G123: 1336.57 | H123: 1320.13 | I123: 1396.93 | J123: 1413.37 | K123: 1435.33 | L123: 1391.4 | M123: 1353 | N123: 3438000 | O123: 0.15%
A124: 123 | B124: Banking | C124: PNB | D124: 58.15 | E124: 57.75 | F124: 57.10 | G124: 56.05 | H124: 55.40 | I124: 58.80 | J124: 59.45 | K124: 60.50 | L124: 58.4 | M124: 56.7 | N124: 102949000 | O124: -1.04%
A125: 124 | B125: Power | C125: POWERGRID | D125: 202.10 | E125: 201.38 | F125: 199.97 | G125: 197.83 | H125: 196.42 | I125: 203.52 | J125: 204.93 | K125: 207.07 | L125: 202.8 | M125: 199.25 | N125: 27384000 | O125: -0.91%
A126: 125 | B126: Media | C126: PVR | D126: 1826.25 | E126: 1820.42 | F126: 1798.83 | G126: 1771.42 | H126: 1749.83 | I126: 1847.83 | J126: 1869.42 | K126: 1896.83 | L126: 1842 | M126: 1793 | N126: 1048000 | O126: 7.55%
A127: 126 | B127: Cement | C127: RAMCOCEM | D127: 726.05 | E127: 724.00 | F127: 719.55 | G127: 713.05 | H127: 708.60 | I127: 730.50 | J127: 734.95 | K127: 741.45 | L127: 728.45 | M127: 717.5 | N127: 1620000 | O127: -0.74%
A128: 128 | B128: Banking | C128: RBLBANK | D128: 265.45 | E128: 261.17 | F128: 246.28 | G128: 227.12 | H128: 212.23 | I128: 280.33 | J128: 295.22 | K128: 314.38 | L128: 276.05 | M128: 242 | N128: 17919600 | O128: 4.24%
A129: 129 | B129: Power | C129: RECLTD | D129: 123.80 | E129: 124.10 | F129: 122.90 | G129: 122.00 | H129: 120.80 | I129: 125.00 | J129: 126.20 | K129: 127.10 | L129: 125.3 | M129: 123.2 | N129: 26970000 | O129: 3.33%
A130: 131 | B130: Oil_Gas | C130: RELIANCE | D130: 1368.15 | E130: 1366.75 | F130: 1358.50 | G130: 1348.85 | H130: 1340.60 | I130: 1376.40 | J130: 1384.65 | K130: 1394.30 | L130: 1375 | M130: 1357.1 | N130: 53920500 | O130: 1.26%
A131: 133 | B131: Metals | C131: SAIL | D131: 33.40 | E131: 33.10 | F131: 31.80 | G131: 30.20 | H131: 28.90 | I131: 34.70 | J131: 36.00 | K131: 37.60 | L131: 34.4 | M131: 31.5 | N131: 80304000 | O131: 1.35%
A132: 134 | B132: Banking | C132: SBIN | D132: 259.30 | E132: 258.38 | F132: 256.02 | G132: 252.73 | H132: 250.37 | I132: 261.67 | J132: 264.03 | K132: 267.32 | L132: 260.75 | M132: 255.1 | N132: 116781000 | O132: -0.36%
A133: 135 | B133: Cement | C133: SHREECEM | D133: 18666.05 | E133: 18697.37 | F133: 18569.83 | G133: 18473.62 | H133: 18346.08 | I133: 18793.58 | J133: 18921.12 | K133: 19017.33 | L133: 18824.9 | M133: 18601.15 | N133: 172900 | O133: 1.83%
A134: 136 | B134: Capital_Goods | C134: SIEMENS | D134: 1594.55 | E134: 1586.83 | F134: 1576.67 | G134: 1558.78 | H134: 1548.62 | I134: 1604.72 | J134: 1614.88 | K134: 1632.77 | L134: 1597 | M134: 1568.95 | N134: 1481150 | O134: -1.75%
A135: 137 | B135: Textile | C135: SRF | D135: 2635.10 | E135: 2638.67 | F135: 2596.13 | G135: 2557.17 | H135: 2514.63 | I135: 2677.63 | J135: 2720.17 | K135: 2759.13 | L135: 2681.2 | M135: 2599.7 | N135: 1001250 | O135: 7.09%
A136: 138 | B136: Finance | C136: SRTRANSFIN | D136: 1054.15 | E136: 1048.23 | F136: 1037.92 | G136: 1021.68 | H136: 1011.37 | I136: 1064.47 | J136: 1074.78 | K136: 1091.02 | L136: 1058.55 | M136: 1032 | N136: 4063800 | O136: 0.43%
A137: 139 | B137: Pharma | C137: STAR | D137: 354.45 | E137: 348.42 | F137: 337.88 | G137: 321.32 | H137: 310.78 | I137: 364.98 | J137: 375.52 | K137: 392.08 | L137: 358.95 | M137: 331.85 | N137: 2169600 | O137: -10.23%
A138: 140 | B138: Pharma | C138: SUNPHARMA | D138: 398.00 | E138: 397.03 | F138: 393.52 | G138: 389.03 | H138: 385.52 | I138: 401.52 | J138: 405.03 | K138: 409.52 | L138: 400.55 | M138: 392.55 | N138: 60853100 | O138: 0.00%
A139: 141 | B139: Media | C139: SUNTV | D139: 489.60 | E139: 487.90 | F139: 480.80 | G139: 472.00 | H139: 464.90 | I139: 496.70 | J139: 503.80 | K139: 512.60 | L139: 495 | M139: 479.1 | N139: 3090000 | O139: -5.27%
A140: 142 | B140: Fertilisers | C140: TATACHEM | D140: 588.80 | E140: 588.32 | F140: 584.23 | G140: 579.67 | H140: 575.58 | I140: 592.88 | J140: 596.97 | K140: 601.53 | L140: 592.4 | M140: 583.75 | N140: 1863000 | O140: -1.15%
A141: 143 | B141: Technology | C141: TATAELXSI | D141: 653.70 | E141: 649.98 | F141: 644.72 | G141: 635.73 | H141: 630.47 | I141: 658.97 | J141: 664.23 | K141: 673.22 | L141: 655.25 | M141: 641 | N141: 1853400 | O141: -1.37%
A142: 144 | B142: FMCG | C142: TATAGLOBAL | D142: 278.35 | E142: 277.28 | F142: 275.57 | G142: 272.78 | H142: 271.07 | I142: 280.07 | J142: 281.78 | K142: 284.57 | L142: 279 | M142: 274.5 | N142: 8807400 | O142: 0.03%
A143: 145 | B143: Automobile | C143: TATAMOTORS | D143: 127.45 | E143: 127.05 | F143: 124.60 | G143: 121.75 | H143: 119.30 | I143: 129.90 | J143: 132.35 | K143: 135.20 | L143: 129.5 | M143: 124.2 | N143: 70641000 | O143: 3.29%
A144: 146 | B144: Automobile | C144: TATAMTRDVR | D144: 56.70 | E144: 56.37 | F144: 55.38 | G144: 54.07 | H144: 53.08 | I144: 57.68 | J144: 58.67 | K144: 59.98 | L144: 57.35 | M144: 55.05 | N144: 39324000 | O144: -0.73%
A145: 147 | B145: Power | C145: TATAPOWER | D145: 60.05 | E145: 59.95 | F145: 59.40 | G145: 58.75 | H145: 58.20 | I145: 60.60 | J145: 61.15 | K145: 61.80 | L145: 60.5 | M145: 59.3 | N145: 42129000 | O145: 1.69%
A146: 148 | B146: Metals | C146: TATASTEEL | D146: 349.70 | E146: 349.37 | F146: 339.43 | G146: 329.17 | H146: 319.23 | I146: 359.63 | J146: 369.57 | K146: 379.83 | L146: 359.3 | M146: 339.1 | N146: 28791296 | O146: 0.72%
A147: 149 | B147: Technology | C147: TCS | D147: 1996.30 | E147: 1993.23 | F147: 1983.22 | G147: 1970.13 | H147: 1960.12 | I147: 2006.32 | J147: 2016.33 | K147: 2029.42 | L147: 2003.25 | M147: 1980.15 | N147: 19769500 | O147: -0.27%
A148: 150 | B148: Technology | C148: TECHM | D148: 722.55 | E148: 724.13 | F148: 718.72 | G148: 714.88 | H148: 709.47 | I148: 727.97 | J148: 733.38 | K148: 737.22 | L148: 729.55 | M148: 720.3 | N148: 14919600 | O148: 1.24%
A149: 151 | B149: FMCG | C149: TITAN | D149: 1275.00 | E149: 1268.53 | F149: 1260.07 | G149: 1245.13 | H149: 1236.67 | I149: 1283.47 | J149: 1291.93 | K149: 1306.87 | L149: 1277 | M149: 1253.6 | N149: 9879750 | O149: 1.37%
A150: 152 | B150: Pharma | C150: TORNTPHARM | D150: 1700.10 | E150: 1700.82 | F150: 1677.53 | G150: 1654.97 | H150: 1631.68 | I150: 1723.38 | J150: 1746.67 | K150: 1769.23 | L150: 1724.1 | M150: 1678.25 | N150: 505000 | O150: -0.39%
A151: 153 | B151: Power | C151: TORNTPOWER | D151: 281.70 | E151: 282.00 | F151: 280.30 | G151: 278.90 | H151: 277.20 | I151: 283.40 | J151: 285.10 | K151: 286.50 | L151: 283.7 | M151: 280.6 | N151: 3426000 | O151: 4.29%
A152: 154 | B152: Automobile | C152: TVSMOTOR | D152: 404.15 | E152: 399.72 | F152: 391.78 | G152: 379.42 | H152: 371.48 | I152: 412.08 | J152: 420.02 | K152: 432.38 | L152: 407.65 | M152: 387.35 | N152: 8281900 | O152: 0.67%
A153: 155 | B153: FMCG | C153: UBL | D153: 1288.80 | E153: 1286.28 | F153: 1272.62 | G153: 1256.43 | H153: 1242.77 | I153: 1302.47 | J153: 1316.13 | K153: 1332.32 | L153: 1299.95 | M153: 1270.1 | N153: 1619800 | O153: -1.57%
A154: 156 | B154: Finance | C154: UJJIVAN | D154: 303.20 | E154: 301.00 | F154: 297.20 | G154: 291.20 | H154: 287.40 | I154: 307.00 | J154: 310.80 | K154: 316.80 | L154: 304.8 | M154: 295 | N154: 7579200 | O154: -0.11%
A155: 157 | B155: Cement | C155: ULTRACEMCO | D155: 4221.90 | E155: 4203.10 | F155: 4171.20 | G155: 4120.50 | H155: 4088.60 | I155: 4253.80 | J155: 4285.70 | K155: 4336.40 | L155: 4235 | M155: 4152.4 | N155: 2617400 | O155: -1.59%
A156: 158 | B156: Banking | C156: UNIONBANK | D156: 50.30 | E156: 49.93 | F156: 49.27 | G156: 48.23 | H156: 47.57 | I156: 50.97 | J156: 51.63 | K156: 52.67 | L156: 50.6 | M156: 48.9 | N156: 37023000 | O156: 2.66%
A157: 159 | B157: Fertilisers | C157: UPL | D157: 585.15 | E157: 586.17 | F157: 580.33 | G157: 575.52 | H157: 569.68 | I157: 590.98 | J157: 596.82 | K157: 601.63 | L157: 592 | M157: 581.35 | N157: 14078700 | O157: 0.29%
A158: 160 | B158: Metals | C158: VEDL | D158: 153.55 | E158: 151.57 | F158: 146.83 | G158: 140.12 | H158: 135.38 | I158: 158.28 | J158: 163.02 | K158: 169.73 | L158: 156.3 | M158: 144.85 | N158: 52455000 | O158: 3.03%
A159: 161 | B159: Capital_Goods | C159: VOLTAS | D159: 678.75 | E159: 677.83 | F159: 672.72 | G159: 666.68 | H159: 661.57 | I159: 683.87 | J159: 688.98 | K159: 695.02 | L159: 682.95 | M159: 671.8 | N159: 1887000 | O159: 3.11%
A160: 162 | B160: Technology | C160: WIPRO | D160: 243.85 | E160: 243.43 | F160: 240.52 | G160: 237.18 | H160: 234.27 | I160: 246.77 | J160: 249.68 | K160: 253.02 | L160: 246.35 | M160: 240.1 | N160: 30889600 | O160: 1.34%
A161: 163 | B161: Banking | C161: YESBANK | D161: 40.80 | E161: 40.40 | F161: 39.35 | G161: 37.90 | H161: 36.85 | I161: 41.85 | J161: 42.90 | K161: 44.35 | L161: 41.45 | M161: 38.95 | N161: 183211600 | O161: 1.21%
A162: 164 | B162: Media | C162: ZEEL | D162: 250.75 | E162: 246.30 | F162: 239.10 | G162: 227.45 | H162: 220.25 | I162: 257.95 | J162: 265.15 | K162: 276.80 | L162: 253.5 | M162: 234.65 | N162: 29582800 | O162: -1.83%
A178: Pivot Point: This is trigger point for intra day buy/sell based on the price range of the previous day
A179: As per the tool,the trader should take BUY position just above Pivot and keep the stop loss of pivot point and the first target would be Resistance 1(R1)
A180: If R1 is crossed then R2 becomes the next target with stop loss of at R1
A181: Similarly if price goes below pivot point then the trader should sell and keep a stop loss of pivot point and the first target would be S1
A182: If S1 is crossed then S2 becomes the next target with stop loss of at S1
A184: Disclaimer:
A185: This document has been prepared by the Retail Research Desk of Asit C Mehta
A186: Investment Intermediates Ltd. and is meant for use of the recipient only
A187: and is not for circulation. This document is not to be reported or
A188: copied or made available to others. It should not be considered to be
A189: taken as an offer to sell or a solicitation to buy any security. The
A190: information contained herein is from sources believed reliable. We do
A191: not represent that it is accurate or complete and it should not be
A192: relied upon as such. We may from time to time have positions in and buy
A193: and sell securities referred to herein

Sheet Cash Intra
M5: Back to Main Page
A6: FOR INTRA DAY TRADING | K6: =Main!B10 -> 2019-10-16
A8: Sr.no | B8: Scrip | C8: CLOSE RATE | D8: Pivot Point | E8: Supports | H8: Resistances
C9: Point | E9: S1 | F9: S2 | G9: S3 | H9: R1 | I9: R2 | J9: R3 | K9: HIGH | L9: LOW | M9: Total Trade Quanity in Lakhs
A10: 1 | B10: Nifty 50 | C10: 11428.3 | D10: 11410.92 | E10: 11359.48 | F10: 11290.67 | G10: 11239.23 | H10: 11479.73 | I10: 11531.17 | J10: 11599.98 | K10: 11462.35 | L10: 11342.1
A11: 2 | B11: Nifty Bank | C11: 28555.1 | D11: 28478.73 | E11: 28262.62 | F11: 27970.13 | G11: 27754.02 | H11: 28771.22 | I11: 28987.33 | J11: 29279.82 | K11: 28694.85 | L11: 28186.25
A12: 3 | B12: Nifty CPSE | C12: 1968.6 | D12: 1961.40 | E12: 1950.40 | F12: 1932.20 | G12: 1921.20 | H12: 1979.60 | I12: 1990.60 | J12: 2008.80 | K12: 1972.4 | L12: 1943.2
A13: 4 | B13: Nifty Infra | C13: 3222.35 | D13: 3218.03 | E13: 3206.62 | F13: 3190.88 | G13: 3179.47 | H13: 3233.77 | I13: 3245.18 | J13: 3260.92 | K13: 3229.45 | L13: 3202.3
A14: 5 | B14: Nifty IT | C14: 15208.4 | D14: 15226.97 | E14: 15172.48 | F14: 15136.57 | G14: 15082.08 | H14: 15262.88 | I14: 15317.37 | J14: 15353.28 | K14: 15281.45 | L14: 15191.05
A15: 6 | B15: Nifty PSE | C15: 3264.85 | D15: 3253.85 | E15: 3238.70 | F15: 3212.55 | G15: 3197.40 | H15: 3280.00 | I15: 3295.15 | J15: 3321.30 | K15: 3269 | L15: 3227.7
A16: 7 | B16: Nifty Midcap 50 | C16: 4290.65 | D16: 4278.60 | E16: 4256.25 | F16: 4221.85 | G16: 4199.50 | H16: 4313.00 | I16: 4335.35 | J16: 4369.75 | K16: 4300.95 | L16: 4244.2
A17: 8 | B17: ACC | C17: 1498.05 | D17: 1488.12 | E17: 1471.23 | F17: 1444.42 | G17: 1427.53 | H17: 1514.93 | I17: 1531.82 | J17: 1558.63 | K17: 1505 | L17: 1461.3 | M17: 17.02459
A18: 9 | B18: AUBANK | C18: 643.55 | D18: 645.85 | E18: 638.70 | F18: 633.85 | G18: 626.70 | H18: 650.70 | I18: 657.85 | J18: 662.70 | K18: 653 | L18: 641 | M18: 3.32462
A19: 10 | B19: ADANIPORTS | C19: 413.75 | D19: 411.90 | E19: 409.30 | F19: 404.85 | G19: 402.25 | H19: 416.35 | I19: 418.95 | J19: 423.40 | K19: 414.5 | L19: 407.45 | M19: 24.34978
A20: 11 | B20: ADANIPOWER | C20: 61.9 | D20: 61.75 | E20: 61.15 | F20: 60.40 | G20: 59.80 | H20: 62.50 | I20: 63.10 | J20: 63.85 | K20: 62.35 | L20: 61 | M20: 66.91019
A21: 12 | B21: ABCAPITAL | C21: 77.25 | D21: 77.58 | E21: 76.67 | F21: 76.08 | G21: 75.17 | H21: 78.17 | I21: 79.08 | J21: 79.67 | K21: 78.5 | L21: 77 | M21: 7.29005
A22: 13 | B22: ABFRL | C22: 200 | D22: 201.33 | E22: 196.87 | F22: 193.73 | G22: 189.27 | H22: 204.47 | I22: 208.93 | J22: 212.07 | K22: 205.8 | L22: 198.2 | M22: 4.63568
A23: 14 | B23: AJANTPHARM | C23: 954.8 | D23: 960.02 | E23: 946.03 | F23: 937.27 | G23: 923.28 | H23: 968.78 | I23: 982.77 | J23: 991.53 | K23: 974 | L23: 951.25 | M23: 0.61717
A24: 15 | B24: ALKEM | C24: 1915.1 | D24: 1925.37 | E24: 1900.73 | F24: 1886.37 | G24: 1861.73 | H24: 1939.73 | I24: 1964.37 | J24: 1978.73 | K24: 1950 | L24: 1911 | M24: 0.19628
A25: 16 | B25: ALBK | C25: 24.9 | D25: 25.02 | E25: 24.48 | F25: 24.07 | G25: 23.53 | H25: 25.43 | I25: 25.97 | J25: 26.38 | K25: 25.55 | L25: 24.6 | M25: 8.44536
A26: 17 | B26: AMARAJABAT | C26: 679.05 | D26: 672.87 | E26: 651.73 | F26: 624.42 | G26: 603.28 | H26: 700.18 | I26: 721.32 | J26: 748.63 | K26: 694 | L26: 645.55 | M26: 13.76409
A27: 18 | B27: AMBUJACEM | C27: 196.95 | D27: 196.48 | E27: 194.47 | F27: 191.98 | G27: 189.97 | H27: 198.97 | I27: 200.98 | J27: 203.47 | K27: 198.5 | L27: 194 | M27: 26.61814
A28: 19 | B28: APOLLOHOSP | C28: 1483.75 | D28: 1476.58 | E28: 1464.17 | F28: 1444.58 | G28: 1432.17 | H28: 1496.17 | I28: 1508.58 | J28: 1528.17 | K28: 1489 | L28: 1457 | M28: 5.94035
A29: 20 | B29: APOLLOTYRE | C29: 173.3 | D29: 171.92 | E29: 170.03 | F29: 166.77 | G29: 164.88 | H29: 175.18 | I29: 177.07 | J29: 180.33 | K29: 173.8 | L29: 168.65 | M29: 16.471
A30: 21 | B30: ASHOKLEY | C30: 69.1 | D30: 68.70 | E30: 67.75 | F30: 66.40 | G30: 65.45 | H30: 70.05 | I30: 71.00 | J30: 72.35 | K30: 69.65 | L30: 67.35 | M30: 248.09075
A31: 22 | B31: ASIANPAINT | C31: 1803.1 | D31: 1808.03 | E31: 1791.07 | F31: 1779.03 | G31: 1762.07 | H31: 1820.07 | I31: 1837.03 | J31: 1849.07 | K31: 1825 | L31: 1796 | M31: 12.04392
A32: 23 | B32: AUROPHARMA | C32: 455.35 | D32: 457.65 | E32: 447.70 | F32: 440.05 | G32: 430.10 | H32: 465.30 | I32: 475.25 | J32: 482.90 | K32: 467.6 | L32: 450 | M32: 48.11384
A33: 24 | B33: DMART | C33: 1838.7 | D33: 1843.72 | E33: 1812.53 | F33: 1786.37 | G33: 1755.18 | H33: 1869.88 | I33: 1901.07 | J33: 1927.23 | K33: 1874.9 | L33: 1817.55 | M33: 6.24117
A34: 25 | B34: AXISBANK | C34: 690.05 | D34: 688.73 | E34: 682.62 | F34: 675.18 | G34: 669.07 | H34: 696.17 | I34: 702.28 | J34: 709.72 | K34: 694.85 | L34: 681.3 | M34: 92.60732
A35: 26 | B35: BAJAJ-AUTO | C35: 3011.95 | D35: 2998.43 | E35: 2966.97 | F35: 2921.98 | G35: 2890.52 | H35: 3043.42 | I35: 3074.88 | J35: 3119.87 | K35: 3029.9 | L35: 2953.45 | M35: 6.36441
A36: 27 | B36: BAJFINANCE | C36: 3879.45 | D36: 3879.48 | E36: 3842.97 | F36: 3806.48 | G36: 3769.97 | H36: 3915.97 | I36: 3952.48 | J36: 3988.97 | K36: 3916 | L36: 3843 | M36: 13.94894
A37: 28 | B37: BAJAJFINSV | C37: 8035.85 | D37: 8059.62 | E37: 7989.23 | F37: 7942.62 | G37: 7872.23 | H37: 8106.23 | I37: 8176.62 | J37: 8223.23 | K37: 8130 | L37: 8013 | M37: 2.17114
A38: 29 | B38: BAJAJHLDNG | C38: 3600 | D38: 3596.80 | E38: 3573.20 | F38: 3546.40 | G38: 3522.80 | H38: 3623.60 | I38: 3647.20 | J38: 3674.00 | K38: 3620.4 | L38: 3570 | M38: 0.12923
A39: 30 | B39: BALKRISIND | C39: 772.35 | D39: 769.82 | E39: 760.53 | F39: 748.72 | G39: 739.43 | H39: 781.63 | I39: 790.92 | J39: 802.73 | K39: 779.1 | L39: 758 | M39: 4.26275
A40: 31 | B40: BANDHANBNK | C40: 623.7 | D40: 610.63 | E40: 583.27 | F40: 542.83 | G40: 515.47 | H40: 651.07 | I40: 678.43 | J40: 718.87 | K40: 638 | L40: 570.2 | M40: 593.02088
A41: 32 | B41: BANKBARODA | C41: 88 | D41: 87.85 | E41: 86.95 | F41: 85.90 | G41: 85.00 | H41: 88.90 | I41: 89.80 | J41: 90.85 | K41: 88.75 | L41: 86.8 | M41: 253.24047
A42: 33 | B42: BANKINDIA | C42: 61.25 | D42: 60.83 | E42: 60.07 | F42: 58.88 | G42: 58.12 | H42: 62.02 | I42: 62.78 | J42: 63.97 | K42: 61.6 | L42: 59.65 | M42: 62.95769
A43: 34 | B43: BATAINDIA | C43: 1717.1 | D43: 1720.07 | E43: 1705.13 | F43: 1693.17 | G43: 1678.23 | H43: 1732.03 | I43: 1746.97 | J43: 1758.93 | K43: 1735 | L43: 1708.1 | M43: 4.09419
A44: 35 | B44: BERGEPAINT | C44: 478.25 | D44: 479.50 | E44: 474.20 | F44: 470.15 | G44: 464.85 | H44: 483.55 | I44: 488.85 | J44: 492.90 | K44: 484.8 | L44: 475.45 | M44: 18.56109
A45: 36 | B45: BEL | C45: 110.5 | D45: 109.93 | E45: 108.72 | F45: 106.93 | G45: 105.72 | H45: 111.72 | I45: 112.93 | J45: 114.72 | K45: 111.15 | L45: 108.15 | M45: 85.43399
A46: 37 | B46: BHARATFORG | C46: 428.4 | D46: 430.40 | E46: 423.45 | F46: 418.50 | G46: 411.55 | H46: 435.35 | I46: 442.30 | J46: 447.25 | K46: 437.35 | L46: 425.45 | M46: 12.79522
A47: 38 | B47: BHEL | C47: 42.75 | D47: 42.92 | E47: 42.33 | F47: 41.92 | G47: 41.33 | H47: 43.33 | I47: 43.92 | J47: 44.33 | K47: 43.5 | L47: 42.5 | M47: 169.21189
A48: 39 | B48: BPCL | C48: 490.3 | D48: 490.92 | E48: 487.33 | F48: 484.37 | G48: 480.78 | H48: 493.88 | I48: 497.47 | J48: 500.43 | K48: 494.5 | L48: 487.95 | M48: 58.42162
A49: 40 | B49: BHARTIARTL | C49: 383.65 | D49: 385.72 | E49: 379.48 | F49: 375.32 | G49: 369.08 | H49: 389.88 | I49: 396.12 | J49: 400.28 | K49: 391.95 | L49: 381.55 | M49: 85.8517
A50: 41 | B50: INFRATEL | C50: 256.95 | D50: 257.53 | E50: 254.67 | F50: 252.38 | G50: 249.52 | H50: 259.82 | I50: 262.68 | J50: 264.97 | K50: 260.4 | L50: 255.25 | M50: 18.42773
A51: 42 | B51: BIOCON | C51: 260.3 | D51: 258.05 | E51: 253.50 | F51: 246.70 | G51: 242.15 | H51: 264.85 | I51: 269.40 | J51: 276.20 | K51: 262.6 | L51: 251.25 | M51: 64.84566
A52: 43 | B52: BBTC | C52: 1190.15 | D52: 1182.40 | E52: 1156.80 | F52: 1123.45 | G52: 1097.85 | H52: 1215.75 | I52: 1241.35 | J52: 1274.70 | K52: 1208 | L52: 1149.05 | M52: 3.55573
A53: 44 | B53: BOSCHLTD | C53: 13853.2 | D53: 13716.73 | E53: 13486.47 | F53: 13119.73 | G53: 12889.47 | H53: 14083.47 | I53: 14313.73 | J53: 14680.47 | K53: 13947 | L53: 13350 | M53: 0.31448
A54: 45 | B54: BRITANNIA | C54: 3181.1 | D54: 3162.37 | E54: 3131.08 | F54: 3081.07 | G54: 3049.78 | H54: 3212.38 | I54: 3243.67 | J54: 3293.68 | K54: 3193.65 | L54: 3112.35 | M54: 5.83008
A55: 46 | B55: CESC | C55: 782.45 | D55: 778.78 | E55: 772.67 | F55: 762.88 | G55: 756.77 | H55: 788.57 | I55: 794.68 | J55: 804.47 | K55: 784.9 | L55: 769 | M55: 5.48331
A56: 47 | B56: CADILAHC | C56: 234.45 | D56: 233.90 | E56: 232.95 | F56: 231.45 | G56: 230.50 | H56: 235.40 | I56: 236.35 | J56: 237.85 | K56: 234.85 | L56: 232.4 | M56: 4.88532
A57: 48 | B57: CANBK | C57: 180.6 | D57: 179.75 | E57: 177.65 | F57: 174.70 | G57: 172.60 | H57: 182.70 | I57: 184.80 | J57: 187.75 | K57: 181.85 | L57: 176.8 | M57: 67.16299
A58: 49 | B58: CASTROLIND | C58: 133.8 | D58: 133.93 | E58: 133.02 | F58: 132.23 | G58: 131.32 | H58: 134.72 | I58: 135.63 | J58: 136.42 | K58: 134.85 | L58: 133.15 | M58: 30.1164
A59: 50 | B59: CHOLAFIN | C59: 279.85 | D59: 281.02 | E59: 275.13 | F59: 270.42 | G59: 264.53 | H59: 285.73 | I59: 291.62 | J59: 296.33 | K59: 286.9 | L59: 276.3 | M59: 17.23921
A60: 51 | B60: CIPLA | C60: 446.55 | D60: 443.47 | E60: 438.43 | F60: 430.32 | G60: 425.28 | H60: 451.58 | I60: 456.62 | J60: 464.73 | K60: 448.5 | L60: 435.35 | M60: 31.53015
A61: 52 | B61: CUB | C61: 213.95 | D61: 215.13 | E61: 211.32 | F61: 208.68 | G61: 204.87 | H61: 217.77 | I61: 221.58 | J61: 224.22 | K61: 218.95 | L61: 212.5 | M61: 4.04695
A62: 53 | B62: COALINDIA | C62: 191.15 | D62: 190.63 | E62: 188.57 | F62: 185.98 | G62: 183.92 | H62: 193.22 | I62: 195.28 | J62: 197.87 | K62: 192.7 | L62: 188.05 | M62: 54.59056
A63: 54 | B63: COLPAL | C63: 1557.6 | D63: 1551.82 | E63: 1533.78 | F63: 1509.97 | G63: 1491.93 | H63: 1575.63 | I63: 1593.67 | J63: 1617.48 | K63: 1569.85 | L63: 1528 | M63: 10.9328
A64: 55 | B64: CONCOR | C64: 595 | D64: 591.82 | E64: 585.63 | F64: 576.27 | G64: 570.08 | H64: 601.18 | I64: 607.37 | J64: 616.73 | K64: 598 | L64: 582.45 | M64: 32.21765
A65: 56 | B65: COROMANDEL | C65: 406.95 | D65: 405.88 | E65: 401.42 | F65: 395.88 | G65: 391.42 | H65: 411.42 | I65: 415.88 | J65: 421.42 | K65: 410.35 | L65: 400.35 | M65: 3.28308
A66: 57 | B66: CROMPTON | C66: 253.15 | D66: 252.52 | E66: 249.28 | F66: 245.42 | G66: 242.18 | H66: 256.38 | I66: 259.62 | J66: 263.48 | K66: 255.75 | L66: 248.65 | M66: 7.67892
A67: 58 | B67: CUMMINSIND | C67: 569.3 | D67: 569.25 | E67: 563.60 | F67: 557.90 | G67: 552.25 | H67: 574.95 | I67: 580.60 | J67: 586.30 | K67: 574.9 | L67: 563.55 | M67: 1.40162
A68: 59 | B68: DLF | C68: 156.15 | D68: 155.85 | E68: 152.30 | F68: 148.45 | G68: 144.90 | H68: 159.70 | I68: 163.25 | J68: 167.10 | K68: 159.4 | L68: 152 | M68: 80.60089
A69: 60 | B69: DABUR | C69: 450 | D69: 452.15 | E69: 445.25 | F69: 440.50 | G69: 433.60 | H69: 456.90 | I69: 463.80 | J69: 468.55 | K69: 459.05 | L69: 447.4 | M69: 27.46832
A70: 61 | B70: DALBHARAT | C70: 808.8 | D70: 808.02 | E70: 800.03 | F70: 791.27 | G70: 783.28 | H70: 816.78 | I70: 824.77 | J70: 833.53 | K70: 816 | L70: 799.25 | M70: 2.42468
A71: 62 | B71: DIVISLAB | C71: 1693.1 | D71: 1691.32 | E71: 1680.83 | F71: 1668.57 | G71: 1658.08 | H71: 1703.58 | I71: 1714.07 | J71: 1726.33 | K71: 1701.8 | L71: 1679.05 | M71: 5.45212
A72: 63 | B72: DRREDDY | C72: 2684.65 | D72: 2678.70 | E72: 2660.50 | F72: 2636.35 | G72: 2618.15 | H72: 2702.85 | I72: 2721.05 | J72: 2745.20 | K72: 2696.9 | L72: 2654.55 | M72: 3.42159
A73: 64 | B73: EDELWEISS | C73: 75.8 | D73: 75.78 | E73: 73.82 | F73: 71.83 | G73: 69.87 | H73: 77.77 | I73: 79.73 | J73: 81.72 | K73: 77.75 | L73: 73.8 | M73: 33.43086
A74: 65 | B74: EICHERMOT | C74: 19199.1 | D74: 18928.03 | E74: 18556.07 | F74: 17913.03 | G74: 17541.07 | H74: 19571.07 | I74: 19943.03 | J74: 20586.07 | K74: 19300 | L74: 18285 | M74: 2.30411
A75: 66 | B75: EMAMILTD | C75: 302.3 | D75: 302.45 | E75: 299.90 | F75: 297.50 | G75: 294.95 | H75: 304.85 | I75: 307.40 | J75: 309.80 | K75: 305 | L75: 300.05 | M75: 4.4537
A76: 67 | B76: ENDURANCE | C76: 1007.5 | D76: 1000.95 | E76: 988.05 | F76: 968.60 | G76: 955.70 | H76: 1020.40 | I76: 1033.30 | J76: 1052.75 | K76: 1013.85 | L76: 981.5 | M76: 0.08575
A77: 68 | B77: ENGINERSIN | C77: 107.25 | D77: 106.83 | E77: 106.02 | F77: 104.78 | G77: 103.97 | H77: 108.07 | I77: 108.88 | J77: 110.12 | K77: 107.65 | L77: 105.6 | M77: 8.58989
A78: 69 | B78: ESCORTS | C78: 630.15 | D78: 624.70 | E78: 614.55 | F78: 598.95 | G78: 588.80 | H78: 640.30 | I78: 650.45 | J78: 666.05 | K78: 634.85 | L78: 609.1 | M78: 45.12846
A79: 70 | B79: EXIDEIND | C79: 187.45 | D79: 186.70 | E79: 183.90 | F79: 180.35 | G79: 177.55 | H79: 190.25 | I79: 193.05 | J79: 196.60 | K79: 189.5 | L79: 183.15 | M79: 25.9807
A80: 71 | B80: FEDERALBNK | C80: 84.95 | D80: 84.18 | E80: 82.47 | F80: 79.98 | G80: 78.27 | H80: 86.67 | I80: 88.38 | J80: 90.87 | K80: 85.9 | L80: 81.7 | M80: 96.62559
A81: 72 | B81: FCONSUMER | C81: 24.65 | D81: 24.28 | E81: 23.72 | F81: 22.78 | G81: 22.22 | H81: 25.22 | I81: 25.78 | J81: 26.72 | K81: 24.85 | L81: 23.35 | M81: 8.64153
A82: 73 | B82: FRETAIL | C82: 380.05 | D82: 378.15 | E82: 372.30 | F82: 364.55 | G82: 358.70 | H82: 385.90 | I82: 391.75 | J82: 399.50 | K82: 384 | L82: 370.4 | M82: 2.56306
A83: 74 | B83: GAIL | C83: 128.1 | D83: 127.60 | E83: 126.05 | F83: 124.00 | G83: 122.45 | H83: 129.65 | I83: 131.20 | J83: 133.25 | K83: 129.15 | L83: 125.55 | M83: 101.31996
A84: 75 | B84: GMRINFRA | C84: 17.3 | D84: 17.22 | E84: 17.08 | F84: 16.87 | G84: 16.73 | H84: 17.43 | I84: 17.57 | J84: 17.78 | K84: 17.35 | L84: 17 | M84: 84.08087
A85: 76 | B85: GICRE | C85: 217.2 | D85: 214.95 | E85: 208.40 | F85: 199.60 | G85: 193.05 | H85: 223.75 | I85: 230.30 | J85: 239.10 | K85: 221.5 | L85: 206.15 | M85: 0.83131
A86: 77 | B86: GLENMARK | C86: 286.45 | D86: 283.70 | E86: 280.00 | F86: 273.55 | G86: 269.85 | H86: 290.15 | I86: 293.85 | J86: 300.30 | K86: 287.4 | L86: 277.25 | M86: 12.48986
A87: 78 | B87: GODREJAGRO | C87: 482.85 | D87: 480.72 | E87: 475.13 | F87: 467.42 | G87: 461.83 | H87: 488.43 | I87: 494.02 | J87: 501.73 | K87: 486.3 | L87: 473 | M87: 0.26276
A88: 79 | B88: GODREJCP | C88: 689.75 | D88: 689.60 | E88: 684.20 | F88: 678.65 | G88: 673.25 | H88: 695.15 | I88: 700.55 | J88: 706.10 | K88: 695 | L88: 684.05 | M88: 7.97085
A89: 80 | B89: GODREJIND | C89: 382.7 | D89: 382.28 | E89: 380.57 | F89: 378.43 | G89: 376.72 | H89: 384.42 | I89: 386.13 | J89: 388.27 | K89: 384 | L89: 380.15 | M89: 0.68988
A90: 81 | B90: GODREJPROP | C90: 987.2 | D90: 989.18 | E90: 973.97 | F90: 960.73 | G90: 945.52 | H90: 1002.42 | I90: 1017.63 | J90: 1030.87 | K90: 1004.4 | L90: 975.95 | M90: 0.94817
A91: 82 | B91: GRAPHITE | C91: 269.35 | D91: 269.38 | E91: 264.97 | F91: 260.58 | G91: 256.17 | H91: 273.77 | I91: 278.18 | J91: 282.57 | K91: 273.8 | L91: 265 | M91: 8.15435
A92: 83 | B92: GRASIM | C92: 703.7 | D92: 700.32 | E92: 694.48 | F92: 685.27 | G92: 679.43 | H92: 709.53 | I92: 715.37 | J92: 724.58 | K92: 706.15 | L92: 691.1 | M92: 9.39647
A93: 84 | B93: GSPL | C93: 207.65 | D93: 208.57 | E93: 206.33 | F93: 205.02 | G93: 202.78 | H93: 209.88 | I93: 212.12 | J93: 213.43 | K93: 210.8 | L93: 207.25 | M93: 1.45486
A94: 85 | B94: HEG | C94: 879.9 | D94: 874.95 | E94: 836.20 | F94: 792.50 | G94: 753.75 | H94: 918.65 | I94: 957.40 | J94: 1001.10 | K94: 913.7 | L94: 831.25 | M94: 3.29428
A95: 86 | B95: HCLTECH | C95: 1084.5 | D95: 1087.70 | E95: 1076.25 | F95: 1068.00 | G95: 1056.55 | H95: 1095.95 | I95: 1107.40 | J95: 1115.65 | K95: 1099.15 | L95: 1079.45 | M95: 15.01035
A96: 87 | B96: HDFCAMC | C96: 2705 | D96: 2716.87 | E96: 2689.73 | F96: 2674.47 | G96: 2647.33 | H96: 2732.13 | I96: 2759.27 | J96: 2774.53 | K96: 2744 | L96: 2701.6 | M96: 2.34345
A97: 88 | B97: HDFCBANK | C97: 1223.05 | D97: 1218.30 | E97: 1211.60 | F97: 1200.15 | G97: 1193.45 | H97: 1229.75 | I97: 1236.45 | J97: 1247.90 | K97: 1225 | L97: 1206.85 | M97: 42.00187
A98: 89 | B98: HDFCLIFE | C98: 592.75 | D98: 589.73 | E98: 583.62 | F98: 574.48 | G98: 568.37 | H98: 598.87 | I98: 604.98 | J98: 614.12 | K98: 595.85 | L98: 580.6 | M98: 14.29097
A99: 90 | B99: HAVELLS | C99: 666.9 | D99: 665.83 | E99: 656.27 | F99: 645.63 | G99: 636.07 | H99: 676.47 | I99: 686.03 | J99: 696.67 | K99: 675.4 | L99: 655.2 | M99: 14.02183
A100: 91 | B100: HEROMOTOCO | C100: 2675.7 | D100: 2661.88 | E100: 2623.82 | F100: 2571.93 | G100: 2533.87 | H100: 2713.77 | I100: 2751.83 | J100: 2803.72 | K100: 2699.95 | L100: 2610 | M100: 10.11239
A101: 92 | B101: HEXAWARE | C101: 370.25 | D101: 370.97 | E101: 368.08 | F101: 365.92 | G101: 363.03 | H101: 373.13 | I101: 376.02 | J101: 378.18 | K101: 373.85 | L101: 368.8 | M101: 5.43064
A102: 93 | B102: HINDALCO | C102: 192.55 | D102: 191.33 | E102: 187.12 | F102: 181.68 | G102: 177.47 | H102: 196.77 | I102: 200.98 | J102: 206.42 | K102: 195.55 | L102: 185.9 | M102: 66.9166
A103: 94 | B103: HINDPETRO | C103: 311.05 | D103: 311.95 | E103: 308.75 | F103: 306.45 | G103: 303.25 | H103: 314.25 | I103: 317.45 | J103: 319.75 | K103: 315.15 | L103: 309.65 | M103: 38.2307
A104: 95 | B104: HINDUNILVR | C104: 2064.4 | D104: 2055.83 | E104: 2034.37 | F104: 2004.33 | G104: 1982.87 | H104: 2085.87 | I104: 2107.33 | J104: 2137.37 | K104: 2077.3 | L104: 2025.8 | M104: 57.61733
A105: 96 | B105: HINDZINC | C105: 208.75 | D105: 209.28 | E105: 206.57 | F105: 204.38 | G105: 201.67 | H105: 211.47 | I105: 214.18 | J105: 216.37 | K105: 212 | L105: 207.1 | M105: 3.70311
A106: 97 | B106: HUDCO | C106: 33 | D106: 33.13 | E106: 32.62 | F106: 32.23 | G106: 31.72 | H106: 33.52 | I106: 34.03 | J106: 34.42 | K106: 33.65 | L106: 32.75 | M106: 5.17524
A107: 98 | B107: HDFC | C107: 2013.3 | D107: 2017.63 | E107: 2004.87 | F107: 1996.43 | G107: 1983.67 | H107: 2026.07 | I107: 2038.83 | J107: 2047.27 | K107: 2030.4 | L107: 2009.2 | M107: 21.09065
A108: 99 | B108: ICICIBANK | C108: 431.85 | D108: 431.83 | E108: 428.22 | F108: 424.58 | G108: 420.97 | H108: 435.47 | I108: 439.08 | J108: 442.72 | K108: 435.45 | L108: 428.2 | M108: 149.71985
A109: 100 | B109: ICICIGI | C109: 1265.9 | D109: 1260.47 | E109: 1250.93 | F109: 1235.97 | G109: 1226.43 | H109: 1275.43 | I109: 1284.97 | J109: 1299.93 | K109: 1270 | L109: 1245.5 | M109: 5.20386
A110: 101 | B110: ICICIPRULI | C110: 455 | D110: 454.58 | E110: 449.17 | F110: 443.33 | G110: 437.92 | H110: 460.42 | I110: 465.83 | J110: 471.67 | K110: 460 | L110: 448.75 | M110: 17.00845
A111: 102 | B111: IDBI | C111: 28.95 | D111: 29.07 | E111: 28.78 | F111: 28.62 | G111: 28.33 | H111: 29.23 | I111: 29.52 | J111: 29.68 | K111: 29.35 | L111: 28.9 | M111: 10.69754
A112: 103 | B112: IDFCFIRSTB | C112: 38.45 | D112: 38.22 | E112: 37.93 | F112: 37.42 | G112: 37.13 | H112: 38.73 | I112: 39.02 | J112: 39.53 | K112: 38.5 | L112: 37.7 | M112: 113.99042
A113: 104 | B113: ITC | C113: 247.6 | D113: 247.28 | E113: 245.37 | F113: 243.13 | G113: 241.22 | H113: 249.52 | I113: 251.43 | J113: 253.67 | K113: 249.2 | L113: 245.05 | M113: 99.89191
A114: 105 | B114: IBULHSGFIN | C114: 189.1 | D114: 189.23 | E114: 182.07 | F114: 175.03 | G114: 167.87 | H114: 196.27 | I114: 203.43 | J114: 210.47 | K114: 196.4 | L114: 182.2 | M114: 454.04398
A115: 106 | B115: IBVENTURES | C115: 90.6 | D115: 92.65 | E115: 88.55 | F115: 86.50 | G115: 82.40 | H115: 94.70 | I115: 98.80 | J115: 100.85 | K115: 96.75 | L115: 90.6 | M115: 11.93035
A116: 107 | B116: INDIANB | C116: 109 | D116: 109.70 | E116: 107.50 | F116: 106.00 | G116: 103.80 | H116: 111.20 | I116: 113.40 | J116: 114.90 | K116: 111.9 | L116: 108.2 | M116: 6.70771
A117: 108 | B117: INDHOTEL | C117: 149.05 | D117: 150.18 | E117: 146.87 | F117: 144.68 | G117: 141.37 | H117: 152.37 | I117: 155.68 | J117: 157.87 | K117: 153.5 | L117: 148 | M117: 10.28285
A118: 109 | B118: IOC | C118: 146.45 | D118: 146.60 | E118: 144.85 | F118: 143.25 | G118: 141.50 | H118: 148.20 | I118: 149.95 | J118: 151.55 | K118: 148.35 | L118: 145 | M118: 98.41005
A119: 110 | B119: IGL | C119: 368.55 | D119: 371.02 | E119: 365.13 | F119: 361.72 | G119: 355.83 | H119: 374.43 | I119: 380.32 | J119: 383.73 | K119: 376.9 | L119: 367.6 | M119: 16.43283
A120: 111 | B120: INDUSINDBK | C120: 1272.25 | D120: 1261.93 | E120: 1246.32 | F120: 1220.38 | G120: 1204.77 | H120: 1287.87 | I120: 1303.48 | J120: 1329.42 | K120: 1277.55 | L120: 1236 | M120: 46.6998
A121: 112 | B121: NAUKRI | C121: 2314.25 | D121: 2312.10 | E121: 2255.20 | F121: 2196.15 | G121: 2139.25 | H121: 2371.15 | I121: 2428.05 | J121: 2487.10 | K121: 2369 | L121: 2253.05 | M121: 2.87728
A122: 113 | B122: INFY | C122: 768.3 | D122: 769.75 | E122: 763.55 | F122: 758.80 | G122: 752.60 | H122: 774.50 | I122: 780.70 | J122: 785.45 | K122: 775.95 | L122: 765 | M122: 137.62133
A123: 114 | B123: INDIGO | C123: 1752.05 | D123: 1757.25 | E123: 1742.80 | F123: 1733.55 | G123: 1719.10 | H123: 1766.50 | I123: 1780.95 | J123: 1790.20 | K123: 1771.7 | L123: 1748 | M123: 5.61407
A124: 115 | B124: IPCALAB | C124: 882.5 | D124: 877.87 | E124: 865.73 | F124: 848.97 | G124: 836.83 | H124: 894.63 | I124: 906.77 | J124: 923.53 | K124: 890 | L124: 861.1 | M124: 4.30945
A125: 116 | B125: JSWENERGY | C125: 63.05 | D125: 62.25 | E125: 60.50 | F125: 57.95 | G125: 56.20 | H125: 64.80 | I125: 66.55 | J125: 69.10 | K125: 64 | L125: 59.7 | M125: 12.49666
A126: 117 | B126: JSWSTEEL | C126: 219.65 | D126: 220.27 | E126: 213.63 | F126: 207.62 | G126: 200.98 | H126: 226.28 | I126: 232.92 | J126: 238.93 | K126: 226.9 | L126: 214.25 | M126: 149.00735
A127: 118 | B127: JINDALSTEL | C127: 103.1 | D127: 101.43 | E127: 97.92 | F127: 92.73 | G127: 89.22 | H127: 106.62 | I127: 110.13 | J127: 115.32 | K127: 104.95 | L127: 96.25 | M127: 330.02841
A128: 119 | B128: JUBLFOOD | C128: 1317.6 | D128: 1319.77 | E128: 1301.53 | F128: 1285.47 | G128: 1267.23 | H128: 1335.83 | I128: 1354.07 | J128: 1370.13 | K128: 1338 | L128: 1303.7 | M128: 6.33567
A129: 120 | B129: JUBILANT | C129: 481.15 | D129: 480.98 | E129: 476.62 | F129: 472.08 | G129: 467.72 | H129: 485.52 | I129: 489.88 | J129: 494.42 | K129: 485.35 | L129: 476.45 | M129: 1.9953
A130: 121 | B130: KOTAKBANK | C130: 1615.6 | D130: 1607.53 | E130: 1585.57 | F130: 1555.53 | G130: 1533.57 | H130: 1637.57 | I130: 1659.53 | J130: 1689.57 | K130: 1629.5 | L130: 1577.5 | M130: 27.06471
A131: 122 | B131: L&TFH | C131: 82.8 | D131: 82.32 | E131: 81.53 | F131: 80.27 | G131: 79.48 | H131: 83.58 | I131: 84.37 | J131: 85.63 | K131: 83.1 | L131: 81.05 | M131: 56.82617
A132: 123 | B132: LTTS | C132: 1548.45 | D132: 1548.28 | E132: 1533.02 | F132: 1517.58 | G132: 1502.32 | H132: 1563.72 | I132: 1578.98 | J132: 1594.42 | K132: 1563.55 | L132: 1532.85 | M132: 0.33878
A133: 124 | B133: LICHSGFIN | C133: 363.8 | D133: 361.75 | E133: 355.90 | F133: 348.00 | G133: 342.15 | H133: 369.65 | I133: 375.50 | J133: 383.40 | K133: 367.6 | L133: 353.85 | M133: 34.31562
A134: 125 | B134: LTI | C134: 1491.65 | D134: 1488.55 | E134: 1478.10 | F134: 1464.55 | G134: 1454.10 | H134: 1502.10 | I134: 1512.55 | J134: 1526.10 | K134: 1499 | L134: 1475 | M134: 0.46091
A135: 126 | B135: LT | C135: 1432.25 | D135: 1432.57 | E135: 1420.33 | F135: 1408.42 | G135: 1396.18 | H135: 1444.48 | I135: 1456.72 | J135: 1468.63 | K135: 1444.8 | L135: 1420.65 | M135: 17.97471
A136: 127 | B136: LUPIN | C136: 721.15 | D136: 719.85 | E136: 712.80 | F136: 704.45 | G136: 697.40 | H136: 728.20 | I136: 735.25 | J136: 743.60 | K136: 726.9 | L136: 711.5 | M136: 14.38966
A137: 128 | B137: MRF | C137: 63027.5 | D137: 62699.13 | E137: 62100.37 | F137: 61173.23 | G137: 60574.47 | H137: 63626.27 | I137: 64225.03 | J137: 65152.17 | K137: 63297.9 | L137: 61772 | M137: 0.04999
A138: 129 | B138: MGL | C138: 949.1 | D138: 951.73 | E138: 938.67 | F138: 928.23 | G138: 915.17 | H138: 962.17 | I138: 975.23 | J138: 985.67 | K138: 964.8 | L138: 941.3 | M138: 8.44828
A139: 130 | B139: M&MFIN | C139: 316.6 | D139: 316.60 | E139: 312.00 | F139: 307.40 | G139: 302.80 | H139: 321.20 | I139: 325.80 | J139: 330.40 | K139: 321.2 | L139: 312 | M139: 18.77025
A140: 131 | B140: M&M | C140: 583.4 | D140: 578.38 | E140: 570.22 | F140: 557.03 | G140: 548.87 | H140: 591.57 | I140: 599.73 | J140: 612.92 | K140: 586.55 | L140: 565.2 | M140: 49.67499
A141: 132 | B141: MANAPPURAM | C141: 137.65 | D141: 137.70 | E141: 135.40 | F141: 133.15 | G141: 130.85 | H141: 139.95 | I141: 142.25 | J141: 144.50 | K141: 140 | L141: 135.45 | M141: 43.15701
A142: 133 | B142: MRPL | C142: 51.55 | D142: 51.40 | E142: 50.90 | F142: 50.25 | G142: 49.75 | H142: 52.05 | I142: 52.55 | J142: 53.20 | K142: 51.9 | L142: 50.75 | M142: 2.1474
A143: 134 | B143: MARICO | C143: 382.95 | D143: 382.50 | E143: 379.45 | F143: 375.95 | G143: 372.90 | H143: 386.00 | I143: 389.05 | J143: 392.55 | K143: 385.55 | L143: 379 | M143: 15.62818
A144: 135 | B144: MARUTI | C144: 6985.75 | D144: 6937.92 | E144: 6856.83 | F144: 6727.92 | G144: 6646.83 | H144: 7066.83 | I144: 7147.92 | J144: 7276.83 | K144: 7019 | L144: 6809 | M144: 12.76061
A145: 136 | B145: MFSL | C145: 408.85 | D145: 412.38 | E145: 402.77 | F145: 396.68 | G145: 387.07 | H145: 418.47 | I145: 428.08 | J145: 434.17 | K145: 422 | L145: 406.3 | M145: 5.24099
A146: 137 | B146: MINDTREE | C146: 725.35 | D146: 726.88 | E146: 720.02 | F146: 714.68 | G146: 707.82 | H146: 732.22 | I146: 739.08 | J146: 744.42 | K146: 733.75 | L146: 721.55 | M146: 5.13453
A147: 138 | B147: MOTHERSUMI | C147: 101.85 | D147: 100.83 | E147: 98.92 | F147: 95.98 | G147: 94.07 | H147: 103.77 | I147: 105.68 | J147: 108.62 | K147: 102.75 | L147: 97.9 | M147: 104.65141
A148: 139 | B148: MPHASIS | C148: 921.5 | D148: 915.15 | E148: 907.35 | F148: 893.20 | G148: 885.40 | H148: 929.30 | I148: 937.10 | J148: 951.25 | K148: 922.95 | L148: 901 | M148: 1.1443
A149: 140 | B149: MUTHOOTFIN | C149: 652.85 | D149: 647.47 | E149: 636.93 | F149: 621.02 | G149: 610.48 | H149: 663.38 | I149: 673.92 | J149: 689.83 | K149: 658 | L149: 631.55 | M149: 17.7008
A150: 141 | B150: NATCOPHARM | C150: 565.55 | D150: 563.45 | E150: 559.85 | F150: 554.15 | G150: 550.55 | H150: 569.15 | I150: 572.75 | J150: 578.45 | K150: 567.05 | L150: 557.75 | M150: 0.39612
A151: 142 | B151: NBCC | C151: 32.7 | D151: 32.57 | E151: 32.13 | F151: 31.57 | G151: 31.13 | H151: 33.13 | I151: 33.57 | J151: 34.13 | K151: 33 | L151: 32 | M151: 125.59199
A152: 143 | B152: NHPC | C152: 23.85 | D152: 23.67 | E152: 23.43 | F152: 23.02 | G152: 22.78 | H152: 24.08 | I152: 24.32 | J152: 24.73 | K152: 23.9 | L152: 23.25 | M152: 37.20266
A153: 144 | B153: NMDC | C153: 101.4 | D153: 100.02 | E153: 98.03 | F153: 94.67 | G153: 92.68 | H153: 103.38 | I153: 105.37 | J153: 108.73 | K153: 102 | L153: 96.65 | M153: 77.25725
A154: 145 | B154: NTPC | C154: 119.4 | D154: 118.73 | E154: 117.67 | F154: 115.93 | G154: 114.87 | H154: 120.47 | I154: 121.53 | J154: 123.27 | K154: 119.8 | L154: 117 | M154: 76.30007
A155: 146 | B155: NATIONALUM | C155: 41.45 | D155: 41.20 | E155: 40.70 | F155: 39.95 | G155: 39.45 | H155: 41.95 | I155: 42.45 | J155: 43.20 | K155: 41.7 | L155: 40.45 | M155: 70.66422
A156: 147 | B156: NESTLEIND | C156: 14086.8 | D156: 14109.25 | E156: 14013.50 | F156: 13940.20 | G156: 13844.45 | H156: 14182.55 | I156: 14278.30 | J156: 14351.60 | K156: 14205 | L156: 14035.95 | M156: 0.97808
A157: 148 | B157: OBEROIRLTY | C157: 504.95 | D157: 502.60 | E157: 497.70 | F157: 490.45 | G157: 485.55 | H157: 509.85 | I157: 514.75 | J157: 522.00 | K157: 507.5 | L157: 495.35 | M157: 1.05766
A158: 149 | B158: ONGC | C158: 138.65 | D158: 137.72 | E158: 136.28 | F158: 133.92 | G158: 132.48 | H158: 140.08 | I158: 141.52 | J158: 143.88 | K158: 139.15 | L158: 135.35 | M158: 171.45941
A159: 150 | B159: OIL | C159: 158.4 | D159: 156.62 | E159: 153.98 | F159: 149.57 | G159: 146.93 | H159: 161.03 | I159: 163.67 | J159: 168.08 | K159: 159.25 | L159: 152.2 | M159: 21.37984
A160: 151 | B160: OFSS | C160: 3143.35 | D160: 3127.00 | E160: 3104.00 | F160: 3064.65 | G160: 3041.65 | H160: 3166.35 | I160: 3189.35 | J160: 3228.70 | K160: 3150 | L160: 3087.65 | M160: 0.10403
A161: 152 | B161: ORIENTBANK | C161: 51.1 | D161: 51.40 | E161: 50.50 | F161: 49.90 | G161: 49.00 | H161: 52.00 | I161: 52.90 | J161: 53.50 | K161: 52.3 | L161: 50.8 | M161: 3.9507
A162: 153 | B162: PIIND | C162: 1316.95 | D162: 1320.65 | E162: 1301.30 | F162: 1285.65 | G162: 1266.30 | H162: 1336.30 | I162: 1355.65 | J162: 1371.30 | K162: 1340 | L162: 1305 | M162: 2.36691
A163: 154 | B163: PNBHOUSING | C163: 436.7 | D163: 446.68 | E163: 424.37 | F163: 412.03 | G163: 389.72 | H163: 459.02 | I163: 481.33 | J163: 493.67 | K163: 469 | L163: 434.35 | M163: 9.76474
A164: 155 | B164: PAGEIND | C164: 21093.5 | D164: 21223.50 | E164: 20670.00 | F164: 20246.50 | G164: 19693.00 | H164: 21647.00 | I164: 22200.50 | J164: 22624.00 | K164: 21777 | L164: 20800 | M164: 0.41757
A165: 156 | B165: PETRONET | C165: 259.25 | D165: 259.12 | E165: 257.73 | F165: 256.22 | G165: 254.83 | H165: 260.63 | I165: 262.02 | J165: 263.53 | K165: 260.5 | L165: 257.6 | M165: 18.09678
A166: 157 | B166: PFIZER | C166: 3193.15 | D166: 3186.00 | E166: 3160.25 | F166: 3127.35 | G166: 3101.60 | H166: 3218.90 | I166: 3244.65 | J166: 3277.55 | K166: 3211.75 | L166: 3153.1 | M166: 0.08041
A167: 158 | B167: PIDILITIND | C167: 1379.25 | D167: 1373.45 | E167: 1357.35 | F167: 1335.45 | G167: 1319.35 | H167: 1395.35 | I167: 1411.45 | J167: 1433.35 | K167: 1389.55 | L167: 1351.55 | M167: 3.99563
A168: 159 | B168: PEL | C168: 1375.85 | D168: 1376.27 | E168: 1356.13 | F168: 1336.42 | G168: 1316.28 | H168: 1395.98 | I168: 1416.12 | J168: 1435.83 | K168: 1396.4 | L168: 1356.55 | M168: 12.15115
A169: 160 | B169: PFC | C169: 94.25 | D169: 93.73 | E169: 92.62 | F169: 90.98 | G169: 89.87 | H169: 95.37 | I169: 96.48 | J169: 98.12 | K169: 94.85 | L169: 92.1 | M169: 52.75305
A170: 161 | B170: POWERGRID | C170: 201.25 | D170: 200.52 | E170: 199.03 | F170: 196.82 | G170: 195.33 | H170: 202.73 | I170: 204.22 | J170: 206.43 | K170: 202 | L170: 198.3 | M170: 28.19926
A171: 162 | B171: PRESTIGE | C171: 291.25 | D171: 288.60 | E171: 284.45 | F171: 277.65 | G171: 273.50 | H171: 295.40 | I171: 299.55 | J171: 306.35 | K171: 292.75 | L171: 281.8 | M171: 3.97179
A172: 163 | B172: PGHH | C172: 11329.4 | D172: 11296.15 | E172: 10863.25 | F172: 10397.10 | G172: 9964.20 | H172: 11762.30 | I172: 12195.20 | J172: 12661.35 | K172: 11729.05 | L172: 10830 | M172: 0.10846
A173: 164 | B173: PNB | C173: 57.9 | D173: 57.58 | E173: 57.02 | F173: 56.13 | G173: 55.57 | H173: 58.47 | I173: 59.03 | J173: 59.92 | K173: 58.15 | L173: 56.7 | M173: 142.61673
A174: 165 | B174: QUESS | C174: 470.05 | D174: 469.37 | E174: 466.08 | F174: 462.12 | G174: 458.83 | H174: 473.33 | I174: 476.62 | J174: 480.58 | K174: 472.65 | L174: 465.4 | M174: 1.34049
A175: 166 | B175: RBLBANK | C175: 264.05 | D175: 260.17 | E175: 245.33 | F175: 226.62 | G175: 211.78 | H175: 278.88 | I175: 293.72 | J175: 312.43 | K175: 275 | L175: 241.45 | M175: 374.22869
A176: 167 | B176: RECLTD | C176: 123.25 | D176: 123.85 | E176: 122.10 | F176: 120.95 | G176: 119.20 | H176: 125.00 | I176: 126.75 | J176: 127.90 | K176: 125.6 | L176: 122.7 | M176: 37.52106
A177: 168 | B177: RAJESHEXPO | C177: 674.4 | D177: 678.63 | E177: 668.27 | F177: 662.13 | G177: 651.77 | H177: 684.77 | I177: 695.13 | J177: 701.27 | K177: 689 | L177: 672.5 | M177: 3.83214
A178: 169 | B178: RELIANCE | C178: 1364.15 | D178: 1362.82 | E178: 1355.63 | F178: 1347.12 | G178: 1339.93 | H178: 1371.33 | I178: 1378.52 | J178: 1387.03 | K178: 1370 | L178: 1354.3 | M178: 44.22075
A179: 170 | B179: RNAM | C179: 261.65 | D179: 263.65 | E179: 257.55 | F179: 253.45 | G179: 247.35 | H179: 267.75 | I179: 273.85 | J179: 277.95 | K179: 269.75 | L179: 259.55 | M179: 9.18117
A180: 171 | B180: SBILIFE | C180: 838.05 | D180: 837.02 | E180: 830.03 | F180: 822.02 | G180: 815.03 | H180: 845.03 | I180: 852.02 | J180: 860.03 | K180: 844 | L180: 829 | M180: 3.9489
A181: 172 | B181: SRF | C181: 2624.65 | D181: 2627.50 | E181: 2585.15 | F181: 2545.65 | G181: 2503.30 | H181: 2667.00 | I181: 2709.35 | J181: 2748.85 | K181: 2669.85 | L181: 2588 | M181: 5.57839
A182: 173 | B182: SHREECEM | C182: 18584.75 | D182: 18652.25 | E182: 18443.55 | F182: 18302.35 | G182: 18093.65 | H182: 18793.45 | I182: 19002.15 | J182: 19143.35 | K182: 18860.95 | L182: 18511.05 | M182: 0.37879
A183: 174 | B183: SRTRANSFIN | C183: 1050.15 | D183: 1044.37 | E183: 1033.78 | F183: 1017.42 | G183: 1006.83 | H183: 1060.73 | I183: 1071.32 | J183: 1087.68 | K183: 1054.95 | L183: 1028 | M183: 8.10382
A184: 175 | B184: SIEMENS | C184: 1592 | D184: 1587.17 | E184: 1578.83 | F184: 1565.67 | G184: 1557.33 | H184: 1600.33 | I184: 1608.67 | J184: 1621.83 | K184: 1595.5 | L184: 1574 | M184: 4.82922
A185: 176 | B185: SBIN | C185: 258.45 | D185: 257.72 | E185: 255.53 | F185: 252.62 | G185: 250.43 | H185: 260.63 | I185: 262.82 | J185: 265.73 | K185: 259.9 | L185: 254.8 | M185: 234.44973
A186: 177 | B186: SAIL | C186: 33.4 | D186: 33.15 | E186: 31.85 | F186: 30.30 | G186: 29.00 | H186: 34.70 | I186: 36.00 | J186: 37.55 | K186: 34.45 | L186: 31.6 | M186: 552.94896
A187: 178 | B187: STRTECH | C187: 135.3 | D187: 135.77 | E187: 132.53 | F187: 129.77 | G187: 126.53 | H187: 138.53 | I187: 141.77 | J187: 144.53 | K187: 139 | L187: 133 | M187: 7.92405
A188: 179 | B188: SUNPHARMA | C188: 396.8 | D188: 396.35 | E188: 392.70 | F188: 388.60 | G188: 384.95 | H188: 400.45 | I188: 404.10 | J188: 408.20 | K188: 400 | L188: 392.25 | M188: 28.92153
A189: 180 | B189: SUNTV | C189: 490.1 | D189: 487.07 | E189: 479.13 | F189: 468.17 | G189: 460.23 | H189: 498.03 | I189: 505.97 | J189: 516.93 | K189: 495 | L189: 476.1 | M189: 22.54599
A190: 181 | B190: SYNGENE | C190: 325.55 | D190: 324.53 | E190: 316.07 | F190: 306.58 | G190: 298.12 | H190: 334.02 | I190: 342.48 | J190: 351.97 | K190: 333 | L190: 315.05 | M190: 2.17681
A191: 182 | B191: TVSMOTOR | C191: 410.1 | D191: 404.55 | E191: 397.20 | F191: 384.30 | G191: 376.95 | H191: 417.45 | I191: 424.80 | J191: 437.70 | K191: 411.9 | L191: 391.65 | M191: 31.85751
A192: 183 | B192: TATACHEM | C192: 588.2 | D192: 588.20 | E192: 582.70 | F192: 577.20 | G192: 571.70 | H192: 593.70 | I192: 599.20 | J192: 604.70 | K192: 593.7 | L192: 582.7 | M192: 2.62653
A193: 184 | B193: TCS | C193: 2037.3 | D193: 2035.67 | E193: 2024.33 | F193: 2011.37 | G193: 2000.03 | H193: 2048.63 | I193: 2059.97 | J193: 2072.93 | K193: 2047 | L193: 2022.7 | M193: 22.6131
A194: 185 | B194: TATAGLOBAL | C194: 277.75 | D194: 276.67 | E194: 274.88 | F194: 272.02 | G194: 270.23 | H194: 279.53 | I194: 281.32 | J194: 284.18 | K194: 278.45 | L194: 273.8 | M194: 10.0989
A195: 186 | B195: TATAMTRDVR | C195: 56.5 | D195: 56.13 | E195: 55.27 | F195: 54.03 | G195: 53.17 | H195: 57.37 | I195: 58.23 | J195: 59.47 | K195: 57 | L195: 54.9 | M195: 52.22759
A196: 187 | B196: TATAMOTORS | C196: 126.95 | D196: 126.52 | E196: 124.13 | F196: 121.32 | G196: 118.93 | H196: 129.33 | I196: 131.72 | J196: 134.53 | K196: 128.9 | L196: 123.7 | M196: 575.4892
A197: 188 | B197: TATAPOWER | C197: 59.75 | D197: 59.73 | E197: 59.17 | F197: 58.58 | G197: 58.02 | H197: 60.32 | I197: 60.88 | J197: 61.47 | K197: 60.3 | L197: 59.15 | M197: 49.33745
A198: 189 | B198: TATASTEEL | C198: 349.2 | D198: 348.75 | E198: 339.15 | F198: 329.10 | G198: 319.50 | H198: 358.80 | I198: 368.40 | J198: 378.45 | K198: 358.35 | L198: 338.7 | M198: 179.72207
A199: 190 | B199: TECHM | C199: 720.5 | D199: 722.83 | E199: 716.67 | F199: 712.83 | G199: 706.67 | H199: 726.67 | I199: 732.83 | J199: 736.67 | K199: 729 | L199: 719 | M199: 14.82881
A200: 191 | B200: NIACL | C200: 94.9 | D200: 95.18 | E200: 94.12 | F200: 93.33 | G200: 92.27 | H200: 95.97 | I200: 97.03 | J200: 97.82 | K200: 96.25 | L200: 94.4 | M200: 0.97041
A201: 192 | B201: RAMCOCEM | C201: 724.6 | D201: 722.22 | E201: 718.43 | F201: 712.27 | G201: 708.48 | H201: 728.38 | I201: 732.17 | J201: 738.33 | K201: 726 | L201: 716.05 | M201: 1.66269
A202: 193 | B202: TITAN | C202: 1272.1 | D202: 1266.75 | E202: 1258.35 | F202: 1244.60 | G202: 1236.20 | H202: 1280.50 | I202: 1288.90 | J202: 1302.65 | K202: 1275.15 | L202: 1253 | M202: 13.79017
A203: 194 | B203: TORNTPHARM | C203: 1699.85 | D203: 1707.27 | E203: 1672.58 | F203: 1645.32 | G203: 1610.63 | H203: 1734.53 | I203: 1769.22 | J203: 1796.48 | K203: 1741.95 | L203: 1680 | M203: 5.05473
A204: 195 | B204: TORNTPOWER | C204: 280.35 | D204: 280.90 | E204: 278.90 | F204: 277.45 | G204: 275.45 | H204: 282.35 | I204: 284.35 | J204: 285.80 | K204: 282.9 | L204: 279.45 | M204: 5.06229
A205: 196 | B205: UPL | C205: 583.1 | D205: 584.97 | E205: 578.93 | F205: 574.77 | G205: 568.73 | H205: 589.13 | I205: 595.17 | J205: 599.33 | K205: 591 | L205: 580.8 | M205: 22.13363
... 30 more rows

Sheet MidCap Intra
L5: Back To Main Page
A6: FOR INTRA DAY TRADING | K6: =Main!B10 -> 2019-10-16
A9: Sr.no | B9: Scrip | C9: CLOSE RATE | D9: Pivot Point | E9: Supports | H9: Resistances
C10: Point | E10: S1 | F10: S2 | G10: S3 | H10: R1 | I10: R2 | J10: R3 | K10: HIGH | L10: LOW | M10: Total Trade Quanity in Lakhs
A11: 1 | B11: 3MINDIA | C11: 20267.65 | D11: 20189.88 | E11: 20009.77 | F11: 19751.88 | G11: 19571.77 | H11: 20447.77 | I11: 20627.88 | J11: 20885.77 | K11: 20370 | L11: 19932 | M11: 0.03337
A12: 2 | B12: ACC | C12: 1498.05 | D12: 1488.12 | E12: 1471.23 | F12: 1444.42 | G12: 1427.53 | H12: 1514.93 | I12: 1531.82 | J12: 1558.63 | K12: 1505 | L12: 1461.3 | M12: 17.02459
A13: 3 | B13: AIAENG | C13: 1714.55 | D13: 1712.28 | E13: 1688.32 | F13: 1662.08 | G13: 1638.12 | H13: 1738.52 | I13: 1762.48 | J13: 1788.72 | K13: 1736.25 | L13: 1686.05 | M13: 0.07453
A14: 4 | B14: APLAPOLLO | C14: 1391.9 | D14: 1380.97 | E14: 1366.93 | F14: 1341.97 | G14: 1327.93 | H14: 1405.93 | I14: 1419.97 | J14: 1444.93 | K14: 1395 | L14: 1356 | M14: 0.18604
A15: 5 | B15: AUBANK | C15: 643.55 | D15: 645.85 | E15: 638.70 | F15: 633.85 | G15: 626.70 | H15: 650.70 | I15: 657.85 | J15: 662.70 | K15: 653 | L15: 641 | M15: 3.32462
A16: 6 | B16: AAVAS | C16: 1673.95 | D16: 1678.75 | E16: 1657.50 | F16: 1641.05 | G16: 1619.80 | H16: 1695.20 | I16: 1716.45 | J16: 1732.90 | K16: 1700 | L16: 1662.3 | M16: 0.09038
A17: 7 | B17: ABBOTINDIA | C17: 10917.9 | D17: 10902.63 | E17: 10780.27 | F17: 10642.63 | G17: 10520.27 | H17: 11040.27 | I17: 11162.63 | J17: 11300.27 | K17: 11025 | L17: 10765 | M17: 0.12639
A18: 8 | B18: ADANIGAS | C18: 151.55 | D18: 152.45 | E18: 149.20 | F18: 146.85 | G18: 143.60 | H18: 154.80 | I18: 158.05 | J18: 160.40 | K18: 155.7 | L18: 150.1 | M18: 18.19063
A19: 9 | B19: ADANIGREEN | C19: 79.95 | D19: 79.63 | E19: 78.07 | F19: 76.18 | G19: 74.62 | H19: 81.52 | I19: 83.08 | J19: 84.97 | K19: 81.2 | L19: 77.75 | M19: 27.19906
A20: 10 | B20: ADANIPORTS | C20: 413.75 | D20: 411.90 | E20: 409.30 | F20: 404.85 | G20: 402.25 | H20: 416.35 | I20: 418.95 | J20: 423.40 | K20: 414.5 | L20: 407.45 | M20: 24.34978
A21: 11 | B21: ADANIPOWER | C21: 61.9 | D21: 61.75 | E21: 61.15 | F21: 60.40 | G21: 59.80 | H21: 62.50 | I21: 63.10 | J21: 63.85 | K21: 62.35 | L21: 61 | M21: 66.91019
A22: 12 | B22: ADANITRANS | C22: 239.15 | D22: 241.45 | E22: 229.90 | F22: 220.65 | G22: 209.10 | H22: 250.70 | I22: 262.25 | J22: 271.50 | K22: 253 | L22: 232.2 | M22: 10.36776
A23: 13 | B23: ABCAPITAL | C23: 77.25 | D23: 77.58 | E23: 76.67 | F23: 76.08 | G23: 75.17 | H23: 78.17 | I23: 79.08 | J23: 79.67 | K23: 78.5 | L23: 77 | M23: 7.29005
A24: 14 | B24: ABFRL | C24: 200 | D24: 201.33 | E24: 196.87 | F24: 193.73 | G24: 189.27 | H24: 204.47 | I24: 208.93 | J24: 212.07 | K24: 205.8 | L24: 198.2 | M24: 4.63568
A25: 15 | B25: ADVENZYMES | C25: 146.9 | D25: 147.02 | E25: 145.88 | F25: 144.87 | G25: 143.73 | H25: 148.03 | I25: 149.17 | J25: 150.18 | K25: 148.15 | L25: 146 | M25: 0.21491
A26: 16 | B26: AEGISCHEM | C26: 169.25 | D26: 168.95 | E26: 164.10 | F26: 158.95 | G26: 154.10 | H26: 174.10 | I26: 178.95 | J26: 184.10 | K26: 173.8 | L26: 163.8 | M26: 1.3092
A27: 17 | B27: AJANTPHARM | C27: 954.8 | D27: 960.02 | E27: 946.03 | F27: 937.27 | G27: 923.28 | H27: 968.78 | I27: 982.77 | J27: 991.53 | K27: 974 | L27: 951.25 | M27: 0.61717
A28: 18 | B28: AKZOINDIA | C28: 1935.35 | D28: 1911.25 | E28: 1875.50 | F28: 1815.65 | G28: 1779.90 | H28: 1971.10 | I28: 2006.85 | J28: 2066.70 | K28: 1947 | L28: 1851.4 | M28: 0.34428
A29: 19 | B29: APLLTD | C29: 528.3 | D29: 530.82 | E29: 521.73 | F29: 515.17 | G29: 506.08 | H29: 537.38 | I29: 546.47 | J29: 553.03 | K29: 539.9 | L29: 524.25 | M29: 0.30995
A30: 20 | B30: ALKEM | C30: 1915.1 | D30: 1925.37 | E30: 1900.73 | F30: 1886.37 | G30: 1861.73 | H30: 1939.73 | I30: 1964.37 | J30: 1978.73 | K30: 1950 | L30: 1911 | M30: 0.19628
A31: 21 | B31: ALBK | C31: 24.9 | D31: 25.02 | E31: 24.48 | F31: 24.07 | G31: 23.53 | H31: 25.43 | I31: 25.97 | J31: 26.38 | K31: 25.55 | L31: 24.6 | M31: 8.44536
A32: 22 | B32: ALLCARGO | C32: 99.8 | D32: 99.67 | E32: 98.38 | F32: 96.97 | G32: 95.68 | H32: 101.08 | I32: 102.37 | J32: 103.78 | K32: 100.95 | L32: 98.25 | M32: 1.10106
A33: 23 | B33: AMARAJABAT | C33: 679.05 | D33: 672.87 | E33: 651.73 | F33: 624.42 | G33: 603.28 | H33: 700.18 | I33: 721.32 | J33: 748.63 | K33: 694 | L33: 645.55 | M33: 13.76409
A34: 24 | B34: AMBER | C34: 928.2 | D34: 931.00 | E34: 922.20 | F34: 916.20 | G34: 907.40 | H34: 937.00 | I34: 945.80 | J34: 951.80 | K34: 939.8 | L34: 925 | M34: 0.10078
A35: 25 | B35: AMBUJACEM | C35: 196.95 | D35: 196.48 | E35: 194.47 | F35: 191.98 | G35: 189.97 | H35: 198.97 | I35: 200.98 | J35: 203.47 | K35: 198.5 | L35: 194 | M35: 26.61814
A36: 26 | B36: ANDHRABANK | C36: 15.65 | D36: 15.57 | E36: 15.13 | F36: 14.62 | G36: 14.18 | H36: 16.08 | I36: 16.52 | J36: 17.03 | K36: 16 | L36: 15.05 | M36: 4.55519
A37: 27 | B37: APOLLOHOSP | C37: 1483.75 | D37: 1476.58 | E37: 1464.17 | F37: 1444.58 | G37: 1432.17 | H37: 1496.17 | I37: 1508.58 | J37: 1528.17 | K37: 1489 | L37: 1457 | M37: 5.94035
A38: 28 | B38: APOLLOTYRE | C38: 173.3 | D38: 171.92 | E38: 170.03 | F38: 166.77 | G38: 164.88 | H38: 175.18 | I38: 177.07 | J38: 180.33 | K38: 173.8 | L38: 168.65 | M38: 16.471
A39: 29 | B39: ARVINDFASN | C39: 430.7 | D39: 430.77 | E39: 426.53 | F39: 422.37 | G39: 418.13 | H39: 434.93 | I39: 439.17 | J39: 443.33 | K39: 435 | L39: 426.6 | M39: 0.10923
A40: 30 | B40: ASHOKLEY | C40: 69.1 | D40: 68.70 | E40: 67.75 | F40: 66.40 | G40: 65.45 | H40: 70.05 | I40: 71.00 | J40: 72.35 | K40: 69.65 | L40: 67.35 | M40: 248.09075
A41: 31 | B41: ASHOKA | C41: 100.75 | D41: 100.50 | E41: 98.50 | F41: 96.25 | G41: 94.25 | H41: 102.75 | I41: 104.75 | J41: 107.00 | K41: 102.5 | L41: 98.25 | M41: 2.34473
A42: 32 | B42: ASIANPAINT | C42: 1803.1 | D42: 1808.03 | E42: 1791.07 | F42: 1779.03 | G42: 1762.07 | H42: 1820.07 | I42: 1837.03 | J42: 1849.07 | K42: 1825 | L42: 1796 | M42: 12.04392
A43: 33 | B43: ASTERDM | C43: 119.2 | D43: 118.68 | E43: 117.57 | F43: 115.93 | G43: 114.82 | H43: 120.32 | I43: 121.43 | J43: 123.07 | K43: 119.8 | L43: 117.05 | M43: 0.2868
A44: 34 | B44: ASTRAZEN | C44: 2134.25 | D44: 2149.08 | E44: 2110.17 | F44: 2086.08 | G44: 2047.17 | H44: 2173.17 | I44: 2212.08 | J44: 2236.17 | K44: 2188 | L44: 2125 | M44: 0.05545
A45: 35 | B45: ASTRAL | C45: 1169.55 | D45: 1166.67 | E45: 1153.38 | F45: 1137.22 | G45: 1123.93 | H45: 1182.83 | I45: 1196.12 | J45: 1212.28 | K45: 1179.95 | L45: 1150.5 | M45: 0.62938
A46: 36 | B46: ATUL | C46: 3973.85 | D46: 3992.22 | E46: 3941.78 | F46: 3909.72 | G46: 3859.28 | H46: 4024.28 | I46: 4074.72 | J46: 4106.78 | K46: 4042.65 | L46: 3960.15 | M46: 0.04983
A47: 37 | B47: AUROPHARMA | C47: 455.35 | D47: 457.65 | E47: 447.70 | F47: 440.05 | G47: 430.10 | H47: 465.30 | I47: 475.25 | J47: 482.90 | K47: 467.6 | L47: 450 | M47: 48.11384
A48: 38 | B48: AVANTIFEED | C48: 379.95 | D48: 378.05 | E48: 374.10 | F48: 368.25 | G48: 364.30 | H48: 383.90 | I48: 387.85 | J48: 393.70 | K48: 382 | L48: 372.2 | M48: 2.07307
A49: 39 | B49: DMART | C49: 1838.7 | D49: 1843.72 | E49: 1812.53 | F49: 1786.37 | G49: 1755.18 | H49: 1869.88 | I49: 1901.07 | J49: 1927.23 | K49: 1874.9 | L49: 1817.55 | M49: 6.24117
A50: 40 | B50: AXISBANK | C50: 690.05 | D50: 688.73 | E50: 682.62 | F50: 675.18 | G50: 669.07 | H50: 696.17 | I50: 702.28 | J50: 709.72 | K50: 694.85 | L50: 681.3 | M50: 92.60732
A51: 41 | B51: BASF | C51: 931.7 | D51: 940.88 | E51: 920.82 | F51: 909.93 | G51: 889.87 | H51: 951.77 | I51: 971.83 | J51: 982.72 | K51: 960.95 | L51: 930 | M51: 0.08245
A52: 42 | B52: BEML | C52: 878.25 | D52: 885.32 | E52: 864.93 | F52: 851.62 | G52: 831.23 | H52: 898.63 | I52: 919.02 | J52: 932.33 | K52: 905.7 | L52: 872 | M52: 4.88608
A53: 43 | B53: BSE | C53: 511.1 | D53: 512.93 | E53: 505.37 | F53: 499.63 | G53: 492.07 | H53: 518.67 | I53: 526.23 | J53: 531.97 | K53: 520.5 | L53: 507.2 | M53: 1.0389
A54: 44 | B54: BAJAJ-AUTO | C54: 3011.95 | D54: 2998.43 | E54: 2966.97 | F54: 2921.98 | G54: 2890.52 | H54: 3043.42 | I54: 3074.88 | J54: 3119.87 | K54: 3029.9 | L54: 2953.45 | M54: 6.36441
A55: 45 | B55: BAJAJCON | C55: 203.65 | D55: 212.52 | E55: 186.23 | F55: 168.82 | G55: 142.53 | H55: 229.93 | I55: 256.22 | J55: 273.63 | K55: 238.8 | L55: 195.1 | M55: 72.94285
A56: 46 | B56: BAJAJELEC | C56: 381.3 | D56: 381.10 | E56: 378.20 | F56: 375.10 | G56: 372.20 | H56: 384.20 | I56: 387.10 | J56: 390.20 | K56: 384 | L56: 378 | M56: 0.36473
A57: 47 | B57: BAJFINANCE | C57: 3879.45 | D57: 3879.48 | E57: 3842.97 | F57: 3806.48 | G57: 3769.97 | H57: 3915.97 | I57: 3952.48 | J57: 3988.97 | K57: 3916 | L57: 3843 | M57: 13.94894
A58: 48 | B58: BAJAJFINSV | C58: 8035.85 | D58: 8059.62 | E58: 7989.23 | F58: 7942.62 | G58: 7872.23 | H58: 8106.23 | I58: 8176.62 | J58: 8223.23 | K58: 8130 | L58: 8013 | M58: 2.17114
A59: 49 | B59: BAJAJHLDNG | C59: 3600 | D59: 3596.80 | E59: 3573.20 | F59: 3546.40 | G59: 3522.80 | H59: 3623.60 | I59: 3647.20 | J59: 3674.00 | K59: 3620.4 | L59: 3570 | M59: 0.12923
A60: 50 | B60: BALKRISIND | C60: 772.35 | D60: 769.82 | E60: 760.53 | F60: 748.72 | G60: 739.43 | H60: 781.63 | I60: 790.92 | J60: 802.73 | K60: 779.1 | L60: 758 | M60: 4.26275
A61: 51 | B61: BALMLAWRIE | C61: 164.65 | D61: 165.48 | E61: 163.17 | F61: 161.68 | G61: 159.37 | H61: 166.97 | I61: 169.28 | J61: 170.77 | K61: 167.8 | L61: 164 | M61: 0.39838
A62: 52 | B62: BALRAMCHIN | C62: 155.1 | D62: 155.35 | E62: 153.75 | F62: 152.40 | G62: 150.80 | H62: 156.70 | I62: 158.30 | J62: 159.65 | K62: 156.95 | L62: 154 | M62: 8.40535
A63: 53 | B63: BANDHANBNK | C63: 623.7 | D63: 610.63 | E63: 583.27 | F63: 542.83 | G63: 515.47 | H63: 651.07 | I63: 678.43 | J63: 718.87 | K63: 638 | L63: 570.2 | M63: 593.02088
A64: 54 | B64: BANKBARODA | C64: 88 | D64: 87.85 | E64: 86.95 | F64: 85.90 | G64: 85.00 | H64: 88.90 | I64: 89.80 | J64: 90.85 | K64: 88.75 | L64: 86.8 | M64: 253.24047
A65: 55 | B65: BANKINDIA | C65: 61.25 | D65: 60.83 | E65: 60.07 | F65: 58.88 | G65: 58.12 | H65: 62.02 | I65: 62.78 | J65: 63.97 | K65: 61.6 | L65: 59.65 | M65: 62.95769
A66: 56 | B66: MAHABANK | C66: 9.35 | D66: 9.40 | E66: 8.60 | F66: 7.85 | G66: 7.05 | H66: 10.15 | I66: 10.95 | J66: 11.70 | K66: 10.2 | L66: 8.65 | M66: 15.46915
A67: 57 | B67: BATAINDIA | C67: 1717.1 | D67: 1720.07 | E67: 1705.13 | F67: 1693.17 | G67: 1678.23 | H67: 1732.03 | I67: 1746.97 | J67: 1758.93 | K67: 1735 | L67: 1708.1 | M67: 4.09419
A68: 58 | B68: BAYERCROP | C68: 3326.5 | D68: 3326.88 | E68: 3306.87 | F68: 3287.23 | G68: 3267.22 | H68: 3346.52 | I68: 3366.53 | J68: 3386.17 | K68: 3346.9 | L68: 3307.25 | M68: 0.07019
A69: 59 | B69: BERGEPAINT | C69: 478.25 | D69: 479.50 | E69: 474.20 | F69: 470.15 | G69: 464.85 | H69: 483.55 | I69: 488.85 | J69: 492.90 | K69: 484.8 | L69: 475.45 | M69: 18.56109
A70: 60 | B70: BDL | C70: 281.35 | D70: 281.72 | E70: 279.63 | F70: 277.92 | G70: 275.83 | H70: 283.43 | I70: 285.52 | J70: 287.23 | K70: 283.8 | L70: 280 | M70: 0.149
A71: 61 | B71: BEL | C71: 110.5 | D71: 109.93 | E71: 108.72 | F71: 106.93 | G71: 105.72 | H71: 111.72 | I71: 112.93 | J71: 114.72 | K71: 111.15 | L71: 108.15 | M71: 85.43399
A72: 62 | B72: BHARATFORG | C72: 428.4 | D72: 430.40 | E72: 423.45 | F72: 418.50 | G72: 411.55 | H72: 435.35 | I72: 442.30 | J72: 447.25 | K72: 437.35 | L72: 425.45 | M72: 12.79522
A73: 63 | B73: BHEL | C73: 42.75 | D73: 42.92 | E73: 42.33 | F73: 41.92 | G73: 41.33 | H73: 43.33 | I73: 43.92 | J73: 44.33 | K73: 43.5 | L73: 42.5 | M73: 169.21189
A74: 64 | B74: BPCL | C74: 490.3 | D74: 490.92 | E74: 487.33 | F74: 484.37 | G74: 480.78 | H74: 493.88 | I74: 497.47 | J74: 500.43 | K74: 494.5 | L74: 487.95 | M74: 58.42162
A75: 65 | B75: BHARTIARTL | C75: 383.65 | D75: 385.72 | E75: 379.48 | F75: 375.32 | G75: 369.08 | H75: 389.88 | I75: 396.12 | J75: 400.28 | K75: 391.95 | L75: 381.55 | M75: 85.8517
A76: 66 | B76: INFRATEL | C76: 256.95 | D76: 257.53 | E76: 254.67 | F76: 252.38 | G76: 249.52 | H76: 259.82 | I76: 262.68 | J76: 264.97 | K76: 260.4 | L76: 255.25 | M76: 18.42773
A77: 67 | B77: BIOCON | C77: 260.3 | D77: 258.05 | E77: 253.50 | F77: 246.70 | G77: 242.15 | H77: 264.85 | I77: 269.40 | J77: 276.20 | K77: 262.6 | L77: 251.25 | M77: 64.84566
A78: 68 | B78: BIRLACORPN | C78: 530.85 | D78: 530.57 | E78: 521.13 | F78: 511.42 | G78: 501.98 | H78: 540.28 | I78: 549.72 | J78: 559.43 | K78: 540 | L78: 520.85 | M78: 4.15031
A79: 69 | B79: BSOFT | C79: 64.45 | D79: 64.12 | E79: 63.48 | F79: 62.52 | G79: 61.88 | H79: 65.08 | I79: 65.72 | J79: 66.68 | K79: 64.75 | L79: 63.15 | M79: 4.42495
A80: 70 | B80: BLISSGVS | C80: 107.2 | D80: 106.52 | E80: 105.53 | F80: 103.87 | G80: 102.88 | H80: 108.18 | I80: 109.17 | J80: 110.83 | K80: 107.5 | L80: 104.85 | M80: 0.44974
A81: 71 | B81: BLUEDART | C81: 2272.45 | D81: 2276.87 | E81: 2249.63 | F81: 2226.82 | G81: 2199.58 | H81: 2299.68 | I81: 2326.92 | J81: 2349.73 | K81: 2304.1 | L81: 2254.05 | M81: 0.02396
A82: 72 | B82: BLUESTARCO | C82: 790.05 | D82: 795.00 | E82: 772.55 | F82: 755.05 | G82: 732.60 | H82: 812.50 | I82: 834.95 | J82: 852.45 | K82: 817.45 | L82: 777.5 | M82: 0.32079
A83: 73 | B83: BBTC | C83: 1190.15 | D83: 1182.40 | E83: 1156.80 | F83: 1123.45 | G83: 1097.85 | H83: 1215.75 | I83: 1241.35 | J83: 1274.70 | K83: 1208 | L83: 1149.05 | M83: 3.55573
A84: 74 | B84: BOMDYEING | C84: 71.15 | D84: 71.60 | E84: 69.85 | F84: 68.55 | G84: 66.80 | H84: 72.90 | I84: 74.65 | J84: 75.95 | K84: 73.35 | L84: 70.3 | M84: 18.69371
A85: 75 | B85: BOSCHLTD | C85: 13853.2 | D85: 13716.73 | E85: 13486.47 | F85: 13119.73 | G85: 12889.47 | H85: 14083.47 | I85: 14313.73 | J85: 14680.47 | K85: 13947 | L85: 13350 | M85: 0.31448
A86: 76 | B86: BRIGADE | C86: 190.25 | D86: 189.75 | E86: 187.05 | F86: 183.85 | G86: 181.15 | H86: 192.95 | I86: 195.65 | J86: 198.85 | K86: 192.45 | L86: 186.55 | M86: 0.76874
A87: 77 | B87: BRITANNIA | C87: 3181.1 | D87: 3162.37 | E87: 3131.08 | F87: 3081.07 | G87: 3049.78 | H87: 3212.38 | I87: 3243.67 | J87: 3293.68 | K87: 3193.65 | L87: 3112.35 | M87: 5.83008
A88: 78 | B88: CARERATING | C88: 529.05 | D88: 528.72 | E88: 517.43 | F88: 505.82 | G88: 494.53 | H88: 540.33 | I88: 551.62 | J88: 563.23 | K88: 540 | L88: 517.1 | M88: 0.38852
A89: 79 | B89: CCL | C89: 235.85 | D89: 236.12 | E89: 232.23 | F89: 228.62 | G89: 224.73 | H89: 239.73 | I89: 243.62 | J89: 247.23 | K89: 240 | L89: 232.5 | M89: 0.19906
A90: 80 | B90: CESC | C90: 782.45 | D90: 778.78 | E90: 772.67 | F90: 762.88 | G90: 756.77 | H90: 788.57 | I90: 794.68 | J90: 804.47 | K90: 784.9 | L90: 769 | M90: 5.48331
A91: 81 | B91: CGPOWER | C91: 13.1 | D91: 13.27 | E91: 12.88 | F91: 12.67 | G91: 12.28 | H91: 13.48 | I91: 13.87 | J91: 14.08 | K91: 13.65 | L91: 13.05 | M91: 3.77351
A92: 82 | B92: CRISIL | C92: 1330 | D92: 1310.43 | E92: 1275.87 | F92: 1221.73 | G92: 1187.17 | H92: 1364.57 | I92: 1399.13 | J92: 1453.27 | K92: 1345 | L92: 1256.3 | M92: 0.15833
A93: 83 | B93: CADILAHC | C93: 234.45 | D93: 233.90 | E93: 232.95 | F93: 231.45 | G93: 230.50 | H93: 235.40 | I93: 236.35 | J93: 237.85 | K93: 234.85 | L93: 232.4 | M93: 4.88532
A94: 84 | B94: CANFINHOME | C94: 382.55 | D94: 383.35 | E94: 379.80 | F94: 377.05 | G94: 373.50 | H94: 386.10 | I94: 389.65 | J94: 392.40 | K94: 386.9 | L94: 380.6 | M94: 1.43749
A95: 85 | B95: CANBK | C95: 180.6 | D95: 179.75 | E95: 177.65 | F95: 174.70 | G95: 172.60 | H95: 182.70 | I95: 184.80 | J95: 187.75 | K95: 181.85 | L95: 176.8 | M95: 67.16299
A96: 86 | B96: CAPLIPOINT | C96: 398.4 | D96: 398.90 | E96: 394.50 | F96: 390.60 | G96: 386.20 | H96: 402.80 | I96: 407.20 | J96: 411.10 | K96: 403.3 | L96: 395 | M96: 0.13353
A97: 87 | B97: CGCL | C97: 203.45 | D97: 203.32 | E97: 201.18 | F97: 198.92 | G97: 196.78 | H97: 205.58 | I97: 207.72 | J97: 209.98 | K97: 205.45 | L97: 201.05 | M97: 3.24603
A98: 88 | B98: CARBORUNIV | C98: 286 | D98: 287.67 | E98: 283.33 | F98: 280.67 | G98: 276.33 | H98: 290.33 | I98: 294.67 | J98: 297.33 | K98: 292 | L98: 285 | M98: 0.47524
A99: 89 | B99: CASTROLIND | C99: 133.8 | D99: 133.93 | E99: 133.02 | F99: 132.23 | G99: 131.32 | H99: 134.72 | I99: 135.63 | J99: 136.42 | K99: 134.85 | L99: 133.15 | M99: 30.1164
A100: 90 | B100: CEATLTD | C100: 935.95 | D100: 935.90 | E100: 929.80 | F100: 923.65 | G100: 917.55 | H100: 942.05 | I100: 948.15 | J100: 954.30 | K100: 942 | L100: 929.75 | M100: 0.48816
A101: 91 | B101: CENTRALBK | C101: 16.9 | D101: 16.93 | E101: 16.72 | F101: 16.53 | G101: 16.32 | H101: 17.12 | I101: 17.33 | J101: 17.52 | K101: 17.15 | L101: 16.75 | M101: 1.97055
A102: 92 | B102: CDSL | C102: 205.8 | D102: 207.00 | E102: 204.00 | F102: 202.20 | G102: 199.20 | H102: 208.80 | I102: 211.80 | J102: 213.60 | K102: 210 | L102: 205.2 | M102: 2.1133
A103: 93 | B103: CENTURYPLY | C103: 157.5 | D103: 158.40 | E103: 154.60 | F103: 151.70 | G103: 147.90 | H103: 161.30 | I103: 165.10 | J103: 168.00 | K103: 162.2 | L103: 155.5 | M103: 1.65634
A104: 94 | B104: CERA | C104: 2424.6 | D104: 2441.22 | E104: 2393.38 | F104: 2362.17 | G104: 2314.33 | H104: 2472.43 | I104: 2520.27 | J104: 2551.48 | K104: 2489.05 | L104: 2410 | M104: 0.22668
A105: 95 | B105: CHALET | C105: 314.4 | D105: 315.47 | E105: 310.98 | F105: 307.57 | G105: 303.08 | H105: 318.88 | I105: 323.37 | J105: 326.78 | K105: 319.95 | L105: 312.05 | M105: 0.21008
A106: 96 | B106: CHAMBLFERT | C106: 145.55 | D106: 146.35 | E106: 143.95 | F106: 142.35 | G106: 139.95 | H106: 147.95 | I106: 150.35 | J106: 151.95 | K106: 148.75 | L106: 144.75 | M106: 0.85377
A107: 97 | B107: CHENNPETRO | C107: 155.3 | D107: 155.65 | E107: 153.65 | F107: 152.00 | G107: 150.00 | H107: 157.30 | I107: 159.30 | J107: 160.95 | K107: 157.65 | L107: 154 | M107: 1.25914
A108: 98 | B108: CHOLAHLDNG | C108: 465.95 | D108: 468.62 | E108: 460.33 | F108: 454.72 | G108: 446.43 | H108: 474.23 | I108: 482.52 | J108: 488.13 | K108: 476.9 | L108: 463 | M108: 0.26602
A109: 99 | B109: CHOLAFIN | C109: 279.85 | D109: 281.02 | E109: 275.13 | F109: 270.42 | G109: 264.53 | H109: 285.73 | I109: 291.62 | J109: 296.33 | K109: 286.9 | L109: 276.3 | M109: 17.23921
A110: 100 | B110: CIPLA | C110: 446.55 | D110: 443.47 | E110: 438.43 | F110: 430.32 | G110: 425.28 | H110: 451.58 | I110: 456.62 | J110: 464.73 | K110: 448.5 | L110: 435.35 | M110: 31.53015
A111: 101 | B111: CUB | C111: 213.95 | D111: 215.13 | E111: 211.32 | F111: 208.68 | G111: 204.87 | H111: 217.77 | I111: 221.58 | J111: 224.22 | K111: 218.95 | L111: 212.5 | M111: 4.04695
A112: 102 | B112: COALINDIA | C112: 191.15 | D112: 190.63 | E112: 188.57 | F112: 185.98 | G112: 183.92 | H112: 193.22 | I112: 195.28 | J112: 197.87 | K112: 192.7 | L112: 188.05 | M112: 54.59056
A113: 103 | B113: COCHINSHIP | C113: 331.85 | D113: 333.38 | E113: 329.82 | F113: 327.78 | G113: 324.22 | H113: 335.42 | I113: 338.98 | J113: 341.02 | K113: 336.95 | L113: 331.35 | M113: 0.36274
A114: 104 | B114: COFFEEDAY | C114: 36.1 | D114: 36.72 | E114: 35.48 | F114: 34.87 | G114: 33.63 | H114: 37.33 | I114: 38.57 | J114: 39.18 | K114: 37.95 | L114: 36.1 | M114: 5.69409
A115: 105 | B115: COLPAL | C115: 1557.6 | D115: 1551.82 | E115: 1533.78 | F115: 1509.97 | G115: 1491.93 | H115: 1575.63 | I115: 1593.67 | J115: 1617.48 | K115: 1569.85 | L115: 1528 | M115: 10.9328
A116: 106 | B116: CONCOR | C116: 595 | D116: 591.82 | E116: 585.63 | F116: 576.27 | G116: 570.08 | H116: 601.18 | I116: 607.37 | J116: 616.73 | K116: 598 | L116: 582.45 | M116: 32.21765
A117: 107 | B117: COROMANDEL | C117: 406.95 | D117: 405.88 | E117: 401.42 | F117: 395.88 | G117: 391.42 | H117: 411.42 | I117: 415.88 | J117: 421.42 | K117: 410.35 | L117: 400.35 | M117: 3.28308
A118: 108 | B118: CORPBANK | C118: 13.75 | D118: 13.87 | E118: 13.58 | F118: 13.42 | G118: 13.13 | H118: 14.03 | I118: 14.32 | J118: 14.48 | K118: 14.15 | L118: 13.7 | M118: 1.90055
A119: 109 | B119: COX&KINGS | C119: 2.6 | D119: 2.60 | E119: 2.60 | F119: 2.60 | G119: 2.60 | H119: 2.60 | I119: 2.60 | J119: 2.60 | K119: 2.6 | L119: 2.6 | M119: 0.63907
A120: 110 | B120: CREDITACC | C120: 618.8 | D120: 621.87 | E120: 613.23 | F120: 607.67 | G120: 599.03 | H120: 627.43 | I120: 636.07 | J120: 641.63 | K120: 630.5 | L120: 616.3 | M120: 0.27747
A121: 111 | B121: CROMPTON | C121: 253.15 | D121: 252.52 | E121: 249.28 | F121: 245.42 | G121: 242.18 | H121: 256.38 | I121: 259.62 | J121: 263.48 | K121: 255.75 | L121: 248.65 | M121: 7.67892
A122: 112 | B122: CUMMINSIND | C122: 569.3 | D122: 569.25 | E122: 563.60 | F122: 557.90 | G122: 552.25 | H122: 574.95 | I122: 580.60 | J122: 586.30 | K122: 574.9 | L122: 563.55 | M122: 1.40162
A123: 113 | B123: CYIENT | C123: 455.3 | D123: 456.77 | E123: 450.08 | F123: 444.87 | G123: 438.18 | H123: 461.98 | I123: 468.67 | J123: 473.88 | K123: 463.45 | L123: 451.55 | M123: 1.79155
A124: 114 | B124: DBCORP | C124: 146.8 | D124: 146.38 | E124: 143.87 | F124: 140.93 | G124: 138.42 | H124: 149.32 | I124: 151.83 | J124: 154.77 | K124: 148.9 | L124: 143.45 | M124: 0.45068
A125: 115 | B125: DCBBANK | C125: 180.95 | D125: 182.30 | E125: 178.65 | F125: 176.35 | G125: 172.70 | H125: 184.60 | I125: 188.25 | J125: 190.55 | K125: 185.95 | L125: 180 | M125: 5.24585
A126: 116 | B126: DCMSHRIRAM | C126: 375.25 | D126: 373.52 | E126: 369.18 | F126: 363.12 | G126: 358.78 | H126: 379.58 | I126: 383.92 | J126: 389.98 | K126: 377.85 | L126: 367.45 | M126: 0.67641
A127: 117 | B127: DLF | C127: 156.15 | D127: 155.85 | E127: 152.30 | F127: 148.45 | G127: 144.90 | H127: 159.70 | I127: 163.25 | J127: 167.10 | K127: 159.4 | L127: 152 | M127: 80.60089
A128: 118 | B128: DABUR | C128: 450 | D128: 452.15 | E128: 445.25 | F128: 440.50 | G128: 433.60 | H128: 456.90 | I128: 463.80 | J128: 468.55 | K128: 459.05 | L128: 447.4 | M128: 27.46832
A129: 119 | B129: DALBHARAT | C129: 808.8 | D129: 808.02 | E129: 800.03 | F129: 791.27 | G129: 783.28 | H129: 816.78 | I129: 824.77 | J129: 833.53 | K129: 816 | L129: 799.25 | M129: 2.42468
A130: 120 | B130: DEEPAKNTR | C130: 299.7 | D130: 300.68 | E130: 294.67 | F130: 289.63 | G130: 283.62 | H130: 305.72 | I130: 311.73 | J130: 316.77 | K130: 306.7 | L130: 295.65 | M130: 1.00802
A131: 121 | B131: DELTACORP | C131: 170.85 | D131: 169.60 | E131: 166.20 | F131: 161.55 | G131: 158.15 | H131: 174.25 | I131: 177.65 | J131: 182.30 | K131: 173 | L131: 164.95 | M131: 11.60063
A132: 122 | B132: DEN | C132: 50.55 | D132: 50.82 | E132: 49.13 | F132: 47.72 | G132: 46.03 | H132: 52.23 | I132: 53.92 | J132: 55.33 | K132: 52.5 | L132: 49.4 | M132: 0.45765
A133: 123 | B133: DHFL | C133: 21.25 | D133: 21.88 | E133: 20.47 | F133: 19.68 | G133: 18.27 | H133: 22.67 | I133: 24.08 | J133: 24.87 | K133: 23.3 | L133: 21.1 | M133: 84.29469
A134: 124 | B134: DBL | C134: 388.45 | D134: 391.37 | E134: 380.08 | F134: 371.72 | G134: 360.43 | H134: 399.73 | I134: 411.02 | J134: 419.38 | K134: 402.65 | L134: 383 | M134: 8.32435
A135: 125 | B135: DISHTV | C135: 16.9 | D135: 16.82 | E135: 16.23 | F135: 15.57 | G135: 14.98 | H135: 17.48 | I135: 18.07 | J135: 18.73 | K135: 17.4 | L135: 16.15 | M135: 270.17372
A136: 126 | B136: DCAL | C136: 160.8 | D136: 160.53 | E136: 157.57 | F136: 154.33 | G136: 151.37 | H136: 163.77 | I136: 166.73 | J136: 169.97 | K136: 163.5 | L136: 157.3 | M136: 0.47248
A137: 127 | B137: DIVISLAB | C137: 1693.1 | D137: 1691.32 | E137: 1680.83 | F137: 1668.57 | G137: 1658.08 | H137: 1703.58 | I137: 1714.07 | J137: 1726.33 | K137: 1701.8 | L137: 1679.05 | M137: 5.45212
A138: 128 | B138: DIXON | C138: 3052.85 | D138: 3069.80 | E138: 3014.60 | F138: 2976.35 | G138: 2921.15 | H138: 3108.05 | I138: 3163.25 | J138: 3201.50 | K138: 3125 | L138: 3031.55 | M138: 0.04079
A139: 129 | B139: LALPATHLAB | C139: 1373.8 | D139: 1376.72 | E139: 1358.38 | F139: 1342.97 | G139: 1324.63 | H139: 1392.13 | I139: 1410.47 | J139: 1425.88 | K139: 1395.05 | L139: 1361.3 | M139: 0.25868
A140: 130 | B140: DRREDDY | C140: 2684.65 | D140: 2678.70 | E140: 2660.50 | F140: 2636.35 | G140: 2618.15 | H140: 2702.85 | I140: 2721.05 | J140: 2745.20 | K140: 2696.9 | L140: 2654.55 | M140: 3.42159
A141: 131 | B141: EIDPARRY | C141: 154.55 | D141: 154.73 | E141: 152.57 | F141: 150.58 | G141: 148.42 | H141: 156.72 | I141: 158.88 | J141: 160.87 | K141: 156.9 | L141: 152.75 | M141: 0.56725
A142: 132 | B142: EIHOTEL | C142: 170.55 | D142: 172.10 | E142: 167.95 | F142: 165.35 | G142: 161.20 | H142: 174.70 | I142: 178.85 | J142: 181.45 | K142: 176.25 | L142: 169.5 | M142: 1.38313
A143: 133 | B143: EDELWEISS | C143: 75.8 | D143: 75.78 | E143: 73.82 | F143: 71.83 | G143: 69.87 | H143: 77.77 | I143: 79.73 | J143: 81.72 | K143: 77.75 | L143: 73.8 | M143: 33.43086
A144: 134 | B144: EICHERMOT | C144: 19199.1 | D144: 18928.03 | E144: 18556.07 | F144: 17913.03 | G144: 17541.07 | H144: 19571.07 | I144: 19943.03 | J144: 20586.07 | K144: 19300 | L144: 18285 | M144: 2.30411
A145: 135 | B145: ELGIEQUIP | C145: 275.75 | D145: 275.90 | E145: 271.85 | F145: 267.95 | G145: 263.90 | H145: 279.80 | I145: 283.85 | J145: 287.75 | K145: 279.95 | L145: 272 | M145: 0.33538
A146: 136 | B146: EMAMILTD | C146: 302.3 | D146: 302.45 | E146: 299.90 | F146: 297.50 | G146: 294.95 | H146: 304.85 | I146: 307.40 | J146: 309.80 | K146: 305 | L146: 300.05 | M146: 4.4537
A147: 137 | B147: ENDURANCE | C147: 1007.5 | D147: 1000.95 | E147: 988.05 | F147: 968.60 | G147: 955.70 | H147: 1020.40 | I147: 1033.30 | J147: 1052.75 | K147: 1013.85 | L147: 981.5 | M147: 0.08575
A148: 138 | B148: ENGINERSIN | C148: 107.25 | D148: 106.83 | E148: 106.02 | F148: 104.78 | G148: 103.97 | H148: 108.07 | I148: 108.88 | J148: 110.12 | K148: 107.65 | L148: 105.6 | M148: 8.58989
A149: 139 | B149: EQUITAS | C149: 101.4 | D149: 100.72 | E149: 99.68 | F149: 97.97 | G149: 96.93 | H149: 102.43 | I149: 103.47 | J149: 105.18 | K149: 101.75 | L149: 99 | M149: 15.67645
A150: 140 | B150: ERIS | C150: 424.8 | D150: 425.60 | E150: 415.30 | F150: 405.80 | G150: 395.50 | H150: 435.10 | I150: 445.40 | J150: 454.90 | K150: 435.9 | L150: 416.1 | M150: 0.35199
A151: 141 | B151: ESCORTS | C151: 630.15 | D151: 624.70 | E151: 614.55 | F151: 598.95 | G151: 588.80 | H151: 640.30 | I151: 650.45 | J151: 666.05 | K151: 634.85 | L151: 609.1 | M151: 45.12846
A152: 142 | B152: ESSELPACK | C152: 115.65 | D152: 116.05 | E152: 114.10 | F152: 112.55 | G152: 110.60 | H152: 117.60 | I152: 119.55 | J152: 121.10 | K152: 118 | L152: 114.5 | M152: 0.32876
A153: 143 | B153: EXIDEIND | C153: 187.45 | D153: 186.70 | E153: 183.90 | F153: 180.35 | G153: 177.55 | H153: 190.25 | I153: 193.05 | J153: 196.60 | K153: 189.5 | L153: 183.15 | M153: 25.9807
A154: 144 | B154: FDC | C154: 159.35 | D154: 159.83 | E154: 157.67 | F154: 155.98 | G154: 153.82 | H154: 161.52 | I154: 163.68 | J154: 165.37 | K154: 162 | L154: 158.15 | M154: 0.66657
A155: 145 | B155: FEDERALBNK | C155: 84.95 | D155: 84.18 | E155: 82.47 | F155: 79.98 | G155: 78.27 | H155: 86.67 | I155: 88.38 | J155: 90.87 | K155: 85.9 | L155: 81.7 | M155: 96.62559
A156: 146 | B156: FMGOETZE | C156: 546.9 | D156: 548.32 | E156: 531.63 | F156: 516.37 | G156: 499.68 | H156: 563.58 | I156: 580.27 | J156: 595.53 | K156: 565 | L156: 533.05 | M156: 0.03912
A157: 147 | B157: FINEORG | C157: 1882.9 | D157: 1888.33 | E157: 1846.62 | F157: 1810.33 | G157: 1768.62 | H157: 1924.62 | I157: 1966.33 | J157: 2002.62 | K157: 1930.05 | L157: 1852.05 | M157: 0.42835
A158: 148 | B158: FINCABLES | C158: 350.5 | D158: 350.55 | E158: 347.30 | F158: 344.10 | G158: 340.85 | H158: 353.75 | I158: 357.00 | J158: 360.20 | K158: 353.8 | L158: 347.35 | M158: 1.08707
A159: 149 | B159: FINPIPE | C159: 591.55 | D159: 591.60 | E159: 585.20 | F159: 578.85 | G159: 572.45 | H159: 597.95 | I159: 604.35 | J159: 610.70 | K159: 598 | L159: 585.25 | M159: 0.19192
A160: 150 | B160: FSL | C160: 45.7 | D160: 45.77 | E160: 45.33 | F160: 44.97 | G160: 44.53 | H160: 46.13 | I160: 46.57 | J160: 46.93 | K160: 46.2 | L160: 45.4 | M160: 12.23177
A161: 151 | B161: FORTIS | C161: 136.05 | D161: 135.33 | E161: 133.97 | F161: 131.88 | G161: 130.52 | H161: 137.42 | I161: 138.78 | J161: 140.87 | K161: 136.7 | L161: 133.25 | M161: 29.18078
A162: 152 | B162: FCONSUMER | C162: 24.65 | D162: 24.28 | E162: 23.72 | F162: 22.78 | G162: 22.22 | H162: 25.22 | I162: 25.78 | J162: 26.72 | K162: 24.85 | L162: 23.35 | M162: 8.64153
A163: 153 | B163: FLFL | C163: 414.05 | D163: 412.68 | E163: 401.37 | F163: 388.68 | G163: 377.37 | H163: 425.37 | I163: 436.68 | J163: 449.37 | K163: 424 | L163: 400 | M163: 2.00702
A164: 154 | B164: FRETAIL | C164: 380.05 | D164: 378.15 | E164: 372.30 | F164: 364.55 | G164: 358.70 | H164: 385.90 | I164: 391.75 | J164: 399.50 | K164: 384 | L164: 370.4 | M164: 2.56306
A165: 155 | B165: GAIL | C165: 128.1 | D165: 127.60 | E165: 126.05 | F165: 124.00 | G165: 122.45 | H165: 129.65 | I165: 131.20 | J165: 133.25 | K165: 129.15 | L165: 125.55 | M165: 101.31996
A166: 156 | B166: GEPIL | C166: 698.75 | D166: 702.97 | E166: 687.93 | F166: 677.12 | G166: 662.08 | H166: 713.78 | I166: 728.82 | J166: 739.63 | K166: 718 | L166: 692.15 | M166: 0.24539
A167: 157 | B167: GET&D | C167: 173.85 | D167: 172.63 | E167: 169.27 | F167: 164.68 | G167: 161.32 | H167: 177.22 | I167: 180.58 | J167: 185.17 | K167: 176 | L167: 168.05 | M167: 0.19301
A168: 158 | B168: GHCL | C168: 205.2 | D168: 206.00 | E168: 204.20 | F168: 203.20 | G168: 201.40 | H168: 207.00 | I168: 208.80 | J168: 209.80 | K168: 207.8 | L168: 205 | M168: 0.27983
A169: 159 | B169: GMRINFRA | C169: 17.3 | D169: 17.22 | E169: 17.08 | F169: 16.87 | G169: 16.73 | H169: 17.43 | I169: 17.57 | J169: 17.78 | K169: 17.35 | L169: 17 | M169: 84.08087
A170: 160 | B170: GALAXYSURF | C170: 1463.7 | D170: 1473.40 | E170: 1448.30 | F170: 1432.90 | G170: 1407.80 | H170: 1488.80 | I170: 1513.90 | J170: 1529.30 | K170: 1498.5 | L170: 1458 | M170: 0.04636
A171: 161 | B171: GARFIBRES | C171: 1143.95 | D171: 1146.27 | E171: 1124.68 | F171: 1105.42 | G171: 1083.83 | H171: 1165.53 | I171: 1187.12 | J171: 1206.38 | K171: 1167.85 | L171: 1127 | M171: 0.01803
A172: 162 | B172: GAYAPROJ | C172: 110.75 | D172: 110.23 | E172: 108.52 | F172: 106.28 | G172: 104.57 | H172: 112.47 | I172: 114.18 | J172: 116.42 | K172: 111.95 | L172: 108 | M172: 0.2936
A173: 163 | B173: GICRE | C173: 217.2 | D173: 214.95 | E173: 208.40 | F173: 199.60 | G173: 193.05 | H173: 223.75 | I173: 230.30 | J173: 239.10 | K173: 221.5 | L173: 206.15 | M173: 0.83131
A174: 164 | B174: GILLETTE | C174: 7283.2 | D174: 7268.87 | E174: 7225.73 | F174: 7168.27 | G174: 7125.13 | H174: 7326.33 | I174: 7369.47 | J174: 7426.93 | K174: 7312 | L174: 7211.4 | M174: 0.03086
A175: 165 | B175: GLAXO | C175: 1433.15 | D175: 1425.57 | E175: 1405.68 | F175: 1378.22 | G175: 1358.33 | H175: 1453.03 | I175: 1472.92 | J175: 1500.38 | K175: 1445.45 | L175: 1398.1 | M175: 0.43272
A176: 166 | B176: GLENMARK | C176: 286.45 | D176: 283.70 | E176: 280.00 | F176: 273.55 | G176: 269.85 | H176: 290.15 | I176: 293.85 | J176: 300.30 | K176: 287.4 | L176: 277.25 | M176: 12.48986
A177: 167 | B177: GODFRYPHLP | C177: 1015.95 | D177: 1021.25 | E177: 1002.70 | F177: 989.45 | G177: 970.90 | H177: 1034.50 | I177: 1053.05 | J177: 1066.30 | K177: 1039.8 | L177: 1008 | M177: 0.82194
A178: 168 | B178: GODREJAGRO | C178: 482.85 | D178: 480.72 | E178: 475.13 | F178: 467.42 | G178: 461.83 | H178: 488.43 | I178: 494.02 | J178: 501.73 | K178: 486.3 | L178: 473 | M178: 0.26276
A179: 169 | B179: GODREJCP | C179: 689.75 | D179: 689.60 | E179: 684.20 | F179: 678.65 | G179: 673.25 | H179: 695.15 | I179: 700.55 | J179: 706.10 | K179: 695 | L179: 684.05 | M179: 7.97085
A180: 170 | B180: GODREJIND | C180: 382.7 | D180: 382.28 | E180: 380.57 | F180: 378.43 | G180: 376.72 | H180: 384.42 | I180: 386.13 | J180: 388.27 | K180: 384 | L180: 380.15 | M180: 0.68988
A181: 171 | B181: GODREJPROP | C181: 987.2 | D181: 989.18 | E181: 973.97 | F181: 960.73 | G181: 945.52 | H181: 1002.42 | I181: 1017.63 | J181: 1030.87 | K181: 1004.4 | L181: 975.95 | M181: 0.94817
A182: 172 | B182: GRANULES | C182: 96.8 | D182: 97.97 | E182: 94.98 | F182: 93.17 | G182: 90.18 | H182: 99.78 | I182: 102.77 | J182: 104.58 | K182: 100.95 | L182: 96.15 | M182: 3.17694
A183: 173 | B183: GRAPHITE | C183: 269.35 | D183: 269.38 | E183: 264.97 | F183: 260.58 | G183: 256.17 | H183: 273.77 | I183: 278.18 | J183: 282.57 | K183: 273.8 | L183: 265 | M183: 8.15435
A184: 174 | B184: GRASIM | C184: 703.7 | D184: 700.32 | E184: 694.48 | F184: 685.27 | G184: 679.43 | H184: 709.53 | I184: 715.37 | J184: 724.58 | K184: 706.15 | L184: 691.1 | M184: 9.39647
A185: 175 | B185: GESHIP | C185: 289.7 | D185: 290.55 | E185: 286.65 | F185: 283.60 | G185: 279.70 | H185: 293.60 | I185: 297.50 | J185: 300.55 | K185: 294.45 | L185: 287.5 | M185: 1.98042
A186: 176 | B186: GREAVESCOT | C186: 128.15 | D186: 129.53 | E186: 126.22 | F186: 124.28 | G186: 120.97 | H186: 131.47 | I186: 134.78 | J186: 136.72 | K186: 132.85 | L186: 127.6 | M186: 1.61654
A187: 177 | B187: GRINDWELL | C187: 589.7 | D187: 590.93 | E187: 581.92 | F187: 574.13 | G187: 565.12 | H187: 598.72 | I187: 607.73 | J187: 615.52 | K187: 599.95 | L187: 583.15 | M187: 0.05874
A188: 178 | B188: GUJALKALI | C188: 428.6 | D188: 427.22 | E188: 418.88 | F188: 409.17 | G188: 400.83 | H188: 436.93 | I188: 445.27 | J188: 454.98 | K188: 435.55 | L188: 417.5 | M188: 0.1944
A189: 179 | B189: GUJGASLTD | C189: 175.1 | D189: 174.45 | E189: 173.45 | F189: 171.80 | G189: 170.80 | H189: 176.10 | I189: 177.10 | J189: 178.75 | K189: 175.45 | L189: 172.8 | M189: 2.86829
A190: 180 | B190: GMDCLTD | C190: 57.75 | D190: 57.53 | E190: 57.07 | F190: 56.38 | G190: 55.92 | H190: 58.22 | I190: 58.68 | J190: 59.37 | K190: 58 | L190: 56.85 | M190: 0.88929
A191: 181 | B191: GNFC | C191: 197.05 | D191: 198.08 | E191: 190.47 | F191: 183.88 | G191: 176.27 | H191: 204.67 | I191: 212.28 | J191: 218.87 | K191: 205.7 | L191: 191.5 | M191: 2.39606
A192: 182 | B192: GPPL | C192: 79.2 | D192: 79.60 | E192: 78.60 | F192: 78.00 | G192: 77.00 | H192: 80.20 | I192: 81.20 | J192: 81.80 | K192: 80.6 | L192: 79 | M192: 1.55276
A193: 183 | B193: GSFC | C193: 75.85 | D193: 76.35 | E193: 74.95 | F193: 74.05 | G193: 72.65 | H193: 77.25 | I193: 78.65 | J193: 79.55 | K193: 77.75 | L193: 75.45 | M193: 2.95047
A194: 184 | B194: GSPL | C194: 207.65 | D194: 208.57 | E194: 206.33 | F194: 205.02 | G194: 202.78 | H194: 209.88 | I194: 212.12 | J194: 213.43 | K194: 210.8 | L194: 207.25 | M194: 1.45486
A195: 185 | B195: GULFOILLUB | C195: 876.75 | D195: 880.58 | E195: 871.17 | F195: 865.58 | G195: 856.17 | H195: 886.17 | I195: 895.58 | J195: 901.17 | K195: 890 | L195: 875 | M195: 0.03052
A196: 186 | B196: HEG | C196: 879.9 | D196: 874.95 | E196: 836.20 | F196: 792.50 | G196: 753.75 | H196: 918.65 | I196: 957.40 | J196: 1001.10 | K196: 913.7 | L196: 831.25 | M196: 3.29428
A197: 187 | B197: HCLTECH | C197: 1084.5 | D197: 1087.70 | E197: 1076.25 | F197: 1068.00 | G197: 1056.55 | H197: 1095.95 | I197: 1107.40 | J197: 1115.65 | K197: 1099.15 | L197: 1079.45 | M197: 15.01035
A198: 188 | B198: HDFCAMC | C198: 2705 | D198: 2716.87 | E198: 2689.73 | F198: 2674.47 | G198: 2647.33 | H198: 2732.13 | I198: 2759.27 | J198: 2774.53 | K198: 2744 | L198: 2701.6 | M198: 2.34345
A199: 189 | B199: HDFCBANK | C199: 1223.05 | D199: 1218.30 | E199: 1211.60 | F199: 1200.15 | G199: 1193.45 | H199: 1229.75 | I199: 1236.45 | J199: 1247.90 | K199: 1225 | L199: 1206.85 | M199: 42.00187
A200: 190 | B200: HDFCLIFE | C200: 592.75 | D200: 589.73 | E200: 583.62 | F200: 574.48 | G200: 568.37 | H200: 598.87 | I200: 604.98 | J200: 614.12 | K200: 595.85 | L200: 580.6 | M200: 14.29097
A201: 191 | B201: HATHWAY | C201: 21.55 | D201: 21.43 | E201: 21.32 | F201: 21.08 | G201: 20.97 | H201: 21.67 | I201: 21.78 | J201: 22.02 | K201: 21.55 | L201: 21.2 | M201: 1.106
A202: 192 | B202: HATSUN | C202: 623.45 | D202: 623.60 | E202: 619.85 | F202: 616.25 | G202: 612.50 | H202: 627.20 | I202: 630.95 | J202: 634.55 | K202: 627.35 | L202: 620 | M202: 0.03348
A203: 193 | B203: HAVELLS | C203: 666.9 | D203: 665.83 | E203: 656.27 | F203: 645.63 | G203: 636.07 | H203: 676.47 | I203: 686.03 | J203: 696.67 | K203: 675.4 | L203: 655.2 | M203: 14.02183
A204: 194 | B204: HEIDELBERG | C204: 180.9 | D204: 181.98 | E204: 179.22 | F204: 177.53 | G204: 174.77 | H204: 183.67 | I204: 186.43 | J204: 188.12 | K204: 184.75 | L204: 180.3 | M204: 1.30139
A205: 195 | B205: HERITGFOOD | C205: 325.55 | D205: 324.95 | E205: 319.65 | F205: 313.75 | G205: 308.45 | H205: 330.85 | I205: 336.15 | J205: 342.05 | K205: 330.25 | L205: 319.05 | M205: 0.19619
A206: 196 | B206: HEROMOTOCO | C206: 2675.7 | D206: 2661.88 | E206: 2623.82 | F206: 2571.93 | G206: 2533.87 | H206: 2713.77 | I206: 2751.83 | J206: 2803.72 | K206: 2699.95 | L206: 2610 | M206: 10.11239
... 320 more rows

Sheet Bulk Deals
E6: Back To Main Page
A7: Subject : | B7: BULK DEAL | D7: =Main!B10 -> 2019-10-16
A9: Date | B9: Scrip code | C9: Scrip Name | D9: Client Name | E9: Buy / Sell | F9: Quantity Traded | G9: Trade Price / Wt.Avg.trade price | H9: Exchange
A10: 2019-10-15 | B10: 542721 | C10: ARL | D10: BHANSALI MAFATLAL KALIDAS(HUF) | E10: SELL | F10: 76,000 | G10: 34.30 | H10: BSE
A11: 2019-10-15 | B11: 533229 | C11: BAJAJCON | D11: NATWEST BANK PLC AS TRUSTEE OF THE JUPITER INDIA FUND | E11: BUY | F11: 2,323,000 | G11: 193.00 | H11: BSE
A12: 2019-10-15 | B12: 533229 | C12: BAJAJCON | D12: BIRLA SUNLIFE TRUSTEE COMPMAY PVT LTD A/C BIRLA LONG TERM ADVANTAGE FUND - SERIES -1 | E12: BUY | F12: 1,300,000 | G12: 195 | H12: BSE
A13: 2019-10-15 | B13: 533229 | C13: BAJAJCON | D13: ADITYA BIRLA SUN LIFE MUTUAL FUND | E13: BUY | F13: 2,600,000 | G13: 195 | H13: BSE
A14: 2019-10-15 | B14: 533229 | C14: BAJAJCON | D14: ICICI PRUDENTIAL MUTUAL FUND - | E14: BUY | F14: 1,011,110 | G14: 195 | H14: BSE
A15: 2019-10-15 | B15: 533229 | C15: BAJAJCON | D15: ICICI PRUDENTIAL MUTUAL FUND | E15: BUY | F15: 800,000 | G15: 195 | H15: BSE
A16: 2019-10-15 | B16: 533229 | C16: BAJAJCON | D16: ICICI PRUDENTIAL MUTUAL FUND | E16: BUY | F16: 1,011,111 | G16: 195 | H16: BSE
A17: 2019-10-15 | B17: 533229 | C17: BAJAJCON | D17: ICICI PRUDENTIAL MUTUAL FUND | E17: BUY | F17: 910,000 | G17: 195.00 | H17: BSE
A18: 2019-10-15 | B18: 533229 | C18: BAJAJCON | D18: HDFC MUTUAL FUND | E18: BUY | F18: 1,050,000 | G18: 195.00 | H18: BSE
A19: 2019-10-15 | B19: 533229 | C19: BAJAJCON | D19: ICG Q LIMITED | E19: BUY | F19: 1,800,000 | G19: 193.00 | H19: BSE
A20: 2019-10-15 | B20: 533229 | C20: BAJAJCON | D20: STEINBERG INDIA EMERGING OPPORTUNITIES FUND LIMITED | E20: BUY | F20: 2,315,000 | G20: 195 | H20: BSE
A21: 2019-10-15 | B21: 533229 | C21: BAJAJCON | D21: HDFC MUTUAL FUND | E21: BUY | F21: 6,700,000 | G21: 195.00 | H21: BSE
A22: 2019-10-15 | B22: 533229 | C22: BAJAJCON | D22: BAJAJ RESOURCES LIMITED | E22: SELL | F22: 32,265,100 | G22: 194.56 | H22: BSE
A23: 2019-10-15 | B23: 533229 | C23: BAJAJCON | D23: MILLENNIUM STOCK BROKING PVT LTD | E23: BUY | F23: 781,572 | G23: 203.24 | H23: BSE
A24: 2019-10-15 | B24: 533229 | C24: BAJAJCON | D24: MILLENNIUM STOCK BROKING PVT LTD | E24: SELL | F24: 185,433 | G24: 204.35 | H24: BSE
A25: 2019-10-15 | B25: 539621 | C25: BCLENTERPR | D25: MAHENDRA KUMAR SHARDA HUF | E25: SELL | F25: 50,000 | G25: 24.9 | H25: BSE
A26: 2019-10-15 | B26: 542678 | C26: CHCL | D26: NNM SECURITIES PVT LTD | E26: BUY | F26: 2,000 | G26: 17.50 | H26: BSE
A27: 2019-10-15 | B27: 542678 | C27: CHCL | D27: NNM SECURITIES PVT LTD | E27: SELL | F27: 140,000 | G27: 19.44 | H27: BSE
A28: 2019-10-15 | B28: 542678 | C28: CHCL | D28: MIKER FINANCIAL CONSULTANTS PRIVATE LIMITED . | E28: BUY | F28: 140,000 | G28: 19.44 | H28: BSE
A29: 2019-10-15 | B29: 536507 | C29: FLFL | D29: RSCL TRADING PRIVATE LIMITED | E29: BUY | F29: 14,538,559 | G29: 403 | H29: BSE
A30: 2019-10-15 | B30: 536507 | C30: FLFL | D30: RYKA COMMERCIAL VENTURES PRIVATE LIMITED | E30: SELL | F30: 14,538,559 | G30: 403 | H30: BSE
A31: 2019-10-15 | B31: 542851 | C31: GENSOL | D31: KIVA CAPITAL PRIVATE LIMITED | E31: BUY | F31: 57,600 | G31: 85.26 | H31: BSE
A32: 2019-10-15 | B32: 542850 | C32: GOBLIN | D32: KIVA CAPITAL PRIVATE LIMITED | E32: BUY | F32: 126,000 | G32: 55.74 | H32: BSE
A33: 2019-10-15 | B33: 542850 | C33: GOBLIN | D33: GOENKA BUSINESS & FINANCE LIMITED | E33: BUY | F33: 200,000 | G33: 55.21 | H33: BSE
A34: 2019-10-15 | B34: 542850 | C34: GOBLIN | D34: ARPIT DIPAK SHAH | E34: BUY | F34: 60,000 | G34: 55 | H34: BSE
A35: 2019-10-15 | B35: 542850 | C35: GOBLIN | D35: SHILVI ARPIT SHAH | E35: BUY | F35: 60,000 | G35: 55 | H35: BSE
A36: 2019-10-15 | B36: 542850 | C36: GOBLIN | D36: NIRAV HARILAL GALA | E36: BUY | F36: 60,000 | G36: 55 | H36: BSE
A37: 2019-10-15 | B37: 542850 | C37: GOBLIN | D37: NAVITA KANKARIYA | E37: BUY | F37: 60,000 | G37: 55 | H37: BSE
A38: 2019-10-15 | B38: 542850 | C38: GOBLIN | D38: ARPIT DIPAK SHAH HUF | E38: BUY | F38: 60,000 | G38: 55 | H38: BSE
A39: 2019-10-15 | B39: 542850 | C39: GOBLIN | D39: PRATIK OVERSEAS PRIVATE LIMITED | E39: BUY | F39: 194,000 | G39: 54.63 | H39: BSE
A40: 2019-10-15 | B40: 542850 | C40: GOBLIN | D40: KANTILAL PREMCHAND SHAH | E40: BUY | F40: 200,000 | G40: 55 | H40: BSE
A41: 2019-10-15 | B41: 542850 | C41: GOBLIN | D41: AMRAPALI FINCAP PVT LTD | E41: SELL | F41: 158,000 | G41: 54.22 | H41: BSE
A42: 2019-10-15 | B42: 538765 | C42: JSHL | D42: VIVEK GUPTA | E42: SELL | F42: 100,000 | G42: 10.14 | H42: BSE
A43: 2019-10-15 | B43: 538765 | C43: JSHL | D43: NIDHI PORWAL | E43: BUY | F43: 35,000 | G43: 10.14 | H43: BSE
A44: 2019-10-15 | B44: 538765 | C44: JSHL | D44: NIDHI PORWAL | E44: SELL | F44: 20,000 | G44: 10.15 | H44: BSE
A45: 2019-10-15 | B45: 539216 | C45: JUNCTION | D45: JAYANTILAL HANSRAJ LODHA | E45: BUY | F45: 16,000 | G45: 36.5 | H45: BSE
A46: 2019-10-15 | B46: 538928 | C46: KARNAVATI | D46: JAMANBHAI SHAMJIBHAI FALDU | E46: SELL | F46: 90,000 | G46: 27.68 | H46: BSE
A47: 2019-10-15 | B47: 542771 | C47: NOVATEOR | D47: ABHISHEK BHIKHABHAI PATEL | E47: BUY | F47: 24,000 | G47: 39.21 | H47: BSE
A48: 2019-10-15 | B48: 542771 | C48: NOVATEOR | D48: ABHISHEK BHIKHABHAI PATEL | E48: SELL | F48: 60,000 | G48: 40.87 | H48: BSE
A49: 2019-10-15 | B49: 541206 | C49: OBCL | D49: VEDANT COMMODEAL PRIVATE LIMITED . | E49: SELL | F49: 120,000 | G49: 41.3 | H49: BSE
A50: 2019-10-15 | B50: 523862 | C50: PIFL | D50: RADHAKRISHNAN GEETHA | E50: BUY | F50: 55,500 | G50: 3.61 | H50: BSE
A51: 2019-10-15 | B51: 523862 | C51: PIFL | D51: P C DHOOT HUF | E51: SELL | F51: 55,500 | G51: 3.61 | H51: BSE
A52: 2019-10-15 | B52: 539814 | C52: RADHEY | D52: PARAS VINODRAI SHAH | E52: SELL | F52: 22,500 | G52: 18.05 | H52: BSE
A53: 2019-10-15 | B53: 500356 | C53: RAMANEWS | D53: INNOVATE DERIVATIVES PRIVATE LIMITED | E53: BUY | F53: 7,840,000 | G53: 14.55 | H53: BSE
A54: 2019-10-15 | B54: 500356 | C54: RAMANEWS | D54: KAILASH KABRA . | E54: SELL | F54: 7,840,000 | G54: 14.55 | H54: BSE
A55: 2019-10-15 | B55: 531952 | C55: RIBATEX | D55: REKHA DAGAR | E55: SELL | F55: 61,175 | G55: 46 | H55: BSE
A56: 2019-10-15 | B56: 531952 | C56: RIBATEX | D56: STRM TRADING FOCUS PRIVATE LIMITED | E56: BUY | F56: 16,705 | G56: 45.62 | H56: BSE
A57: 2019-10-15 | B57: 531952 | C57: RIBATEX | D57: STRM TRADING FOCUS PRIVATE LIMITED | E57: SELL | F57: 55,115 | G57: 45.57 | H57: BSE
A58: 2019-10-15 | B58: 531952 | C58: RIBATEX | D58: ALKA SINGH | E58: BUY | F58: 81,000 | G58: 45.46 | H58: BSE
A59: 2019-10-15 | B59: 530677 | C59: SUPREME | D59: KAMAL KUMAR JALAN SEC. PVT. LTD | E59: BUY | F59: 200,000 | G59: 6.15 | H59: BSE
A60: 2019-10-15 | B60: 530677 | C60: SUPREME | D60: ORIENTAL BANK OF COMMERCE | E60: SELL | F60: 232,000 | G60: 6.15 | H60: BSE
A61: 2019-10-15 | B61: BAJAJCON | C61: Bajaj Corp Limited | D61: MILLENNIUM STOCK BROKING PVT LTD | E61: BUY | F61: 144,919 | G61: 204.95 | H61: NSE
A62: 2019-10-15 | B62: CKPPRODUCT | C62: CKP Products Limited | D62: MAHESH OMPRAKASH KHANDELWAL | E62: BUY | F62: 252,000 | G62: 29.97 | H62: NSE
A63: 2019-10-15 | B63: IBULHSGFIN | C63: Indiabulls Hsg Fin Ltd | D63: CROSSLAND TRADING CO | E63: BUY | F63: 2,332,860 | G63: 189.52 | H63: NSE
A64: 2019-10-15 | B64: IBULHSGFIN | C64: Indiabulls Hsg Fin Ltd | D64: TOWER RESEARCH CAPITAL MARKETS INDIA PRIVATE LIMITED | E64: BUY | F64: 5027831 | G64: 189.41 | H64: NSE
A65: 2019-10-15 | B65: NCC | C65: NCC Limited | D65: TOWER RESEARCH CAPITAL MARKETS INDIA PRIVATE LIMITED | E65: BUY | F65: 3220688 | G65: 48.76 | H65: NSE
A66: 2019-10-15 | B66: PGEL | C66: PG Electroplast Ltd | D66: VINOD VILAS SABLE | E66: BUY | F66: 159977 | G66: 43.84 | H66: NSE
A67: 2019-10-15 | B67: RBLBANK | C67: RBL Bank Limited | D67: TOWER RESEARCH CAPITAL MARKETS INDIA PRIVATE LIMITED | E67: BUY | F67: 3458832 | G67: 257.17 | H67: NSE
A68: 2019-10-15 | B68: RBLBANK | C68: RBL Bank Limited | D68: CROSSLAND TRADING CO | E68: BUY | F68: 2471109 | G68: 261.11 | H68: NSE
A69: 2019-10-15 | B69: SHIVAUM | C69: Shiv Aum Steels Limited | D69: ARYAMAN CAPITAL MARKETS LIMITED | E69: BUY | F69: 192000 | G69: 44.99 | H69: NSE
A70: 2019-10-15 | B70: SUULD | C70: Suumaya Lifestyle Limited | D70: GRETEX SHARE BROKING PRIVATE LIMITED | E70: BUY | F70: 368000 | G70: 17.96 | H70: NSE
A71: 2019-10-15 | B71: VISHWARAJ | C71: Vishwaraj Sugar Ind Ltd | D71: S K GROWTH FUND PVT LTD | E71: BUY | F71: 250000 | G71: 60.35 | H71: NSE
A72: 2019-10-15 | B72: YESBANK | C72: Yes Bank Limited | D72: TOWER RESEARCH CAPITAL MARKETS INDIA PRIVATE LIMITED | E72: BUY | F72: 16585680 | G72: 40.45 | H72: NSE
A73: 2019-10-15 | B73: BAJAJCON | C73: Bajaj Corp Limited | D73: MILLENNIUM STOCK BROKING PVT LTD | E73: SELL | F73: 741258 | G73: 203.44 | H73: NSE
A74: 2019-10-15 | B74: CKPPRODUCT | C74: CKP Products Limited | D74: MAHESH OMPRAKASH KHANDELWAL | E74: SELL | F74: 3000 | G74: 30.9 | H74: NSE
A75: 2019-10-15 | B75: CKPPRODUCT | C75: CKP Products Limited | D75: PRAFULLA SUBHASHCHANDRA BHAT | E75: SELL | F75: 285000 | G75: 30.18 | H75: NSE
A76: 2019-10-15 | B76: IBULHSGFIN | C76: Indiabulls Hsg Fin Ltd | D76: TOWER RESEARCH CAPITAL MARKETS INDIA PRIVATE LIMITED | E76: SELL | F76: 4851862 | G76: 189.59 | H76: NSE
A77: 2019-10-15 | B77: IBULHSGFIN | C77: Indiabulls Hsg Fin Ltd | D77: CROSSLAND TRADING CO | E77: SELL | F77: 2334206 | G77: 189.66 | H77: NSE
A78: 2019-10-15 | B78: NCC | C78: NCC Limited | D78: TOWER RESEARCH CAPITAL MARKETS INDIA PRIVATE LIMITED | E78: SELL | F78: 3377330 | G78: 48.92 | H78: NSE
A79: 2019-10-15 | B79: NIITLTD | C79: NIIT Limited | D79: UTI MUTUAL FUND | E79: SELL | F79: 1092717 | G79: 84.36 | H79: NSE
A80: 2019-10-15 | B80: PGEL | C80: PG Electroplast Ltd | D80: VINOD VILAS SABLE | E80: SELL | F80: 159977 | G80: 44 | H80: NSE
A81: 2019-10-15 | B81: RBLBANK | C81: RBL Bank Limited | D81: TOWER RESEARCH CAPITAL MARKETS INDIA PRIVATE LIMITED | E81: SELL | F81: 3407311 | G81: 257.77 | H81: NSE
A82: 2019-10-15 | B82: RBLBANK | C82: RBL Bank Limited | D82: CROSSLAND TRADING CO | E82: SELL | F82: 2467466 | G82: 261.29 | H82: NSE
A83: 2019-10-15 | B83: RELCAPITAL | C83: Reliance Capital Limited | D83: POLUNIN DEVELOPING COUNTRIES FUND LLC | E83: SELL | F83: 1577448 | G83: 14.98 | H83: NSE
A84: 2019-10-15 | B84: SUULD | C84: Suumaya Lifestyle Limited | D84: FESTINO VINCOM LIMITED | E84: SELL | F84: 280000 | G84: 17.9 | H84: NSE
A85: 2019-10-15 | B85: VISHWARAJ | C85: Vishwaraj Sugar Ind Ltd | D85: FAIRY VISHAL BHANSALI | E85: SELL | F85: 188724 | G85: 60.35 | H85: NSE
A86: 2019-10-15 | B86: YESBANK | C86: Yes Bank Limited | D86: TOWER RESEARCH CAPITAL MARKETS INDIA PRIVATE LIMITED | E86: SELL | F86: 16290344 | G86: 40.42 | H86: NSE

Sheet Call Tracker (Equity & F&O)
M5: Back To Main Page
A6: Retail Research Technical Calls & Fundamental Performance Report for the month of October-2019
M7: =Main!B10 -> 2019-10-16
B8: Positional Call
A9: Sr.no | B9: Date | D9: Company | E9: Rec | F9: Rec Price | G9: Stop Loss*** | H9: Call Closed At | I9: Target | J9: Remark | K9: Profit / Loss per Share | L9: Gain / Loss % | M9: Status | N9: Closed Date | O9: NSE Closed Price
A10: 1 | B10: 2019-08-30 | D10: BIOCON | E10: Buy{} | F10: 229.5 | G10: 214.3 | H10: 242.5 | I10: 255-260 | J10: Profit of Rs.13/- | K10: =H10-F10 -> 13 | L10: =K10/F10 -> 5.66% | M10: Successful | N10: 2019-10-10 | R10: R
A11: 2 | B11: 2019-09-09 | D11: TORNTPHARM | E11: Sell | F11: 1705 | G11: 1808 | H11: 1618 | I11: 1560-1540 | J11: Profit of Rs.87/- | K11: =F11-H11 -> 87 | L11: =K11/F11 -> 5.10% | M11: Successful | N11: 2019-10-01 | R11: R
A12: 3 | B12: 2019-09-25 | D12: AXISBANK | E12: Buy | F12: 690-700 | G12: 628 | I12: 800-820 | J12: Open | O12: =VLOOKUP(D12,Sheet2!A41:M1680,6,0) -> 690.05 | R12: H
A13: 4 | B13: 2019-09-26 | D13: HDFC | E13: Buy | F13: 2065-2075 | G13: 1940 | I13: 2250-2300 | J13: Open | O13: =VLOOKUP(D13,Sheet2!A42:M1681,6,0) -> 2013.3 | R13: H
A14: 5 | B14: 2019-09-26 | D14: BANKBARODA | E14: Buy | F14: 96 | G14: 89 | H14: 89.5 | I14: 110-114 | J14: Loss of Rs.6.5/- | K14: =H14-F14 -> -6.5 | L14: =K14/F14 -> -6.77% | M14: UnSuccessful | N14: 2019-10-01 | R14: H
A15: 6 | B15: 2019-09-30 | D15: BPCL | E15: Sell | F15: 475 | G15: 510 | H15: 503 | I15: 420-410 | J15: Loss of Rs.28/- | K15: =F15-H15 -> -28 | L15: -5.89% | M15: UnSuccessful | N15: 2019-10-03 | R15: H
A16: 7 | B16: 2019-10-01 | D16: CUMMINSIND | E16: Buy | F16: 574-579 | G16: 530 | I16: 640-660 | J16: Open | O16: =VLOOKUP(D16,Sheet2!A46:M1685,6,0) -> 569.3 | R16: H
A17: 8 | B17: 2019-10-01 | D17: UPL | E17: Buy | F17: 592-598 | G17: 564 | I17: 650-660 | J17: Open | O17: =VLOOKUP(D17,Sheet2!A47:M1686,6,0) -> 583.1 | R17: R
A18: 9 | B18: 2019-10-03 | D18: HEIDELBERG | E18: Buy | F18: 183 | G18: 169 | H18: 189 | I18: 205-210 | J18: Part Profit of Rs.6/- | K18: =H18-F18 -> 6 | L18: =K18/F18 -> 3.28% | M18: Successful | N18: 2019-10-09 | O18: =VLOOKUP(D18,Sheet2!A48:M1687,6,0) -> 180.9 | R18: H
A19: 10 | B19: 2019-10-03 | D19: APOLLOHOSP | E19: Buy{} | F19: 1378.5 | G19: 1286 | H19: 1448 | I19: 1550-1580 | J19: Profit of Rs.69.5/- | K19: =H19-F19 -> 69.5 | L19: =K19/F19 -> 5.04% | M19: Successful | N19: 2019-10-11 | R19: R
A20: 11 | B20: 2019-10-04 | D20: HDFCAMC | E20: Buy | F20: 2665 | G20: 2537 | H20: 2755 | I20: 2930-2960 | J20: Part Profit of Rs.90/- | K20: =H20-F20 -> 90 | L20: =K20/F20 -> 3.38% | M20: Successful | N20: 2019-10-07 | O20: =VLOOKUP(D20,Sheet2!A50:M1689,6,0) -> 2705 | R20: R
A21: 12 | B21: 2019-10-07 | D21: PIDILITIND | E21: Buy | F21: 1365-1370 | G21: 1297 | I21: 1500-1520 | J21: Open | O21: =VLOOKUP(D21,Sheet2!A51:M1690,6,0) -> 1379.25 | R21: R
A22: 13 | B22: 2019-10-07 | D22: AMBUJACEM | E22: Buy | F22: 189 | G22: 179 | H22: 195 | I22: 205-210 | J22: Part Profit of Rs.6/- | K22: =H22-F22 -> 6 | L22: =K22/F22 -> 3.17% | M22: Successful | N22: 2019-10-14 | O22: =VLOOKUP(D22,Sheet2!A52:M1691,6,0) -> 196.95 | R22: R
A23: 14 | B23: 2019-10-09 | D23: ACC | E23: Buy | F23: 1440 | G23: 1345 | H23: 1484.5 | I23: 1600-1650 | J23: Part Profit of Rs.44.5/- | K23: =H23-F23 -> 44.5 | L23: =K23/F23 -> 3.09% | M23: Successful | N23: 2019-10-14 | R23: H
A24: 15 | B24: 2019-10-10 | D24: MOTHERSUMI | E24: Buy{} | F24: 94.5 | G24: 87.7 | H24: 100.5 | I24: 103-106 | J24: Profit of Rs.6/- | K24: =H24-F24 -> 6 | L24: =K24/F24 -> 6.35% | M24: Successful | N24: 2019-10-14 | R24: R
A25: 16 | B25: 2019-10-10 | D25: CIPLA | E25: Buy | F25: 425.5 | G25: 398 | H25: 398 | I25: 470-480 | J25: Loss of Rs.27.5/- | K25: -27.5 | L25: =K25/F25 -> -6.46% | M25: UnSuccessful | N25: 2019-10-11 | R25: R
A26: 17 | B26: 2019-10-10 | D26: POWERGRID | E26: Buy | F26: 197 | G26: 187 | H26: 203.5 | I26: 215-220 | J26: Part Profit of Rs.6.5/- | K26: =H26-F26 -> 6.5 | L26: 3.30% | M26: Successful | N26: 2019-10-11 | O26: =VLOOKUP(D26,Sheet2!A56:M1695,6,0) -> 201.25 | R26: R
A35: CLBS = Closing Basis ***
A36: Dividend adjusted <> | F36: Reinitiated $
A37: Part book {} | F37: Revised stoploss #
B39: Momentum Call
A40: Sr.no | B40: Date | D40: Company | E40: Rec | F40: Rec Price | G40: Stop Loss | H40: Call Closed At | I40: Target | J40: Remark | K40: Profit / Loss per Share/Lot | L40: Gain / Loss % | M40: Gain / Loss per Lot | N40: Lot | O40: Status | P40: Closed Date
A41: 1 | B41: 2019-09-24 | D41: AMARAJABAT OCT FUT | E41: Buy | F41: 722 | G41: 703 | H41: 703.5 | I41: 750-760 | J41: Loss of Rs.18.5/- | K41: =H41-F41 -> -18.5 | M41: =N41*K41 -> -12950 | N41: 700 | O41: UnSuccessful | P41: 2019-10-01 | R41: N
A42: 2 | B42: 2019-09-30 | D42: IGL | E42: Sell | F42: 349 | G42: 361 | H42: 342 | I42: 330-325 | J42: Profit of Rs.7/- | K42: =F42-H42 -> 7 | L42: =K42/F42 -> 2.01% | O42: Successful | P42: 2019-10-01 | R42: H
A43: 3 | B43: 2019-09-30 | D43: ENGINERSIN | E43: Sell | F43: 119 | G43: 123.3 | H43: 116.5 | I43: 111-109 | J43: Profit of Rs.2.5/- | K43: =F43-H43 -> 2.5 | L43: =K43/F43 -> 2.10% | O43: Successful | P43: 2019-10-01 | R43: R
A44: 4 | B44: 2019-09-30 | D44: ADANIPORTS | E44: Sell | F44: 412.5 | G44: 425.3 | H44: 406 | I44: 395-390 | J44: Profit of Rs.6.5/- | K44: =F44-H44 -> 6.5 | L44: =K44/F44 -> 1.58% | O44: Successful | P44: 2019-10-01 | R44: H
A45: 5 | B45: 2019-10-01 | D45: HDFC | E45: Buy | F45: 1995 | G45: 1949 | H45: 2026 | I45: 2080-2100 | J45: Profit of Rs.31/- | K45: =H45-F45 -> 31 | L45: =K45/F45 -> 1.55% | O45: Successful | P45: 2019-10-01 | R45: H
A46: 6 | B46: 2019-10-01 | D46: POWERGRID OCT FUT | E46: Buy | F46: 196.75 | G46: 193.5 | H46: 198.75 | I46: 205 | J46: Profit of Rs.2/- | K46: =H46-F46 -> 2 | M46: =N46*K46 -> 8000 | N46: 4000 | O46: Successful | P46: 2019-10-03 | R46: N
A47: 7 | B47: 2019-10-01 | D47: NIFTY OCT FUT | E47: Buy | F47: 11430 | G47: 11340 | H47: 11350 | I47: 11570-11600 | J47: Loss of Rs.80/- | K47: =H47-F47 -> -80 | M47: =N47*K47 -> -6000 | N47: 75 | O47: UnSuccessful | P47: 2019-10-01 | R47: R
A48: 8 | B48: 2019-10-03 | D48: LT | E48: Buy | F48: 1440 | G48: 1390 | H48: 1474 | I48: 1500-1520 | J48: Profit of Rs.34/- | K48: 34 | L48: =K48/F48 -> 2.36% | O48: Successful | P48: 2019-10-03 | R48: H
A49: 9 | B49: 2019-10-03 | D49: TATASTEEL | E49: Buy | F49: 348 | G49: 338 | H49: 335 | I49: 370 | J49: Loss of Rs.13/- | K49: -13 | L49: -3.74% | O49: UnSuccessful | P49: 2019-10-04 | R49: R
A50: 10 | B50: 2019-10-03 | D50: CESC OCT FUT | E50: Buy | F50: 747 | G50: 734.7 | H50: 760.5 | I50: 770 | J50: Profit of Rs.13.5/- | K50: =H50-F50 -> 13.5 | M50: =N50*K50 -> 10800 | N50: 800 | O50: Successful | P50: 2019-10-04 | R50: R
A51: 11 | B51: 2019-10-03 | D51: MFSL OCT FUT | E51: Buy | F51: 417 | G51: 406 | H51: 417 | I51: 435 | J51: Neutral | K51: 0 | M51: 0 | N51: 1200 | O51: Neutral | P51: 2019-10-04 | R51: N
A52: 12 | B52: 2019-10-04 | D52: NIITTECH | E52: Buy | F52: 1355 | G52: 1319 | H52: 1377.5 | I52: 1420-1440 | J52: Profit of Rs.22.5/- | K52: =H52-F52 -> 22.5 | L52: =K52/F52 -> 1.66% | O52: Successful | P52: 2019-10-04 | R52: H
A53: 13 | B53: 2019-10-04 | D53: HINDALCO | E53: Buy | F53: 183.5 | G53: 179 | H53: 187.25 | I53: 192-195 | J53: Profit of Rs.3.75/- | K53: =H53-F53 -> 3.75 | L53: =K53/F53 -> 2.04% | O53: Successful | P53: 2019-10-11 | R53: R
A54: 14 | B54: 2019-10-04 | D54: TATAELXSI OCT FUT | E54: Buy | F54: 686.5 | G54: 666 | H54: 666 | I54: 710-720 | J54: Loss of Rs.20.5/- | K54: =H54-F54 -> -20.5 | M54: =N54*K54 -> -12300 | N54: 600 | O54: UnSuccessful | P54: 2019-10-09 | R54: N
A55: 15 | B55: 2019-10-03 | D55: CESC OCT FUT | E55: Buy | F55: 747 | G55: 734.7 | H55: 734.7 | I55: 770 | J55: Loss of Rs.12.3/- | K55: =H55-F55 -> -12.3 | M55: =N55*K55 -> -9840 | N55: 800 | O55: UnSuccessful | P55: 2019-10-04 | R55: R
A56: 16 | B56: 2019-10-04 | D56: AMARAJABAT OCT FUT | E56: Buy | F56: 699 | G56: 681 | H56: 681.5 | I56: 730 | J56: Loss of Rs.17.50/- | K56: =H56-F56 -> -17.5 | M56: =N56*K56 -> -12250 | N56: 700 | O56: UnSuccessful | P56: 2019-10-09 | R56: N
A57: 17 | B57: 2019-10-04 | D57: NIFTY OCT FUT | E57: Buy | F57: 11280 | G57: 11175 | H57: 11175 | I57: 11370 | J57: Loss of Rs.105/- | K57: =H57-F57 -> -105 | M57: =N57*K57 -> -7875 | N57: 75 | O57: UnSuccessful | P57: 2019-10-07 | R57: R
A58: 18 | B58: 2019-10-04 | D58: DABUR | E58: Buy | F58: 425.5 | G58: 411.7 | H58: 435.5 | I58: 448-453 | J58: Profit of Rs.10/- | K58: 10 | L58: =K58/F58 -> 2.35% | O58: Successful | P58: 2019-10-09 | R58: R
A59: 19 | B59: 2019-10-07 | D59: M&M OCT FUT | E59: Buy | F59: 558 | G59: 545 | H59: 566 | I59: 580 | J59: Profit of Rs.8/- | K59: =H59-F59 -> 8 | M59: =N59*K59 -> 8000 | N59: 1000 | O59: Successful | P59: 2019-10-08 | R59: N
A60: 20 | B60: 2019-10-07 | D60: JUBLFOOD OCT FUT | E60: Buy | F60: 1276.5 | G60: 1253 | H60: 1296 | I60: 1320-1330 | J60: Profit of Rs.19.5/- | K60: =H60-F60 -> 19.5 | M60: =N60*K60 -> 9750 | N60: 500 | O60: Successful | P60: 2019-10-07 | R60: R
A61: 21 | B61: 2019-10-07 | D61: VOLTAS OCT FUT | E61: Sell | F61: 666 | G61: 678 | H61: 677 | I61: 650 | J61: Loss of Rs.11/- | K61: =F61-H61 -> -11 | M61: =N61*K61 -> -11000 | N61: 1000 | O61: UnSuccessful | P61: 2019-10-09 | R61: N
A62: 22 | B62: 2019-10-09 | D62: GODREJCP | E62: Buy | F62: 661 | G62: 641.7 | H62: 674 | I62: 690-700 | J62: Profit of Rs.13/- | K62: 13 | L62: =K62/F62 -> 1.97% | O62: Successful | P62: 2019-10-09 | R62: R
A63: 23 | B63: 2019-10-09 | D63: GRASIM OCT FUT | E63: Sell | F63: 667 | G63: 685 | H63: 692.5 | I63: 635 | J63: Loss of Rs.25.50/- | K63: =F63-H63 -> -25.5 | M63: =N63*K63 -> -19125 | N63: 750 | O63: UnSuccessful | P63: 2019-10-10 | R63: N
A64: 24 | B64: 2019-10-10 | D64: NIITTECH | E64: Buy | F64: 1352.5 | G64: 1317 | H64: 1375.5 | I64: 1420-1440 | J64: Profit of Rs.23/- | K64: =H64-F64 -> 23 | L64: =K64/F64 -> 1.70% | O64: Successful | P64: 2019-10-10 | R64: H
A65: 25 | B65: 2019-10-10 | D65: MCDOWELL-N | E65: Buy | F65: 626.5 | G65: 608 | H65: 608 | I65: 660-670 | J65: Loss of Rs.18.50/- | K65: -18.5 | L65: -2.95% | O65: UnSuccessful | P65: 2019-10-11 | R65: R
A66: 26 | B66: 2019-10-10 | D66: KOTAKBANK OCT FUT | E66: Buy | F66: 1601.5 | G66: 1570 | H66: 1621.5 | I66: 1650 | J66: Profit of Rs.20/- | K66: =H66-F66 -> 20 | M66: =N66*K66 -> 8000 | N66: 400 | O66: Successful | P66: 2019-10-11 | R66: N
A67: 27 | B67: 2019-10-10 | D67: NIFTY OCT FUT | E67: Buy | F67: 11275 | G67: 11190 | H67: 11330 | I67: 11400-11450 | J67: Profit of Rs.55/- | K67: 55 | M67: =N67*K67 -> 4125 | N67: 75 | O67: Successful | P67: 2019-10-11 | R67: H
A68: 28 | B68: 2019-10-10 | D68: HINDUNILVR OCT FUT | E68: Buy | F68: 1937.5 | G68: 1897 | H68: 1962 | I68: 2000-2020 | J68: Profit of Rs.24.50/- | K68: =H68-F68 -> 24.5 | M68: =N68*K68 -> 7350 | N68: 300 | O68: Successful | P68: 2019-10-10 | R68: R
A69: 29 | B69: 2019-10-10 | D69: COLPAL OCT FU | E69: Buy | F69: 1495 | G69: 1476 | H69: 1508 | I69: 1530 | J69: Profit of Rs.13/- | K69: 13 | M69: =N69*K69 -> 9100 | N69: 700 | O69: Successful | P69: 2019-10-11 | R69: N
A70: 30 | B70: 2019-10-10 | D70: RAYMOND | E70: Sell | F70: 597 | G70: 607.3 | H70: 587 | I70: 575-570 | J70: Profit of Rs.10/- | K70: =F70-H70 -> 10 | L70: =K70/F70 -> 1.68% | O70: Successful | P70: 2019-10-10 | R70: R
A71: 31 | B71: 2019-10-10 | D71: MFSL OCT FUT | E71: Buy | F71: 408 | G71: 398 | H71: 416 | I71: 425 | J71: Profit of Rs.8/- | K71: =H71-F71 -> 8 | M71: =N71*K71 -> 9600 | N71: 1200 | O71: Successful | P71: 2019-10-14 | R71: N
A72: 32 | B72: 2019-10-11 | D72: AMBUJACEM OCT FUT | E72: Buy | F72: 188.5 | G72: 183 | H72: 191.75 | I72: 198 | J72: Profit of Rs.3.25/- | K72: =H72-F72 -> 3.25 | M72: =N72*K72 -> 8125 | N72: 2500 | O72: Successful | P72: 2019-10-14 | R72: N
A73: 33 | B73: 2019-10-11 | D73: KOTAKBANK OCT FUT | E73: Buy | F73: 1590 | G73: 1560 | H73: 1609 | I73: 1650 | J73: Profit of Rs.19/- | K73: =H73-F73 -> 19 | M73: =N73*K73 -> 7600 | N73: 400 | O73: Successful | P73: 2019-10-14 | R73: N
A74: 34 | B74: 2019-10-11 | D74: KALPATPOWR | E74: Buy | F74: 445-449 | G74: 434 | I74: 470-480 | J74: Open | R74: H
A75: 35 | B75: 2019-10-11 | D75: M&M OCT FUT | E75: Buy | F75: 557 | G75: 544 | H75: 564.5 | I75: 580 | J75: Profit of Rs.7.5/- | K75: =H75-F75 -> 7.5 | M75: =N75*K75 -> 7500 | N75: 1000 | O75: Successful | P75: 2019-10-11 | R75: N
A76: 36 | B76: 2019-10-14 | D76: NIITTECH | E76: Buy | F76: 1405 | G76: 1378 | H76: 1438.5 | I76: 1440-1460 | J76: Profit of Rs.33.5/- | K76: 33.5 | L76: =K76/F76 -> 2.38% | O76: Successful | P76: 2019-10-15 | R76: H
A77: 37 | B77: 2019-10-14 | D77: KOTAKBANK OCT FUT | E77: Buy | F77: 1590 | G77: 1560 | H77: 1609 | I77: 1650 | J77: Profit of Rs.19/- | K77: =H77-F77 -> 19 | M77: =N77*K77 -> 7600 | N77: 400 | O77: Successful | P77: 2019-10-14 | R77: N
A78: 38 | B78: 2019-10-14 | D78: AMARAJABAT | E78: Buy | F78: 681.5 | G78: 659 | H78: 658 | I78: 715-720 | J78: Loss of Rs.23.50/- | K78: -23.5 | L78: =K78/F78 -> -3.45% | O78: UnSuccessful | P78: 2019-10-15 | R78: H
A79: 39 | B79: 2019-10-14 | D79: BATAINDIA OCT FUT | E79: Buy | F79: 1714-1718 | G79: 1690 | I79: 1760 | J79: Open | R79: N
A80: 40 | B80: 2019-10-14 | D80: CHOLAFIN | E80: Buy | F80: 283-285 | G80: 276.7 | I80: 300-305 | J80: Open | R80: R
A81: 41 | B81: 2019-10-15 | D81: BHARATFORG OCT FUT | E81: Buy | F81: 429 | G81: 418 | H81: 435 | I81: 450 | J81: Profit of Rs.6/- | K81: =H81-F81 -> 6 | M81: =N81*K81 -> 7200 | N81: 1200 | O81: Successful | P81: 2019-10-15 | R81: N
A82: 42 | B82: 2019-10-15 | D82: SUNPHARMA | E82: Buy | F82: 395-398 | G82: 386.7 | I82: 420-425 | J82: Open | R82: R
A83: 43 | B83: 2019-10-15 | D83: LT | E83: Buy | F83: 1435-1445 | G83: 1390 | I83: 1500-1520 | J83: Open | R83: H
A84: 44 | B84: 2019-10-15 | D84: HAVELLS | E84: Buy | F84: 657.5 | G84: 639 | H84: 668.5 | I84: 690-700 | J84: Profit of Rs.11/- | K84: =H84-F84 -> 11 | L84: =K84/F84 -> 1.67% | O84: Successful | P84: 2019-10-15 | R84: H
A85: 45 | B85: 2019-10-15 | D85: INFRATEL OCT FUT | E85: Sell | F85: 260.5 | G85: 266.5 | H85: 257 | I85: 250-248 | J85: Profit of Rs.3.5/- | K85: =F85-H85 -> 3.5 | M85: =N85*K85 -> 7000 | N85: 2000 | O85: Successful | P85: 2019-10-15 | R85: N
A86: 46 | B86: 2019-10-15 | D86: HINDALCO | E86: Buy | F86: 190 | G86: 185 | H86: 194.5 | I86: 200 | J86: Profit of Rs.4.5/- | K86: =H86-F86 -> 4.5 | L86: =K86/F86 -> 2.37% | O86: Successful | P86: 2019-10-15 | R86: H
A91: CLBS = Closing Basis ***
A92: Dividend adjusted <> | F92: Reinitiated $
F93: Revised stoploss #
A95: Master Trade High Risk
A96: Sr.no | B96: Date | D96: Company | E96: Rec | F96: Rec Price | G96: Stop Loss | H96: Call Closed At | I96: Target | J96: Remark | K96: Profit / Loss per share | L96: Gain / Loss per Lot | M96: Lot | N96: Status | O96: Closed Date
A97: 1 | B97: 2019-10-01 | D97: HDFC OCT FUT | E97: Buy | F97: 1999 | G97: 1947 | H97: 2022 | I97: 2050 | J97: Profit of Rs.20/- | K97: =H97-F97 -> 23 | L97: =20*M97 -> 10000 | M97: 500 | N97: Successful | O97: 2019-10-04 | R97: H
D98: HDFC 2040 CE OCT | E98: Sell | F98: 52 | H98: 55 | K98: =F98-H98 -> -3 | R98: H
A99: 2 | B99: 2019-10-03 | D99: NIFTY OCT FUT | E99: Buy | F99: 11350 | G99: 11190 | H99: 11425 | I99: 11550 | J99: Profit of Rs.71.5/- | K99: =H99-F99 -> 75 | L99: =71.5*75 -> 5362.5 | M99: 75 | N99: Successful | O99: 2019-10-04 | R99: H
D100: Nifty 11450 CE 10-OCT | E100: Sell | F100: 75 | H100: 78.5 | K100: =F100-H100 -> -3.5 | R100: H
A101: 3 | B101: 2019-10-04 | D101: HDFC OCT FUT | E101: Buy | F101: 2002 | G101: 1947 | H101: 2023.5 | I101: 2050 | J101: Profit of Rs.26.5/- | K101: =H101-F101 -> 21.5 | L101: =M101*26.5 -> 13250 | M101: 500 | N101: Successful | O101: 2019-10-11 | R101: H
D102: HDFC 2040 CE OCT | E102: Sell | F102: 48 | H102: 43 | K102: =F102-H102 -> 5 | R102: H
A103: 4 | B103: 2019-10-04 | D103: HDFCBANK OCT FUT | E103: Buy | F103: 1202.5 | G103: 1169 | H103: 1222.5 | I103: 1250 | J103: Profit of Rs.16.5/- | K103: 20 | L103: =M103*16.5 -> 8250 | M103: 500 | N103: Successful | O103: 2019-10-11 | R103: H
D104: HDFCBANK 1240 CE OCT | E104: Sell | F104: 23.5 | H104: 27 | K104: =F104-H104 -> -3.5 | R104: H
A105: 5 | B105: 2019-10-11 | D105: HDFC OCT FUT | E105: Buy | F105: 1997.5 | G105: 1947 | H105: 2022 | I105: 2050 | J105: Profit of Rs.18/- | K105: =H105-F105 -> 24.5 | L105: =M105*18 -> 9000 | M105: 500 | N105: Successful | O105: 2019-10-11 | R105: H
D106: HDFC 2040 CE OCT | E106: Sell | F106: 36 | H106: 42.5 | K106: =F106-H106 -> -6.5 | R106: H
A107: 6 | B107: 2019-10-11 | D107: HDFCBANK OCT FUT | E107: Buy | F107: 1204 | G107: 1169 | H107: 1214 | I107: 1250 | J107: Profit of Rs.9/- | K107: =H107-F107 -> 10 | L107: =M107*16.5 -> 8250 | M107: 500 | N107: Successful | O107: 2019-10-14 | R107: H
D108: HDFCBANK 1240 CE OCT | E108: Sell | F108: 23 | H108: 24 | K108: =F108-H108 -> -1 | R108: H
A114: Master Trade Medium Risk
A115: Sr.no | B115: Date | D115: Company | E115: Rec | F115: Rec Price | G115: Stop Loss | H115: Call Closed At | I115: Target | J115: Remark | K115: Profit/ Loss per lot | L115: Gain / Loss per Lot | M115: Lot | N115: Status | O115: Closed Date
A116: 1 | B116: 2019-10-04 | D116: Nifty 11400 CE 10-OCT | E116: Buy | F116: 92 | H116: 0 | J116: Loss of Rs.38/- | K116: =H116-F116 -> -92 | L116: =-38*75 -> -2850 | M116: 75 | N116: Unsuccessful | O116: 2019-10-10 | R116: H
D117: NIFTY 11500 CE 10-OCT | E117: Sell | F117: 54 | H117: 0 | K117: =F117-H117 -> 54 | R117: H
A118: 2 | B118: 2019-10-10 | D118: TATASTEEL OCT 350 CE | E118: Buy | F118: 8.5 | G118: 3.9 | H118: 11.25 | I118: 15-17 | J118: Profit of Rs.2.75/- | K118: =H118-F118 -> 2.75 | L118: =M118*K118 -> 2917.75 | M118: 1061 | N118: Successful | O118: 2019-10-11 | R118: N
A119: 3 | B119: 2019-10-11 | D119: NIFTY 17-OCT 11350 CE | E119: Buy | F119: 44.5 | G119: 18 | H119: 64 | I119: 70-80 | J119: Profit of Rs.19.5/- | K119: =H119-F119 -> 19.5 | L119: =M119*K119 -> 1462.5 | M119: 75 | N119: Successful | O119: 2019-10-11 | R119: H
A120: 4 | B120: 2019-10-15 | D120: JSWSTEEL OCT 235 CE | E120: Buy | F120: 5.30-5.70 | G120: 3.5 | I120: 9 | J120: Open | R120: N
A130: Techno -Funda (positional)
A131: Sr.no | B131: Date | D131: Company | E131: Rec | F131: Rec Price | G131: Stop Loss*** | H131: Call Closed At | I131: Target | J131: Remark | K131: Profit / Loss per Share | L131: Gain / Loss % | M131: Status | N131: Closed Date | O131: NSE Closed Price
A132: 1 | B132: 2019-08-13 | D132: ITC | E132: Buy | F132: 247 | G132: 228 | H132: 262.5 | I132: 290-300 | J132: Part Profit of Rs.15.5/- | K132: =H132-F132 -> 15.5 | L132: =K132/F132 -> 6.28% | M132: Successful | N132: 2019-10-01 | O132: =VLOOKUP(D132,Sheet2!A131:M1770,6,0) -> 247.6 | R132: H
A136: CLBS = Closing Basis *** | F136: Reinitiated $
A137: Dividend adjusted <> | F137: Revised stoploss #
B142: Investment Idea
A143: Sr.no | B143: Date | D143: Company | E143: Rec | F143: Rec Price | G143: Point of Review | H143: Close Rate | I143: Target | J143: Remark | K143: Profit / Loss per Share | L143: Gain / Loss % | M143: Status | N143: Closed Date
A144: 1 | B144: 2013-11-01 | D144: L&T Finance Holding | E144: Accu | F144: 82.00 | G144: - | H144: 100 | I144: 100.00 | J144: Target Achieved | K144: =H144-F144 -> 18.00 | L144: =K144/F144 -> 21.95% | M144: Successful | N144: 2016-10-14
A145: 2 | B145: 2014-06-04 | D145: Finolex Inds | E145: Buy | F145: 257.00 | G145: - | H145: 300 | I145: 300.00 | J145: Target Achieved | K145: =H145-F145 -> 43.00 | L145: 16.73% | M145: Successful | N145: 2014-07-02
A146: 3 | B146: 2014-07-08 | D146: JK Cement | E146: Buy | F146: 393.00 | G146: - | H146: 468 | I146: 468.00 | J146: Target Achieved | K146: =H146-F146 -> 75.00 | L146: 19.08% | M146: Successful | N146: 2014-08-12
A147: 4 | B147: 2014-08-06 | D147: Finolex Cables | E147: Buy | F147: 205.00 | G147: - | H147: 275 | I147: 250.00 | J147: Target Achieved | K147: 70.00 | L147: 34.15% | M147: Successful | N147: 2014-11-19
A148: 5 | B148: 2014-09-04 | D148: Exide Inds | E148: Buy | F148: 162.00 | G148: - | H148: 190 | I148: 190.00 | J148: Target Achieved | K148: 28.00 | L148: 17.28% | M148: Successful | N148: 2015-01-02
A149: 6 | B149: 2014-09-04 | D149: Deepak Nitrite | E149: Buy | F149: 75.00 | G149: - | H149: 91.5 | I149: 95-100 | J149: Profit of Rs.16.50/- | K149: 16.50 | L149: 22.00% | M149: Successful | N149: 2014-11-11
A150: 7 | B150: 2014-10-01 | D150: Mercks | E150: Buy | F150: 850.00 | G150: - | H150: 982.5 | I150: 1050.00 | J150: Profit of Rs.132.50/- | K150: 132.50 | L150: 15.59% | M150: Successful | N150: 2015-02-04
A151: 8 | B151: 2014-10-01 | D151: Grindwell Norton | E151: Buy | F151: 475.00 | G151: - | H151: 515 | I151: 600.00 | J151: Profit of Rs.40/- | K151: 40.00 | L151: 8.42% | M151: Successful | N151: 2014-10-27
A152: 9 | B152: 2014-10-01 | D152: Snowman Logistics | E152: Buy | F152: 86.00 | G152: - | H152: 99 | I152: 140.00 | J152: Profit of Rs.13.00/- | K152: 13.00 | L152: 15.12% | M152: Successful | N152: 2014-10-27
A153: 10 | B153: 2014-10-14 | D153: Birla Corp | E153: Buy | F153: 496.60 | G153: - | H153: 621 | I153: 580.00 | J153: Target Achieved | K153: 124.40 | L153: 25.05% | M153: Successful | N153: 2016-08-23
A154: 11 | B154: 2014-10-14 | D154: Ultratech Cem | E154: Buy | F154: 2481.90 | G154: - | H154: 2840 | I154: 2870.00 | J154: Profit of Rs.358.10/- | K154: 358.10 | L154: 14.43% | M154: Successful | N154: 2015-01-13
A155: 12 | B155: 2014-10-16 | D155: Sintex Inds | E155: Buy | F155: 84.50 | G155: - | H155: 93 | I155: 110.00 | J155: Profit of Rs.8.50/- | K155: 8.50 | L155: 10.06% | M155: Successful | N155: 2014-10-27
A156: 13 | B156: 2014-10-16 | D156: HSIL | E156: Buy | F156: 401.00 | G156: - | H156: 428 | I156: 450.00 | J156: Profit of Rs.27.00/- | K156: 27.00 | L156: 6.73% | M156: Successful | N156: 2015-01-16
A157: 14 | B157: 2014-10-16 | D157: Eveready Inds | E157: Buy | F157: 101.00 | G157: - | H157: 112 | I157: 120.00 | J157: Profit of Rs.11.00/- | K157: 11.00 | L157: 10.89% | M157: Successful | N157: 2014-10-27
A158: 15 | B158: 2014-11-11 | D158: Pennar Inds | E158: Buy | F158: 59.00 | G158: - | H158: 76 | I158: 76.00 | J158: Target Achieved | K158: 17.00 | L158: 28.81% | M158: Successful | N158: 2017-10-24
A159: 16 | B159: 2014-11-11 | D159: Snowman Logistics | E159: Buy | F159: 99.00 | G159: - | H159: 120 | I159: 120.00 | J159: Profit of Rs.21/- | K159: 21.00 | L159: 21.21% | M159: Successful | N159: 2014-11-17
A160: 17 | B160: 2014-11-13 | D160: Dharamsi Morarji Chem | E160: Buy | F160: 22.00 | G160: - | H160: 33.55 | I160: 32.00 | J160: Profit of Rs 11.55/- | K160: 11.55 | L160: 52.50% | M160: Successful | N160: 2015-07-03
A161: 18 | B161: 2014-12-03 | D161: Tatachem | E161: Buy | F161: 440.00 | G161: - | H161: 520 | I161: 520.00 | J161: Profit of Rs 80.00/- | K161: 80.00 | L161: 18.18% | M161: Successful | N161: 2015-07-23
A162: 19 | B162: 2014-12-03 | D162: Advanta | E162: Buy | F162: 360.00 | G162: - | H162: 427 | I162: 425.00 | J162: Profit of Rs.67.00/- | K162: 67.00 | L162: 18.61% | M162: Successful | N162: 2015-02-23
A163: 20 | B163: 2015-01-08 | D163: GDL | E163: Buy | F163: 360.00 | G163: - | H163: 455 | I163: 420.00 | J163: Profit of Rs.95.00/- | K163: 95.00 | L163: 26.39% | M163: Successful | N163: 2015-01-20
A164: 21 | B164: 2015-01-08 | D164: NRB Bearing | E164: Buy | F164: 130.00 | H164: 175.5 | I164: 165.00 | J164: Profit of Rs 45.50/- | K164: 45.50 | L164: 35.00% | M164: Successful | N164: 2017-12-19
A165: 22 | B165: 2015-02-05 | D165: GSFC | E165: Accu | F165: 98.00 | H165: 120 | I165: 120.00 | J165: Target Achieved | K165: 22.00 | L165: 22.45% | M165: Successful | N165: 2017-01-18
A166: 23 | B166: 2015-02-05 | D166: Sundrmfast | E166: Accu | F166: 196.00 | H166: 262 | I166: 255.00 | J166: Target Achieved | K166: 66.00 | L166: 33.67% | M166: Successful | N166: 2016-08-17
A167: 24 | B167: 2015-03-04 | D167: GPPL | E167: Accu | F167: 235 | H167: 77.00 | I167: 280-285 | J167: Loss of Rs.158/- | K167: -158.00 | L167: -67.23% | M167: Unsuccessful | N167: 2019-02-26
A168: 25 | B168: 2015-03-04 | D168: ORIENTCEM | E168: Accu | F168: 185.00 | H168: 224 | I168: 220-225 | J168: Target Achieved | K168: 39.00 | L168: 21.08% | M168: Successful | N168: 2016-10-04
A169: 26 | B169: 2015-03-27 | D169: PFS | E169: Accu | F169: 49.5 | H169: 15.85 | I169: 67.00 | J169: Loss of Rs.33.65/- | K169: -33.65 | L169: -68% | M169: Unsuccessful | N169: 2019-06-11
A170: 27 | B170: 2015-03-30 | D170: Walchandnagar Ind Ltd | E170: Accu | F170: 183.50 | H170: 219 | I170: 218.00 | J170: Profit of Rs.35.50/- | K170: 35.50 | L170: =K170/F170 -> 19.35% | M170: Successful | N170: 2015-04-09
A171: 28 | B171: 2015-04-20 | D171: Kalpataru Power Transmission Ltd | E171: Accu | F171: =(227+237)/2 -> 232.00 | H171: 298 | I171: 298.00 | J171: Target Achieved | K171: 66.00 | L171: 28.45% | M171: Successful | N171: 2017-03-29
A172: 29 | B172: 2015-05-04 | D172: Mastek Ltd | E172: Buy | F172: 385.00 | H172: =212.5+331 -> 543.5 | I172: 510.00 | J172: Profit of Rs 158.50/- | K172: 158.50 | L172: 41.17% | M172: Successful | N172: 2015-08-19
A173: 30 | B173: 2015-05-04 | D173: Suprajit Eng | E173: Buy | F173: 115.50 | H173: 146 | I173: 142.00 | J173: Profit of Rs 30.50/- | K173: 30.50 | L173: 26.41% | M173: Successful | N173: 2015-07-17
A174: 31 | B174: 2015-05-27 | D174: TCI | E174: Buy | F174: 237.50 | H174: 279.5 | I174: 278.00 | J174: Target Achieved | K174: 42.00 | L174: 17.68% | M174: Successful | N174: 2015-08-06
A175: 32 | B175: 2015-06-19 | D175: HSIL | E175: Accu | F175: 340.00 | H175: 448 | I175: 448.00 | J175: Target Achieved | K175: 108.00 | L175: 31.76% | M175: Successful | N175: 2017-10-10
A176: 33 | B176: 2015-07-06 | D176: Capital First | E176: Accu | F176: 390.00 | H176: 460 | I176: 460.00 | J176: Target Achieved | K176: 70.00 | L176: 17.95% | M176: Successful | N176: 2016-04-18
A177: 34 | B177: 2015-07-10 | D177: Dolphin OffShore | E177: Accu | F177: 122.5 | H177: 61.00 | I177: 172.00 | J177: Loss of Rs.61.50/- | K177: -61.50 | L177: -50.20% | M177: Unsuccessful | N177: 2018-08-21
A178: 35 | B178: 2015-08-03 | D178: Allcargo logistics | E178: Accu | F178: 297.50 | H178: 350 | I178: 360.00 | J178: Profit of Rs 52.50/- | K178: 52.50 | L178: 17.65% | M178: Successful | N178: 2015-08-16
A179: 36 | B179: 2015-08-03 | D179: Camline Fine | E179: Accu | F179: 115.50 | H179: 149 | I179: 140.00 | J179: Profit of Rs 33.50/- | K179: 33.50 | L179: 29.00% | M179: Successful | N179: 2017-01-05
A180: 37 | B180: 2015-09-04 | D180: TCI | E180: Accu | F180: 226.00 | H180: 292 | I180: 292.00 | J180: Target Achieved | K180: 66.00 | L180: 29.20% | M180: Successful | N180: 2015-10-09
A181: 38 | B181: 2015-09-07 | D181: Kalpataru Power Transmission Ltd | E181: Accu | F181: 232.50 | H181: 312.5 | I181: 310.00 | J181: Target Achieved | K181: 80.00 | L181: 34.41% | M181: Successful | N181: 2017-03-29
A182: 39 | B182: 2015-09-21 | D182: LLOYD ELECTRIC & ENG LTD | E182: Accu | F182: 196.50 | H182: 238 | I182: 238.00 | J182: Target Achieved | K182: 41.50 | L182: 21.12% | M182: Successful | N182: 2015-10-14
A183: 40 | B183: 2015-09-24 | D183: L&T Finance Holding | E183: Accu | F183: 65.00 | H183: 82 | I183: 82.00 | J183: Target Achieved | K183: 17.00 | L183: 26.15% | M183: Successful | N183: 2016-07-27
A184: 41 | B184: 2015-10-14 | D184: KEC International ltd | E184: Accu | F184: 144.00 | H184: 182.5 | I184: 181.00 | J184: Target Achieved | K184: 38.50 | L184: 26.74% | M184: Successful | N184: 2017-03-23
A185: 42 | B185: 2015-10-14 | D185: Gruh Finance | E185: Accu | F185: 264.00 | H185: 311 | I185: 311.00 | J185: Target Achieved | K185: 47.00 | L185: 17.80% | M185: Successful | N185: 2016-08-22
A186: 43 | B186: 2015-11-10 | D186: Pidilitind | E186: Buy | F186: 549.50 | H186: 630 | I186: 630.00 | J186: Target Achieved | K186: 80.50 | L186: 14.65% | M186: Successful | N186: 2016-02-19
A187: 44 | B187: 2015-12-04 | D187: Zensar Technology | E187: Accu | F187: 1027.50 | H187: 1315 | I187: 1250.00 | J187: Target Achieved | K187: 287.50 | L187: 27.98% | M187: Successful | N187: 2018-05-24
A188: 45 | B188: 2015-12-29 | D188: Vinati Organics Ltd | E188: Accu | F188: 465.00 | H188: 540 | I188: 540.00 | J188: Target Achieved | K188: 75.00 | L188: 16.13% | M188: Successful | N188: 2016-06-09
A189: 46 | B189: 2016-01-11 | D189: GSFC | E189: Buy | F189: 81.00 | H189: 110 | I189: 110.00 | J189: Target Achieved | K189: 29.00 | L189: 35.80% | M189: Successful | N189: 2017-01-10
A190: 47 | B190: 2016-01-13 | D190: SSWL | E190: Buy | F190: 417.50 | H190: 547 | I190: 535.00 | J190: Target Achieved | K190: 129.50 | L190: 31.02% | M190: Successful | N190: 2016-07-27
A191: 48 | B191: 2016-02-08 | D191: Persistent System Ltd | E191: Accu | F191: 650.00 | H191: 800 | I191: 800.00 | J191: Target Achieved | K191: 150.00 | L191: 23.08% | M191: Successful | N191: 2018-02-23
A192: 49 | B192: 2016-03-04 | D192: UPL | E192: Accu | F192: 437.50 | H192: 504.5 | I192: 522.00 | J192: Profit of Rs.67/- | K192: 67.00 | L192: 15.31% | M192: Successful | N192: 2016-04-20
A193: 50 | B193: 2016-03-09 | D193: Ashoka Buildcon Ltd | E193: Accu | F193: 189.50 | H193: 218 | I193: 218.00 | J193: Target Achieved | K193: 28.50 | L193: 15.04% | M193: Successful | N193: 2017-10-26
A194: 51 | B194: 2016-04-11 | D194: PTC INDIA FIN SERV LTD | E194: Accu | F194: 36.5 | H194: 15.85 | I194: 60.00 | J194: Loss of Rs.20.65/- | K194: -20.65 | L194: -56.58% | M194: Unsuccessful | N194: 2019-06-11
A195: 52 | B195: 2016-04-12 | D195: CAMLINFINE $ | E195: Accu | F195: 93.00 | H195: 149 | I195: 140.00 | J195: Profit of Rs 56/- | K195: 56.00 | L195: 60.22% | M195: Successful | N195: 2017-01-05
A196: 53 | B196: 2016-04-12 | D196: Greaves Cotton Ltd. | E196: Accu | F196: 130.00 | H196: 150 | I196: 150-155 | J196: Target Achieved | K196: 20.00 | L196: 15.38% | M196: Successful | N196: 2016-07-13
A197: 54 | B197: 2016-05-02 | D197: KEC International ltd $ | E197: Accu | F197: 127.50 | H197: 148 | I197: 148-150 | J197: Target Achieved | K197: 20.50 | L197: 16.08% | M197: Successful | N197: 2016-07-13
A198: 55 | B198: 2016-05-03 | D198: Mindtree | E198: Accu | F198: 675.00 | H198: 815 | I198: 790-800 | J198: Target Achieved | K198: 140.00 | L198: 20.74% | M198: Successful | N198: 2018-02-23
A199: 56 | B199: 2016-06-06 | D199: TRITURBINE | E199: Accu | F199: 110.00 | H199: 126.5 | I199: 125.00 | J199: Profit of Rs.16.50/- | K199: 16.50 | L199: 15.00% | M199: Successful | N199: 2016-07-01
A200: 57 | B200: 2016-06-17 | D200: Pennar Industries Ltd | E200: Accu | F200: 44.00 | H200: 69.5 | I200: 69.50 | J200: Profit of Rs.25.50/- | K200: 25.50 | L200: 57.95% | M200: Successful | N200: 2017-08-30
A201: 58 | B201: 2016-07-05 | D201: Bajaj Corp Ltd | E201: Accu | F201: 395 | H201: =(468.5+342.5)/2 -> 405.50 | I201: 510.00 | J201: Profit of Rs.10.50/- | K201: 10.50 | L201: 3% | M201: Neutral | N201: 2019-05-21
A202: 59 | B202: 2016-08-02 | D202: GPPL $ | E202: Buy | F202: 169.5 | H202: 77.00 | I202: 198-200 | J202: Loss of Rs.92.5/- | K202: -92.50 | L202: -54.57% | M202: Unsuccessful | N202: 2019-02-26
A203: 60 | B203: 2016-08-04 | D203: WONDERLA HOLIDAYS LTD | E203: Accu | F203: 400 | H203: 305.00 | I203: 475.00 | J203: Loss of Rs.95/- | K203: -95.00 | L203: -23.75% | M203: Unsuccessful | N203: 2019-05-21
A204: 61 | B204: 2016-08-11 | D204: CAMLINFINE | E204: Accu | F204: 86.50 | H204: 130 | I204: 130.00 | J204: Profit of Rs.43.50/- | K204: 43.50 | L204: 50.29% | M204: Successful | N204: 2017-12-22
A205: 62 | B205: 2016-08-18 | D205: GRANULES | E205: Accu | F205: 133.5 | H205: 126.50 | I205: 178.00 | J205: Exit | K205: -7.00 | L205: -5.24% | M205: Unsuccessful | N205: 2016-09-02
A206: 63 | B206: 2016-08-31 | D206: VA TECH WABAG | E206: Accu | F206: 560.00 | H206: 725 | I206: 725.00 | J206: Target Achieved | K206: 165.00 | L206: 29.46% | M206: Successful | N206: 2016-03-27
A207: 64 | B207: 2016-09-01 | D207: SKIPPER LIMITED | E207: Accu | F207: 160.50 | H207: 210 | I207: 210.00 | J207: Target Achieved | K207: 49.50 | L207: 30.84% | M207: Successful | N207: 2017-05-16
A208: 65 | B208: 2016-10-14 | D208: ASIANTILES | E208: Accu | F208: 280.00 | H208: 345 | I208: 345.00 | J208: Target Achieved | K208: 65.00 | L208: 23.21% | M208: Successful | N208: 2017-03-20
A209: 66 | B209: 2016-10-14 | D209: DEEPIND | E209: Accu | F209: 245.00 | H209: 325.5 | I209: 330.00 | J209: Profit of Rs.80.5/- | K209: 80.50 | L209: 32.86% | M209: Successful | N209: 2017-02-03
A210: 67 | B210: 2016-10-17 | D210: DCBBANK | E210: Accu | F210: 125.00 | H210: 160 | I210: 160.00 | J210: Target Achieved | K210: =H210-F210 -> 35.00 | L210: 28.00% | M210: Successful | N210: 2017-03-09
A211: 68 | B211: 2016-10-17 | D211: ORIENTREF | E211: Accu | F211: 114.00 | H211: 145 | I211: 145.00 | J211: Target Achieved | K211: 31.00 | L211: =K211/F211 -> 27.19% | M211: Successful | N211: 2017-05-04
A212: 69 | B212: 2016-10-17 | D212: GANECOS | E212: Accu | F212: 212.00 | H212: 280 | I212: 276.00 | J212: Profit of Rs.68/- | K212: 68.00 | L212: =K212/F212 -> 32.08% | M212: Successful | N212: 2017-05-03
A213: 70 | B213: 2016-11-04 | D213: NBCC | E213: Accu | F213: 155.00 | H213: 210 | I213: 210.00 | J213: Profit of Rs.55/- | K213: 55.00 | L213: =K213/F213 -> 35.48% | M213: Successful | N213: 2017-07-28
A214: 71 | B214: 2016-12-08 | D214: INFRATEL | E214: Accu | F214: 380.00 | H214: 478 | I214: 468.00 | J214: Target Achieved | K214: 98.00 | L214: =K214/F214 -> 25.79% | M214: Successful | N214: 2017-10-17
A215: 72 | B215: 2016-12-30 | D215: GODREJPROP | E215: Accu | F215: 305.00 | H215: 375 | I215: 375.00 | J215: Target Achieved | K215: 70.00 | L215: 22.95% | M215: Successful | N215: 2017-02-02
A216: 73 | B216: 2017-01-04 | D216: DEEPAKNTR | E216: Accu | F216: 99.50 | H216: 158 | I216: 158.00 | J216: Target Achieved | K216: 58.50 | L216: 58.79% | M216: Successful | N216: 2017-06-12
A217: 74 | B217: 2017-02-20 | D217: RECLTD | E217: Accu | F217: 140.50 | H217: 220 | I217: 220.00 | J217: Target Achieved | K217: 79.50 | L217: 56.58% | M217: Successful | N217: 2017-05-09
A218: 75 | B218: 2017-03-24 | D218: VRLLOG | E218: Accu | F218: 300.50 | H218: 417.5 | I218: 420.00 | J218: Profit of Rs.117/- | K218: 117.00 | L218: 38.94% | M218: Successful | N218: 2017-12-01
A219: 76 | B219: 2017-04-05 | D219: RATNAMANI | E219: Accu | F219: 785.00 | H219: 930 | I219: 920.00 | J219: Profit of Rs.145/- | K219: 145.00 | L219: 18.47% | M219: Successful | N219: 2017-08-29
A220: 77 | B220: 2017-04-12 | D220: DABUR | E220: Accu | F220: 289.50 | H220: 354 | I220: 360.00 | J220: Profit of Rs.64.5/- | K220: 64.50 | L220: 22.28% | M220: Successful | N220: 2017-11-01
A221: 78 | B221: 2017-04-20 | D221: KPRMILL | E221: Accu | F221: 700.00 | H221: 840 | I221: 840.00 | J221: Profit of Rs.140/- | K221: 140.00 | L221: 20.00% | M221: Successful | N221: 2017-06-07
A222: 79 | B222: 2017-06-01 | D222: ESSELPACK | E222: Accu | F222: 130.00 | H222: 144.25 | I222: 170.00 | J222: Profit of Rs.14.25/- | K222: 14.25 | L222: =K222/F222 -> 10.96% | M222: Successful | N222: 2019-07-29
A223: 80 | B223: 2017-06-15 | D223: KEI | E223: Accu | F223: 214.50 | H223: 262 | I223: 262.00 | J223: Profit of Rs.47.5/- | K223: =H223-F223 -> 47.50 | L223: 22.14% | M223: Successful | N223: 2017-08-30
A224: 81 | B224: 2017-07-17 | D224: MAYURUNIQ | E224: Accu | F224: 370.00 | H224: 447.5 | I224: 450.00 | J224: Target Achieved | K224: 77.50 | L224: 20.95% | M224: Successful | N224: 2017-10-27
A225: 82 | B225: 2017-07-27 | D225: RAMCOCEM | E225: Accu | F225: 657.50 | H225: 825 | I225: 820.00 | J225: Target Achieved | K225: 167.50 | L225: 25.48% | M225: Successful | N225: 2017-12-21
A226: 83 | B226: 2017-08-17 | D226: FINPIPE | E226: Accu | F226: 605.00 | H226: 750 | I226: 750.00 | J226: Profit of Rs.145/- | K226: 145.00 | L226: 23.97% | M226: Successful | N226: 2017-10-19
A227: 84 | B227: 2017-09-01 | D227: SHK | E227: Accu | F227: 255 | H227: 217.25 | I227: 320.00 | J227: Loss of Rs.37.75/- | K227: -37.75 | L227: -15% | M227: Unsuccessful | N227: 2019-07-15
A228: 85 | B228: 2017-09-19 | D228: SKIPPER | E228: Accu | F228: 215.00 | H228: 258 | I228: 258.00 | J228: Target Achieved | K228: 43.00 | L228: 20.00% | M228: Successful | N228: 2017-11-01
A229: 86 | B229: 2017-09-20 | D229: CAMLINFINE | E229: Accu | F229: 75.00 | H229: 90 | I229: 90.00 | J229: Profit of Rs.15.00/- | K229: 15.00 | L229: 20.00% | M229: Successful | N229: 2017-10-11
A230: 87 | B230: 2017-10-03 | D230: GNA | E230: Accu | F230: 315.00 | H230: 392 | I230: 384.00 | J230: Profit of Rs.77/- | K230: 77.00 | L230: 24.44% | M230: Successful | N230: 2017-10-09
A231: 88 | B231: 2017-10-05 | D231: NOCIL | E231: Accu | F231: 145.00 | H231: 179 | I231: 180.00 | J231: Profit of Rs.34/- | K231: 34.00 | L231: 23.45% | M231: Successful | N231: 2017-10-17
A232: 89 | B232: 2017-10-06 | D232: CENTURYPLY | E232: Accu | F232: 256.00 | H232: 323 | I232: 320.00 | J232: Target Achieved | K232: 67.00 | L232: 26.17% | M232: Successful | N232: 2017-11-28
A233: 90 | B233: 2017-10-09 | D233: EIHOTEL | E233: Accu | F233: 137.50 | H233: 184 | I233: 183.00 | J233: Profit of Rs.46.5/- | K233: 46.50 | L233: 33.82% | M233: Successful | N233: 2018-01-08
A234: 91 | B234: 2017-10-10 | D234: NRBBEARING | E234: Accu | F234: 125.50 | H234: 158 | I234: 155.00 | J234: Profit of Rs.32.5/- | K234: 32.50 | L234: 25.90% | M234: Successful | N234: 2017-11-28
A235: 92 | B235: 2017-11-07 | D235: HATSUN | E235: Accu | F235: 740.00 | H235: 892.5 | I235: 900.00 | J235: Profit of Rs.152.5/- | K235: 152.50 | L235: 20.61% | M235: Successful | N235: 2017-11-13
A236: 93 | B236: 2017-12-04 | D236: SANGHIIND | E236: Accu | F236: 118.50 | H236: 143.5 | I236: 145.00 | J236: Profit of Rs.25/- | K236: 25.00 | L236: 21.10% | M236: Successful | N236: 2017-12-28
A237: 94 | B237: 2017-12-21 | D237: KAJARIACER | E237: Accu | F237: 715 | H237: 500.00 | I237: 872.00 | J237: Loss of Rs.215/- | K237: =H237-F237 -> -215.00 | L237: =K237/F237 -> -30.07% | M237: Unsuccessful | N237: 2019-07-24
A238: 95 | B238: 2018-04-04 | D238: GPPL | E238: Accu | F238: 141.5 | H238: 77.00 | I238: 180.00 | J238: Loss of Rs.64.5/- | K238: -64.50 | L238: -45.58% | M238: Unsuccessful | N238: 2019-02-26
A239: 96 | B239: 2018-04-19 | D239: MANPASAND | E239: Accu | F239: 430 | H239: 220.00 | I239: 537.00 | J239: Loss of Rs.210/- | K239: -210.00 | L239: -48.84% | M239: Unsuccessful | N239: 2018-06-01
... 60 more rows

Sheet Sheet2 (hidden)
A1: SYMBOL | B1: SERIES | C1: OPEN | D1: HIGH | E1: LOW | F1: CLOSE | G1: LAST | H1: PREVCLOSE | I1: TOTTRDQTY | J1: TOTTRDVAL | K1: TIMESTAMP | L1: TOTALTRADES | M1: ISIN | N1: ISIN
A2: 20MICRONS | B2: EQ | C2: 38.8 | D2: 38.8 | E2: 37.7 | F2: 38.05 | G2: 38.1 | H2: 38.05 | I2: 14693 | J2: 558584.95 | K2: 2019-10-15 | L2: 156 | M2: INE144J01027
A3: 21STCENMGM | B3: EQ | C3: 12.7 | D3: 12.7 | E3: 12.7 | F3: 12.7 | G3: 12.7 | H3: 12.7 | I3: 2 | J3: 25.4 | K3: 2019-10-15 | L3: 1 | M3: INE253B01015
A4: 3IINFOTECH | B4: EQ | C4: 2.1 | D4: 2.1 | E4: 2 | F4: 2 | G4: 2.05 | H4: 2 | I4: 522318 | J4: 1066589.6 | K4: 2019-10-15 | L4: 353 | M4: INE748C01020
A5: 3MINDIA | B5: EQ | C5: 19932 | D5: 20370 | E5: 19932 | F5: 20267.65 | G5: 20350 | H5: 19930.5 | I5: 3337 | J5: 67111627.75 | K5: 2019-10-15 | L5: 883 | M5: INE470A01017
A6: 3PLAND | B6: EQ | C6: 6.25 | D6: 6.25 | E6: 6.2 | F6: 6.2 | G6: 6.2 | H6: 6.2 | I6: 10 | J6: 62.45 | K6: 2019-10-15 | L6: 2 | M6: INE105C01023
A7: 5PAISA | B7: EQ | C7: 184.25 | D7: 184.25 | E7: 179.5 | F7: 181.05 | G7: 179.5 | H7: 175.5 | I7: 23706 | J7: 4342571.4 | K7: 2019-10-15 | L7: 544 | M7: INE618L01018
A8: 63MOONS | B8: EQ | C8: 118.6 | D8: 120.5 | E8: 114.5 | F8: 115.55 | G8: 116 | H8: 116.8 | I8: 126148 | J8: 14849243.05 | K8: 2019-10-15 | L8: 2177 | M8: INE111B01023
A9: A2ZINFRA | B9: EQ | C9: 9.75 | D9: 10 | E9: 9.45 | F9: 9.7 | G9: 9.7 | H9: 9.8 | I9: 225906 | J9: 2193449.7 | K9: 2019-10-15 | L9: 575 | M9: INE619I01012
A10: AARTIDRUGS | B10: EQ | C10: 464.25 | D10: 464.25 | E10: 452.95 | F10: 457.5 | G10: 456.5 | H10: 457.75 | I10: 2971 | J10: 1358210.05 | K10: 2019-10-15 | L10: 358 | M10: INE767A01016
A11: AARTIIND | B11: EQ | C11: 771.1 | D11: 775 | E11: 753 | F11: 758.75 | G11: 753.1 | H11: 770.85 | I11: 76417 | J11: 58347137.7 | K11: 2019-10-15 | L11: 14072 | M11: INE769A01020
A12: AARVEEDEN | B12: EQ | C12: 14.5 | D12: 15.55 | E12: 14.2 | F12: 14.5 | G12: 14.5 | H12: 14.5 | I12: 2180 | J12: 31353.95 | K12: 2019-10-15 | L12: 84 | M12: INE273D01019
A13: AAVAS | B13: EQ | C13: 1700 | D13: 1700 | E13: 1662.3 | F13: 1673.95 | G13: 1674.95 | H13: 1696.7 | I13: 9038 | J13: 15157301.6 | K13: 2019-10-15 | L13: 1641 | M13: INE216P01012
A14: ABAN | B14: BE | C14: 25.8 | D14: 26.3 | E14: 25.1 | F14: 25.55 | G14: 25.5 | H14: 25.8 | I14: 17326 | J14: 443486.45 | K14: 2019-10-15 | L14: 216 | M14: INE421A01028
A15: ABB | B15: EQ | C15: 1479.9 | D15: 1520 | E15: 1465.65 | F15: 1496.7 | G15: 1515.1 | H15: 1478.4 | I15: 49536 | J15: 73765478.65 | K15: 2019-10-15 | L15: 2892 | M15: INE117A01022
A16: ABBOTINDIA | B16: EQ | C16: 11000 | D16: 11025 | E16: 10765 | F16: 10917.9 | G16: 10920.6 | H16: 10999.6 | I16: 12639 | J16: 137319646.9 | K16: 2019-10-15 | L16: 1951 | M16: INE358A01014
A17: ABCAPITAL | B17: EQ | C17: 78.4 | D17: 78.5 | E17: 77 | F17: 77.25 | G17: 77.2 | H17: 77.85 | I17: 729005 | J17: 56595145.45 | K17: 2019-10-15 | L17: 8029 | M17: INE674K01013
A18: ABFRL | B18: EQ | C18: 205.25 | D18: 205.8 | E18: 198.2 | F18: 200 | G18: 200 | H18: 205.05 | I18: 463568 | J18: 93141926.8 | K18: 2019-10-15 | L18: 9243 | M18: INE647O01011
A19: ABSLNN50ET | B19: EQ | C19: 270.09 | D19: 270.09 | E19: 270.09 | F19: 270.09 | G19: 270.09 | H19: 270.49 | I19: 18 | J19: 4861.62 | K19: 2019-10-15 | L19: 2 | M19: INF209KB1B87
A20: ACC | B20: EQ | C20: 1479 | D20: 1505 | E20: 1461.3 | F20: 1498.05 | G20: 1497.9 | H20: 1469.35 | I20: 1702459 | J20: 2528377127 | K20: 2019-10-15 | L20: 58539 | M20: INE012A01025
A21: ACCELYA | B21: EQ | C21: 810 | D21: 834 | E21: 806.45 | F21: 830.7 | G21: 834 | H21: 819.5 | I21: 1881 | J21: 1533596.3 | K21: 2019-10-15 | L21: 401 | M21: INE793A01012
A22: ACE | B22: EQ | C22: 77.95 | D22: 78.75 | E22: 77.3 | F22: 78 | G22: 78 | H22: 77.7 | I22: 100068 | J22: 7804761.6 | K22: 2019-10-15 | L22: 729 | M22: INE731H01025
A23: ADANIENT | B23: EQ | C23: 147.7 | D23: 155.85 | E23: 146.6 | F23: 155 | G23: 154.9 | H23: 147.1 | I23: 11048872 | J23: 1684046274 | K23: 2019-10-15 | L23: 62824 | M23: INE423A01024
A24: ADANIGAS | B24: EQ | C24: 154.8 | D24: 155.7 | E24: 150.1 | F24: 151.55 | G24: 152 | H24: 150.75 | I24: 1819063 | J24: 277759464.6 | K24: 2019-10-15 | L24: 20380 | M24: INE399L01023
A25: ADANIGREEN | B25: EQ | C25: 79.8 | D25: 81.2 | E25: 77.75 | F25: 79.95 | G25: 80.5 | H25: 79.15 | I25: 2719906 | J25: 217266565.8 | K25: 2019-10-15 | L25: 15209 | M25: INE364U01010
A26: ADANIPORTS | B26: EQ | C26: 408.85 | D26: 414.5 | E26: 407.45 | F26: 413.75 | G26: 413.55 | H26: 407.45 | I26: 2434978 | J26: 1004108167 | K26: 2019-10-15 | L26: 31421 | M26: INE742F01042
A27: ADANIPOWER | B27: EQ | C27: 62.15 | D27: 62.35 | E27: 61 | F27: 61.9 | G27: 61.8 | H27: 62.3 | I27: 6691019 | J27: 412869651.2 | K27: 2019-10-15 | L27: 18893 | M27: INE814H01011
A28: ADANITRANS | B28: EQ | C28: 235 | D28: 253 | E28: 232.2 | F28: 239.15 | G28: 238.75 | H28: 225.05 | I28: 1036776 | J28: 252102037.7 | K28: 2019-10-15 | L28: 19436 | M28: INE931S01010
A29: ADFFOODS | B29: EQ | C29: 264 | D29: 266.4 | E29: 256 | F29: 258.4 | G29: 258.4 | H29: 262.3 | I29: 14748 | J29: 3849996.9 | K29: 2019-10-15 | L29: 1433 | M29: INE982B01019
A30: ADHUNIKIND | B30: EQ | C30: 118.7 | D30: 118.7 | E30: 111.2 | F30: 116.5 | G30: 116.95 | H30: 115.7 | I30: 69740 | J30: 8150468.6 | K30: 2019-10-15 | L30: 734 | M30: INE452L01012
A31: ADLABS | B31: EQ | C31: 2.3 | D31: 2.3 | E31: 2.2 | F31: 2.2 | G31: 2.2 | H31: 2.3 | I31: 60255 | J31: 132814.5 | K31: 2019-10-15 | L31: 102 | M31: INE172N01012
A32: ADORWELD | B32: EQ | C32: 309 | D32: 309 | E32: 295.25 | F32: 296.05 | G32: 295.55 | H32: 300.95 | I32: 1290 | J32: 384971.4 | K32: 2019-10-15 | L32: 124 | M32: INE045A01017
A33: ADSL | B33: EQ | C33: 13.1 | D33: 13.5 | E33: 13 | F33: 13.1 | G33: 13 | H33: 13.1 | I33: 24120 | J33: 316098.25 | K33: 2019-10-15 | L33: 90 | M33: INE102I01027
A34: ADVANIHOTR | B34: EQ | C34: 53.75 | D34: 54.5 | E34: 52.85 | F34: 53.85 | G34: 54.5 | H34: 53.3 | I34: 3558 | J34: 191551.35 | K34: 2019-10-15 | L34: 59 | M34: INE199C01026
A35: ADVENZYMES | B35: EQ | C35: 147.85 | D35: 148.15 | E35: 146 | F35: 146.9 | G35: 147 | H35: 147.55 | I35: 21491 | J35: 3155169.4 | K35: 2019-10-15 | L35: 586 | M35: INE837H01020
A36: AEGISCHEM | B36: EQ | C36: 164 | D36: 173.8 | E36: 163.8 | F36: 169.25 | G36: 168 | H36: 163.8 | I36: 130920 | J36: 22096718.35 | K36: 2019-10-15 | L36: 4600 | M36: INE208C01025
A37: AFFLE | B37: EQ | C37: 1209 | D37: 1220.15 | E37: 1160.35 | F37: 1167.15 | G37: 1166 | H37: 1200.9 | I37: 67284 | J37: 79847336.85 | K37: 2019-10-15 | L37: 5989 | M37: INE00WC01019
A38: AGARIND | B38: EQ | C38: 113 | D38: 119.3 | E38: 113 | F38: 116.65 | G38: 119.3 | H38: 113.75 | I38: 40743 | J38: 4685490.9 | K38: 2019-10-15 | L38: 84 | M38: INE204E01012
A39: AGCNET | B39: BE | C39: 107.45 | D39: 114.95 | E39: 107.45 | F39: 112.6 | G39: 114.8 | H39: 112.25 | I39: 231 | J39: 25011.1 | K39: 2019-10-15 | L39: 9 | M39: INE676A01019
A40: AGLSL | B40: EQ | C40: 52 | D40: 52 | E40: 48.15 | F40: 50.2 | G40: 50.5 | H40: 48.1 | I40: 2432 | J40: 121601.35 | K40: 2019-10-15 | L40: 48 | M40: INE517U01013
A41: AGRITECH | B41: EQ | C41: 43.8 | D41: 44.35 | E41: 43.5 | F41: 43.6 | G41: 43.65 | H41: 43.75 | I41: 6526 | J41: 285115.6 | K41: 2019-10-15 | L41: 94 | M41: INE449G01018
A42: AGROPHOS | B42: EQ | C42: 110.25 | D42: 110.55 | E42: 110.1 | F42: 110.2 | G42: 110.2 | H42: 110.1 | I42: 534710 | J42: 58968780.4 | K42: 2019-10-15 | L42: 34590 | M42: INE740V01019
A43: AHLEAST | B43: EQ | C43: 184.95 | D43: 186.95 | E43: 178 | F43: 182.05 | G43: 183 | H43: 180.4 | I43: 1089 | J43: 198138.05 | K43: 2019-10-15 | L43: 105 | M43: INE926K01017
A44: AHLUCONT | B44: EQ | C44: 276.85 | D44: 276.9 | E44: 261.2 | F44: 264.6 | G44: 263.15 | H44: 272.05 | I44: 1456 | J44: 387232.7 | K44: 2019-10-15 | L44: 150 | M44: INE758C01029
A45: AHLWEST | B45: EQ | C45: 282.7 | D45: 288.25 | E45: 275.1 | F45: 277.9 | G45: 275.5 | H45: 280.9 | I45: 150 | J45: 42360.05 | K45: 2019-10-15 | L45: 57 | M45: INE915K01010
A46: AIAENG | B46: EQ | C46: 1732.8 | D46: 1736.25 | E46: 1686.05 | F46: 1714.55 | G46: 1702.2 | H46: 1716.6 | I46: 7453 | J46: 12792384.1 | K46: 2019-10-15 | L46: 1237 | M46: INE212H01026
A47: AIONJSW | B47: EQ | C47: 9.9 | D47: 10 | E47: 9.7 | F47: 9.9 | G47: 10 | H47: 10 | I47: 17068 | J47: 169297.4 | K47: 2019-10-15 | L47: 66 | M47: INE743C01021
A48: AIRAN | B48: EQ | C48: 12.5 | D48: 12.75 | E48: 12.5 | F48: 12.75 | G48: 12.75 | H48: 12.55 | I48: 542 | J48: 6858 | K48: 2019-10-15 | L48: 11 | M48: INE645W01026
A49: AJANTPHARM | B49: EQ | C49: 963.25 | D49: 974 | E49: 951.25 | F49: 954.8 | G49: 952 | H49: 959.8 | I49: 61717 | J49: 59322604.4 | K49: 2019-10-15 | L49: 3190 | M49: INE031B01049
A50: AJMERA | B50: EQ | C50: 114.3 | D50: 115 | E50: 112 | F50: 112.45 | G50: 112.95 | H50: 113.5 | I50: 14444 | J50: 1639120.2 | K50: 2019-10-15 | L50: 567 | M50: INE298G01027
A51: AKASH | B51: EQ | C51: 59 | D51: 59 | E51: 59 | F51: 59 | G51: 59 | H51: 59.15 | I51: 50 | J51: 2950 | K51: 2019-10-15 | L51: 1 | M51: INE737W01013
A52: AKSHARCHEM | B52: EQ | C52: 207.4 | D52: 207.4 | E52: 195.95 | F52: 196.95 | G52: 198.9 | H52: 203.85 | I52: 2730 | J52: 545875.1 | K52: 2019-10-15 | L52: 117 | M52: INE542B01011
A53: AKSHOPTFBR | B53: EQ | C53: 7.5 | D53: 7.7 | E53: 7.15 | F53: 7.45 | G53: 7.4 | H53: 7.5 | I53: 232789 | J53: 1726329.65 | K53: 2019-10-15 | L53: 421 | M53: INE523B01011
A54: AKZOINDIA | B54: EQ | C54: 1873.55 | D54: 1947 | E54: 1851.4 | F54: 1935.35 | G54: 1915 | H54: 1866.1 | I54: 34428 | J54: 64826119.15 | K54: 2019-10-15 | L54: 2121 | M54: INE133A01011
A55: ALANKIT | B55: EQ | C55: 20.35 | D55: 20.4 | E55: 18.65 | F55: 19.3 | G55: 19.35 | H55: 19.95 | I55: 138920 | J55: 2722937.15 | K55: 2019-10-15 | L55: 1424 | M55: INE914E01040
A56: ALBERTDAVD | B56: EQ | C56: 343 | D56: 350.05 | E56: 342 | F56: 349.45 | G56: 349.8 | H56: 342.65 | I56: 1801 | J56: 623549.25 | K56: 2019-10-15 | L56: 113 | M56: INE155C01010
A57: ALBK | B57: EQ | C57: 25.4 | D57: 25.55 | E57: 24.6 | F57: 24.9 | G57: 24.9 | H57: 25.6 | I57: 844536 | J57: 21155705.7 | K57: 2019-10-15 | L57: 2925 | M57: INE428A01015
A58: ALCHEM | B58: BE | C58: 0.8 | D58: 0.8 | E58: 0.8 | F58: 0.8 | G58: 0.8 | H58: 0.8 | I58: 185 | J58: 148 | K58: 2019-10-15 | L58: 2 | M58: INE964B01033
A59: ALEMBICLTD | B59: EQ | C59: 46.25 | D59: 47.8 | E59: 46.2 | F59: 47.1 | G59: 47 | H59: 46.2 | I59: 65490 | J59: 3088682.55 | K59: 2019-10-15 | L59: 401 | M59: INE426A01027
A60: ALICON | B60: EQ | C60: 347.4 | D60: 355.8 | E60: 332.5 | F60: 336.8 | G60: 332.5 | H60: 336 | I60: 1489 | J60: 506956.3 | K60: 2019-10-15 | L60: 135 | M60: INE062D01024
A61: ALKALI | B61: EQ | C61: 43.25 | D61: 44 | E61: 42.65 | F61: 43 | G61: 43.2 | H61: 43 | I61: 7026 | J61: 304655.4 | K61: 2019-10-15 | L61: 136 | M61: INE773I01017
A62: ALKEM | B62: EQ | C62: 1947.9 | D62: 1950 | E62: 1911 | F62: 1915.1 | G62: 1922 | H62: 1941.95 | I62: 19628 | J62: 38010509.95 | K62: 2019-10-15 | L62: 1972 | M62: INE540L01014
A63: ALKYLAMINE | B63: EQ | C63: 839.95 | D63: 840 | E63: 825 | F63: 838.15 | G63: 833 | H63: 835.2 | I63: 1056 | J63: 881595.4 | K63: 2019-10-15 | L63: 123 | M63: INE150B01021
A64: ALLCARGO | B64: EQ | C64: 98.4 | D64: 100.95 | E64: 98.25 | F64: 99.8 | G64: 99.95 | H64: 98.65 | I64: 110106 | J64: 10965453.5 | K64: 2019-10-15 | L64: 1895 | M64: INE418H01029
A65: ALLSEC | B65: EQ | C65: 277 | D65: 277.9 | E65: 268.05 | F65: 273.3 | G65: 275 | H65: 272.7 | I65: 3696 | J65: 1001781.15 | K65: 2019-10-15 | L65: 243 | M65: INE835G01018
A66: ALMONDZ | B66: EQ | C66: 9 | D66: 9.5 | E66: 9 | F66: 9.05 | G66: 9.05 | H66: 9.45 | I66: 1112 | J66: 10014.25 | K66: 2019-10-15 | L66: 6 | M66: INE326B01027
A67: ALOKTEXT | B67: EQ | C67: 1.75 | D67: 1.8 | E67: 1.75 | F67: 1.75 | G67: 1.75 | H67: 1.8 | I67: 7031990 | J67: 12331560.55 | K67: 2019-10-15 | L67: 1512 | M67: INE270A01011
A68: ALPA | B68: EQ | C68: 13.95 | D68: 14.3 | E68: 13.95 | F68: 14.15 | G68: 14.25 | H68: 13.75 | I68: 2693 | J68: 37876.25 | K68: 2019-10-15 | L68: 38 | M68: INE385I01010
A69: ALPHAGEO | B69: EQ | C69: 180.1 | D69: 186 | E69: 174 | F69: 177.5 | G69: 178.5 | H69: 180.65 | I69: 6909 | J69: 1236428.8 | K69: 2019-10-15 | L69: 496 | M69: INE137C01018
A70: ALPSINDUS | B70: BE | C70: 0.35 | D70: 0.35 | E70: 0.3 | F70: 0.35 | G70: 0.3 | H70: 0.35 | I70: 2914 | J70: 1017.15 | K70: 2019-10-15 | L70: 12 | M70: INE093B01015
A71: AMARAJABAT | B71: EQ | C71: 687.85 | D71: 694 | E71: 645.55 | F71: 679.05 | G71: 681.15 | H71: 684.75 | I71: 1376409 | J71: 929760203.7 | K71: 2019-10-15 | L71: 37846 | M71: INE885A01032
A72: AMBER | B72: EQ | C72: 939.75 | D72: 939.8 | E72: 925 | F72: 928.2 | G72: 930.9 | H72: 932.3 | I72: 10078 | J72: 9386443.6 | K72: 2019-10-15 | L72: 1049 | M72: INE371P01015
A73: AMBIKCO | B73: EQ | C73: 899.95 | D73: 914.9 | E73: 895.1 | F73: 911.1 | G73: 914.9 | H73: 898.8 | I73: 996 | J73: 898600.8 | K73: 2019-10-15 | L73: 176 | M73: INE540G01014
A74: AMBUJACEM | B74: EQ | C74: 194.9 | D74: 198.5 | E74: 194 | F74: 196.95 | G74: 196.4 | H74: 194.05 | I74: 2661814 | J74: 523524761.3 | K74: 2019-10-15 | L74: 23563 | M74: INE079A01024
A75: AMDIND | B75: EQ | C75: 17 | D75: 17 | E75: 14.85 | F75: 15.55 | G75: 15.4 | H75: 15.6 | I75: 5894 | J75: 91803.25 | K75: 2019-10-15 | L75: 38 | M75: INE005I01014
A76: AMJLAND | B76: EQ | C76: 15.8 | D76: 16.25 | E76: 15.15 | F76: 16.25 | G76: 16.25 | H76: 15.8 | I76: 6439 | J76: 103002.25 | K76: 2019-10-15 | L76: 24 | M76: INE606A01024
A77: AMRUTANJAN | B77: EQ | C77: 341.05 | D77: 359.5 | E77: 341.05 | F77: 355.4 | G77: 354.1 | H77: 340.6 | I77: 27062 | J77: 9473368.6 | K77: 2019-10-15 | L77: 1518 | M77: INE098F01031
A78: ANANTRAJ | B78: EQ | C78: 29.9 | D78: 29.9 | E78: 29.1 | F78: 29.35 | G78: 29.45 | H78: 29.25 | I78: 105068 | J78: 3098479.85 | K78: 2019-10-15 | L78: 884 | M78: INE242C01024
A79: ANDHRABANK | B79: EQ | C79: 15.85 | D79: 16 | E79: 15.05 | F79: 15.65 | G79: 15.7 | H79: 15.85 | I79: 455519 | J79: 7125393.5 | K79: 2019-10-15 | L79: 1697 | M79: INE434A01013
A80: ANDHRACEMT | B80: BE | C80: 2.8 | D80: 2.85 | E80: 2.65 | F80: 2.7 | G80: 2.65 | H80: 2.75 | I80: 53375 | J80: 149742.55 | K80: 2019-10-15 | L80: 130 | M80: INE666E01012
A81: ANDHRSUGAR | B81: EQ | C81: 265.8 | D81: 267.95 | E81: 262.5 | F81: 263.95 | G81: 264.7 | H81: 265.4 | I81: 7916 | J81: 2092456.1 | K81: 2019-10-15 | L81: 513 | M81: INE715B01013
A82: ANIKINDS | B82: EQ | C82: 6.1 | D82: 6.55 | E82: 6.1 | F82: 6.1 | G82: 6.1 | H82: 6.2 | I82: 951 | J82: 5810.45 | K82: 2019-10-15 | L82: 12 | M82: INE087B01017
A83: ANKITMETAL | B83: BE | C83: 0.45 | D83: 0.5 | E83: 0.4 | F83: 0.5 | G83: 0.5 | H83: 0.45 | I83: 20811 | J83: 8921.25 | K83: 2019-10-15 | L83: 15 | M83: INE106I01010
A84: ANSALAPI | B84: EQ | C84: 3.95 | D84: 4.05 | E84: 3.9 | F84: 4.05 | G84: 4 | H84: 3.95 | I84: 20321 | J84: 80894 | K84: 2019-10-15 | L84: 47 | M84: INE436A01026
A85: ANSALHSG | B85: EQ | C85: 4.75 | D85: 4.75 | E85: 4.35 | F85: 4.5 | G85: 4.6 | H85: 4.45 | I85: 12852 | J85: 57893.35 | K85: 2019-10-15 | L85: 249 | M85: INE880B01015
A86: ANTGRAPHIC | B86: BE | C86: 0.75 | D86: 0.75 | E86: 0.7 | F86: 0.7 | G86: 0.7 | H86: 0.75 | I86: 59106 | J86: 42286.45 | K86: 2019-10-15 | L86: 19 | M86: INE414B01021
A87: ANUP | B87: EQ | C87: 441.05 | D87: 463 | E87: 441.05 | F87: 460.7 | G87: 458.9 | H87: 450.25 | I87: 12045 | J87: 5458932.4 | K87: 2019-10-15 | L87: 526 | M87: INE294Z01018
A88: APARINDS | B88: EQ | C88: 519.05 | D88: 523.4 | E88: 501.3 | F88: 505.8 | G88: 507.95 | H88: 513.75 | I88: 5196 | J88: 2669211.25 | K88: 2019-10-15 | L88: 581 | M88: INE372A01015
A89: APCL | B89: EQ | C89: 140.95 | D89: 144.85 | E89: 139.4 | F89: 141.4 | G89: 139.8 | H89: 140.2 | I89: 1595 | J89: 224548.15 | K89: 2019-10-15 | L89: 42 | M89: INE071F01012
A90: APCOTEXIND | B90: EQ | C90: 193 | D90: 193 | E90: 185.5 | F90: 186.4 | G90: 185.5 | H90: 186.75 | I90: 8355 | J90: 1564668.8 | K90: 2019-10-15 | L90: 335 | M90: INE116A01032
A91: APEX | B91: EQ | C91: 211 | D91: 218.5 | E91: 211 | F91: 215.65 | G91: 216.8 | H91: 209.4 | I91: 40151 | J91: 8657292.85 | K91: 2019-10-15 | L91: 1488 | M91: INE346W01013
A92: APLAPOLLO | B92: EQ | C92: 1372.35 | D92: 1395 | E92: 1356 | F92: 1391.9 | G92: 1390 | H92: 1352.05 | I92: 18604 | J92: 25624471.25 | K92: 2019-10-15 | L92: 1166 | M92: INE702C01019
A93: APLLTD | B93: EQ | C93: 532.4 | D93: 539.9 | E93: 524.25 | F93: 528.3 | G93: 530 | H93: 535.45 | I93: 30995 | J93: 16443522.5 | K93: 2019-10-15 | L93: 2319 | M93: INE901L01018
A94: APOLLO | B94: EQ | C94: 69.9 | D94: 71 | E94: 67.5 | F94: 68.85 | G94: 68.6 | H94: 69.2 | I94: 12508 | J94: 857569.65 | K94: 2019-10-15 | L94: 568 | M94: INE713T01010
A95: APOLLOHOSP | B95: EQ | C95: 1459.9 | D95: 1489 | E95: 1457 | F95: 1483.75 | G95: 1487 | H95: 1451.75 | I95: 594035 | J95: 878082542.3 | K95: 2019-10-15 | L95: 22527 | M95: INE437A01024
A96: APOLLOTYRE | B96: EQ | C96: 169.95 | D96: 173.8 | E96: 168.65 | F96: 173.3 | G96: 173.55 | H96: 169.95 | I96: 1647100 | J96: 283402905 | K96: 2019-10-15 | L96: 14081 | M96: INE438A01022
A97: APOLSINHOT | B97: EQ | C97: 762.45 | D97: 776.8 | E97: 762.45 | F97: 772.4 | G97: 776.8 | H97: 757 | I97: 380 | J97: 292074.2 | K97: 2019-10-15 | L97: 177 | M97: INE451F01024
A98: APTECHT | B98: EQ | C98: 151.2 | D98: 154.5 | E98: 149.25 | F98: 152.25 | G98: 152 | H98: 151.1 | I98: 99578 | J98: 15163599.6 | K98: 2019-10-15 | L98: 2188 | M98: INE266F01018
A99: ARCHIDPLY | B99: EQ | C99: 27.15 | D99: 27.6 | E99: 25.5 | F99: 25.9 | G99: 26.1 | H99: 27.3 | I99: 9884 | J99: 258527.7 | K99: 2019-10-15 | L99: 345 | M99: INE877I01016
A100: ARCHIES | B100: BE | C100: 18.3 | D100: 19 | E100: 18.15 | F100: 18.9 | G100: 18.9 | H100: 18.7 | I100: 21909 | J100: 406065.9 | K100: 2019-10-15 | L100: 103 | M100: INE731A01020
A101: ARCOTECH | B101: BE | C101: 1.7 | D101: 1.7 | E101: 1.6 | F101: 1.6 | G101: 1.6 | H101: 1.65 | I101: 6233 | J101: 10059.55 | K101: 2019-10-15 | L101: 43 | M101: INE574I01035
A102: ARIES | B102: EQ | C102: 63.05 | D102: 63.7 | E102: 59.85 | F102: 61.2 | G102: 61.05 | H102: 62.4 | I102: 23099 | J102: 1430426.85 | K102: 2019-10-15 | L102: 349 | M102: INE298I01015
A103: ARIHANT | B103: EQ | C103: 18 | D103: 18.95 | E103: 17 | F103: 18 | G103: 18.95 | H103: 19 | I103: 1088 | J103: 19435.3 | K103: 2019-10-15 | L103: 32 | M103: INE413D01011
A104: ARIHANTSUP | B104: BE | C104: 25.3 | D104: 25.3 | E104: 25.3 | F104: 25.3 | G104: 25.3 | H104: 26.6 | I104: 296 | J104: 7488.8 | K104: 2019-10-15 | L104: 10 | M104: INE643K01018
A105: ARMANFIN | B105: EQ | C105: 547 | D105: 554 | E105: 535.05 | F105: 545.8 | G105: 553 | H105: 542.1 | I105: 4408 | J105: 2409766.65 | K105: 2019-10-15 | L105: 204 | M105: INE109C01017
A106: AROGRANITE | B106: EQ | C106: 38.55 | D106: 39.9 | E106: 38.25 | F106: 38.65 | G106: 38.6 | H106: 38.55 | I106: 7111 | J106: 274638.2 | K106: 2019-10-15 | L106: 133 | M106: INE210C01013
A107: ARROWGREEN | B107: EQ | C107: 49 | D107: 53.3 | E107: 49 | F107: 53.3 | G107: 53.3 | H107: 50.8 | I107: 5215 | J107: 277575.7 | K107: 2019-10-15 | L107: 46 | M107: INE570D01018
A108: ARROWTEX | B108: EQ | C108: 11.2 | D108: 11.2 | E108: 9.55 | F108: 9.9 | G108: 9.75 | H108: 10.05 | I108: 2924 | J108: 29148.15 | K108: 2019-10-15 | L108: 46 | M108: INE933J01015
A109: ARSHIYA | B109: EQ | C109: 16.65 | D109: 17.25 | E109: 16.4 | F109: 16.4 | G109: 16.4 | H109: 17.25 | I109: 54032 | J109: 892012.7 | K109: 2019-10-15 | L109: 255 | M109: INE968D01022
A110: ARSSINFRA | B110: EQ | C110: 20.7 | D110: 22 | E110: 20.65 | F110: 21.15 | G110: 21 | H110: 21.7 | I110: 8772 | J110: 184249.85 | K110: 2019-10-15 | L110: 108 | M110: INE267I01010
A111: ARVIND | B111: EQ | C111: 44.2 | D111: 44.25 | E111: 42.1 | F111: 42.4 | G111: 42.1 | H111: 43.7 | I111: 942961 | J111: 40437494.1 | K111: 2019-10-15 | L111: 5805 | M111: INE034A01011
A112: ARVINDFASN | B112: EQ | C112: 428 | D112: 435 | E112: 426.6 | F112: 430.7 | G112: 432 | H112: 427.4 | I112: 10923 | J112: 4697271.4 | K112: 2019-10-15 | L112: 1247 | M112: INE955V01021
A113: ARVSMART | B113: EQ | C113: 86.4 | D113: 88.9 | E113: 86.25 | F113: 87.9 | G113: 86.8 | H113: 88.4 | I113: 4990 | J113: 436652.25 | K113: 2019-10-15 | L113: 394 | M113: INE034S01021
A114: ASAHIINDIA | B114: EQ | C114: 185.8 | D114: 185.9 | E114: 180.75 | F114: 182.55 | G114: 182 | H114: 181.65 | I114: 5982 | J114: 1087705.05 | K114: 2019-10-15 | L114: 196 | M114: INE439A01020
A115: ASAHISONG | B115: EQ | C115: 146.95 | D115: 146.95 | E115: 137.35 | F115: 138.05 | G115: 138.2 | H115: 145.85 | I115: 12571 | J115: 1767005.85 | K115: 2019-10-15 | L115: 411 | M115: INE228I01012
A116: ASAL | B116: EQ | C116: 32.05 | D116: 32.6 | E116: 31.05 | F116: 32.6 | G116: 32.6 | H116: 31.7 | I116: 1560 | J116: 48826.25 | K116: 2019-10-15 | L116: 18 | M116: INE900C01027
A117: ASHAPURMIN | B117: BE | C117: 29.85 | D117: 32.5 | E117: 29.85 | F117: 29.85 | G117: 29.85 | H117: 31.4 | I117: 86303 | J117: 2583245.65 | K117: 2019-10-15 | L117: 134 | M117: INE348A01023
A118: ASHIANA | B118: EQ | C118: 96.45 | D118: 97.65 | E118: 94.35 | F118: 94.95 | G118: 95 | H118: 96.3 | I118: 147226 | J118: 14047345.4 | K118: 2019-10-15 | L118: 1794 | M118: INE365D01021
A119: ASHIMASYN | B119: EQ | C119: 7.35 | D119: 7.65 | E119: 6.85 | F119: 7.2 | G119: 7.25 | H119: 7.3 | I119: 84036 | J119: 603511.4 | K119: 2019-10-15 | L119: 641 | M119: INE440A01010
A120: ASHOKA | B120: EQ | C120: 99.45 | D120: 102.5 | E120: 98.25 | F120: 100.75 | G120: 100.5 | H120: 98.25 | I120: 234473 | J120: 23613781.65 | K120: 2019-10-15 | L120: 2385 | M120: INE442H01029
A121: ASHOKLEY | B121: EQ | C121: 68 | D121: 69.65 | E121: 67.35 | F121: 69.1 | G121: 69.15 | H121: 67.6 | I121: 24809075 | J121: 1703679655 | K121: 2019-10-15 | L121: 69650 | M121: INE208A01029
A122: ASIANHOTNR | B122: EQ | C122: 95.7 | D122: 101.6 | E122: 95.7 | F122: 97.6 | G122: 96.5 | H122: 97.35 | I122: 1620 | J122: 158448.25 | K122: 2019-10-15 | L122: 63 | M122: INE363A01022
A123: ASIANPAINT | B123: EQ | C123: 1807.7 | D123: 1825 | E123: 1796 | F123: 1803.1 | G123: 1804.1 | H123: 1798.7 | I123: 1204392 | J123: 2182298151 | K123: 2019-10-15 | L123: 47958 | M123: INE021A01026
A124: ASIANTILES | B124: EQ | C124: 220.5 | D124: 221 | E124: 215 | F124: 217.95 | G124: 217.55 | H124: 218.15 | I124: 38401 | J124: 8391383.6 | K124: 2019-10-15 | L124: 2564 | M124: INE022I01019
A125: ASPINWALL | B125: EQ | C125: 135.1 | D125: 136.5 | E125: 135.1 | F125: 136.5 | G125: 136.5 | H125: 135 | I125: 1435 | J125: 195633 | K125: 2019-10-15 | L125: 6 | M125: INE991I01015
A126: ASSAMCO | B126: BE | C126: 0.55 | D126: 0.55 | E126: 0.45 | F126: 0.5 | G126: 0.5 | H126: 0.5 | I126: 214979 | J126: 108420.85 | K126: 2019-10-15 | L126: 88 | M126: INE442A01024
A127: ASTEC | B127: EQ | C127: 381.95 | D127: 381.95 | E127: 351.7 | F127: 356.25 | G127: 354.1 | H127: 369.05 | I127: 7584 | J127: 2713437.8 | K127: 2019-10-15 | L127: 795 | M127: INE563J01010
A128: ASTERDM | B128: EQ | C128: 117.25 | D128: 119.8 | E128: 117.05 | F128: 119.2 | G128: 119.8 | H128: 117.5 | I128: 28680 | J128: 3397565.3 | K128: 2019-10-15 | L128: 563 | M128: INE914M01019
A129: ASTRAL | B129: EQ | C129: 1164.1 | D129: 1179.95 | E129: 1150.5 | F129: 1169.55 | G129: 1169.9 | H129: 1164.5 | I129: 62938 | J129: 73578235.75 | K129: 2019-10-15 | L129: 5235 | M129: INE006I01046
A130: ASTRAMICRO | B130: EQ | C130: 79.8 | D130: 79.85 | E130: 77.55 | F130: 78 | G130: 77.85 | H130: 79.2 | I130: 61642 | J130: 4836763.55 | K130: 2019-10-15 | L130: 975 | M130: INE386C01029
A131: ASTRAZEN | B131: EQ | C131: 2162.65 | D131: 2188 | E131: 2125 | F131: 2134.25 | G131: 2130.1 | H131: 2170.35 | I131: 5545 | J131: 11938816.45 | K131: 2019-10-15 | L131: 1171 | M131: INE203A01020
A132: ASTRON | B132: EQ | C132: 97.25 | D132: 101.9 | E132: 96.15 | F132: 100.8 | G132: 99.1 | H132: 97.25 | I132: 541678 | J132: 53900685.2 | K132: 2019-10-15 | L132: 6851 | M132: INE646X01014
A133: ATFL | B133: EQ | C133: 474.1 | D133: 484.95 | E133: 473.15 | F133: 474.7 | G133: 473.15 | H133: 476.8 | I133: 2139 | J133: 1018822.05 | K133: 2019-10-15 | L133: 160 | M133: INE209A01019
A134: ATLANTA | B134: BE | C134: 6.7 | D134: 7.1 | E134: 6.65 | F134: 6.95 | G134: 7 | H134: 7 | I134: 8185 | J134: 55987.8 | K134: 2019-10-15 | L134: 32 | M134: INE285H01022
A135: ATUL | B135: EQ | C135: 4027.1 | D135: 4042.65 | E135: 3960.15 | F135: 3973.85 | G135: 3973 | H135: 4026.4 | I135: 4983 | J135: 19918446.9 | K135: 2019-10-15 | L135: 1532 | M135: INE100A01010
A136: ATULAUTO | B136: EQ | C136: 220.5 | D136: 222.7 | E136: 216.1 | F136: 220.8 | G136: 220 | H136: 217.35 | I136: 14518 | J136: 3190779.7 | K136: 2019-10-15 | L136: 609 | M136: INE951D01028
A137: AUBANK | B137: EQ | C137: 646 | D137: 653 | E137: 641 | F137: 643.55 | G137: 644 | H137: 643.7 | I137: 332462 | J137: 215845428.9 | K137: 2019-10-15 | L137: 3472 | M137: INE949L01017
A138: AURIONPRO | B138: EQ | C138: 77.45 | D138: 80.5 | E138: 59.65 | F138: 64.55 | G138: 65.8 | H138: 74.55 | I138: 145016 | J138: 9459639.9 | K138: 2019-10-15 | L138: 3834 | M138: INE132H01018
A139: AUROPHARMA | B139: EQ | C139: 459.25 | D139: 467.6 | E139: 450 | F139: 455.35 | G139: 454.55 | H139: 459.25 | I139: 4811384 | J139: 2200171973 | K139: 2019-10-15 | L139: 72745 | M139: INE406A01037
A140: AUSOMENT | B140: EQ | C140: 27 | D140: 28 | E140: 26.4 | F140: 27.05 | G140: 27.15 | H140: 27.75 | I140: 356 | J140: 9649.8 | K140: 2019-10-15 | L140: 51 | M140: INE218C01016
A141: AUTOAXLES | B141: EQ | C141: 871 | D141: 895 | E141: 863.1 | F141: 888.3 | G141: 887 | H141: 876.65 | I141: 4177 | J141: 3690515.6 | K141: 2019-10-15 | L141: 352 | M141: INE449A01011
A142: AUTOIND | B142: EQ | C142: 34 | D142: 34 | E142: 32.1 | F142: 32.55 | G142: 32.6 | H142: 32.75 | I142: 7260 | J142: 235807.25 | K142: 2019-10-15 | L142: 87 | M142: INE718H01014
A143: AUTOLITIND | B143: EQ | C143: 20.3 | D143: 20.95 | E143: 19.65 | F143: 20.25 | G143: 20.2 | H143: 20.3 | I143: 1156 | J143: 23438.3 | K143: 2019-10-15 | L143: 16 | M143: INE448A01013
A144: AVADHSUGAR | B144: EQ | C144: 262 | D144: 267 | E144: 259.2 | F144: 262.75 | G144: 263.3 | H144: 261.55 | I144: 25321 | J144: 6650357.4 | K144: 2019-10-15 | L144: 1008 | M144: INE349W01017
A145: AVANTIFEED | B145: EQ | C145: 374.9 | D145: 382 | E145: 372.2 | F145: 379.95 | G145: 381.4 | H145: 372.95 | I145: 207307 | J145: 78238994.75 | K145: 2019-10-15 | L145: 6472 | M145: INE871C01038
A146: AVTNPL | B146: EQ | C146: 22.85 | D146: 23 | E146: 22.4 | F146: 22.55 | G146: 22.55 | H146: 22.5 | I146: 10786 | J146: 243706.2 | K146: 2019-10-15 | L146: 84 | M146: INE488D01021
A147: AXISBANK | B147: EQ | C147: 682.6 | D147: 694.85 | E147: 681.3 | F147: 690.05 | G147: 689.9 | H147: 683.5 | I147: 9260732 | J147: 6376061664 | K147: 2019-10-15 | L147: 100513 | M147: INE238A01034
A148: AXISCADES | B148: EQ | C148: 80.5 | D148: 80.5 | E148: 74.15 | F148: 75.3 | G148: 75.5 | H148: 80.05 | I148: 151596 | J148: 11703454.6 | K148: 2019-10-15 | L148: 3396 | M148: INE555B01013
A149: AXISGOLD | B149: EQ | C149: 3392.4 | D149: 3415 | E149: 3363.1 | F149: 3379.75 | G149: 3379 | H149: 3378 | I149: 374 | J149: 1265607.4 | K149: 2019-10-15 | L149: 102 | M149: INF846K01347
A150: AXISNIFTY | B150: EQ | C150: 1170 | D150: 1180.44 | E150: 1168.05 | F150: 1171.78 | G150: 1171.78 | H150: 1170 | I150: 338 | J150: 395255.81 | K150: 2019-10-15 | L150: 14 | M150: INF846K01ZL0
A151: AYMSYNTEX | B151: EQ | C151: 30.95 | D151: 31.35 | E151: 28.55 | F151: 30.9 | G151: 30 | H151: 29.05 | I151: 28933 | J151: 894586.65 | K151: 2019-10-15 | L151: 115 | M151: INE193B01039
A152: BAGFILMS | B152: EQ | C152: 1.55 | D152: 1.55 | E152: 1.5 | F152: 1.55 | G152: 1.55 | H152: 1.5 | I152: 253528 | J152: 392255.65 | K152: 2019-10-15 | L152: 157 | M152: INE116D01028
A153: BAJAJ-AUTO | B153: EQ | C153: 2964 | D153: 3029.9 | E153: 2953.45 | F153: 3011.95 | G153: 3010.6 | H153: 2958.05 | I153: 636441 | J153: 1910501356 | K153: 2019-10-15 | L153: 38503 | M153: INE917I01010
A154: BAJAJCON | B154: EQ | C154: 229 | D154: 238.8 | E154: 195.1 | F154: 203.65 | G154: 212.9 | H154: 230.05 | I154: 7294285 | J154: 1492041930 | K154: 2019-10-15 | L154: 60596 | M154: INE933K01021
A155: BAJAJELEC | B155: EQ | C155: 381 | D155: 384 | E155: 378 | F155: 381.3 | G155: 381.05 | H155: 382.25 | I155: 36473 | J155: 13903417.25 | K155: 2019-10-15 | L155: 2305 | M155: INE193E01025
A156: BAJAJFINSV | B156: EQ | C156: 8130 | D156: 8130 | E156: 8013 | F156: 8035.85 | G156: 8050 | H156: 8082.25 | I156: 217114 | J156: 1752164537 | K156: 2019-10-15 | L156: 19905 | M156: INE918I01018
A157: BAJAJHIND | B157: EQ | C157: 6.05 | D157: 6.25 | E157: 6 | F157: 6.15 | G157: 6.15 | H157: 6 | I157: 382475 | J157: 2331038.95 | K157: 2019-10-15 | L157: 674 | M157: INE306A01021
A158: BAJAJHLDNG | B158: EQ | C158: 3570 | D158: 3620.4 | E158: 3570 | F158: 3600 | G158: 3590 | H158: 3566.1 | I158: 12923 | J158: 46566124.75 | K158: 2019-10-15 | L158: 3221 | M158: INE118A01012
A159: BAJFINANCE | B159: EQ | C159: 3895 | D159: 3916 | E159: 3843 | F159: 3879.45 | G159: 3884.3 | H159: 3883.3 | I159: 1394894 | J159: 5419175320 | K159: 2019-10-15 | L159: 108824 | M159: INE296A01024
A160: BALAJITELE | B160: EQ | C160: 51 | D160: 51.7 | E160: 50.6 | F160: 51.35 | G160: 51.15 | H160: 51.15 | I160: 22391 | J160: 1149394.35 | K160: 2019-10-15 | L160: 233 | M160: INE794B01026
A161: BALAMINES | B161: EQ | C161: 300.25 | D161: 318 | E161: 300.25 | F161: 302.05 | G161: 302.8 | H161: 302 | I161: 23049 | J161: 7103165.7 | K161: 2019-10-15 | L161: 1479 | M161: INE050E01027
A162: BALAXI | B162: EQ | C162: 75.3 | D162: 82.4 | E162: 75.3 | F162: 79.1 | G162: 75.4 | H162: 78.5 | I162: 357 | J162: 27673.35 | K162: 2019-10-15 | L162: 13 | M162: INE618N01014
A163: BALKRISHNA | B163: BE | C163: 20.15 | D163: 22.2 | E163: 20.15 | F163: 20.85 | G163: 21 | H163: 21.2 | I163: 14281 | J163: 295662.8 | K163: 2019-10-15 | L163: 114 | M163: INE875R01011
A164: BALKRISIND | B164: EQ | C164: 761.35 | D164: 779.1 | E164: 758 | F164: 772.35 | G164: 773 | H164: 761.35 | I164: 426275 | J164: 327346953.1 | K164: 2019-10-15 | L164: 10037 | M164: INE787D01026
A165: BALLARPUR | B165: EQ | C165: 0.55 | D165: 0.55 | E165: 0.5 | F165: 0.5 | G165: 0.5 | H165: 0.55 | I165: 3429269 | J165: 1717301.3 | K165: 2019-10-15 | L165: 347 | M165: INE294A01037
A166: BALMLAWRIE | B166: EQ | C166: 167 | D166: 167.8 | E166: 164 | F166: 164.65 | G166: 164.5 | H166: 165.55 | I166: 39838 | J166: 6591340.5 | K166: 2019-10-15 | L166: 1070 | M166: INE164A01016
A167: BALPHARMA | B167: EQ | C167: 37.45 | D167: 38.75 | E167: 36.3 | F167: 37.65 | G167: 38 | H167: 37.55 | I167: 2821 | J167: 106295.1 | K167: 2019-10-15 | L167: 67 | M167: INE083D01012
A168: BALRAMCHIN | B168: EQ | C168: 154.4 | D168: 156.95 | E168: 154 | F168: 155.1 | G168: 155 | H168: 154.35 | I168: 840535 | J168: 130491030.5 | K168: 2019-10-15 | L168: 12923 | M168: INE119A01028
A169: BANARBEADS | B169: EQ | C169: 29.45 | D169: 30.5 | E169: 29.45 | F169: 29.85 | G169: 29.5 | H169: 29.7 | I169: 131 | J169: 3904 | K169: 2019-10-15 | L169: 6 | M169: INE655B01011
A170: BANARISUG | B170: EQ | C170: 1125 | D170: 1125.05 | E170: 1099.95 | F170: 1123.55 | G170: 1121 | H170: 1114.2 | I170: 695 | J170: 778901.7 | K170: 2019-10-15 | L170: 39 | M170: INE459A01010
A171: BANCOINDIA | B171: EQ | C171: 94 | D171: 95 | E171: 92.55 | F171: 93.15 | G171: 93.45 | H171: 94 | I171: 37451 | J171: 3501129.3 | K171: 2019-10-15 | L171: 1041 | M171: INE213C01025
A172: BANDHANBNK | B172: EQ | C172: 570.2 | D172: 638 | E172: 570.2 | F172: 623.7 | G172: 629 | H172: 568.7 | I172: 59302088 | J172: 3.65788694e+10 | K172: 2019-10-15 | L172: 528745 | M172: INE545U01014
A173: BANG | B173: EQ | C173: 20.15 | D173: 20.5 | E173: 19.1 | F173: 20.1 | G173: 20 | H173: 19.7 | I173: 3726 | J173: 74617.1 | K173: 2019-10-15 | L173: 66 | M173: INE863I01016
A174: BANKBARODA | B174: EQ | C174: 88.25 | D174: 88.75 | E174: 86.8 | F174: 88 | G174: 87.9 | H174: 88.3 | I174: 25324047 | J174: 2228379770 | K174: 2019-10-15 | L174: 65283 | M174: INE028A01039
A175: BANKBEES | B175: EQ | C175: 2895.49 | D175: 2930 | E175: 2880.91 | F175: 2920.05 | G175: 2918.06 | H175: 2872.85 | I175: 4239 | J175: 12321265.17 | K175: 2019-10-15 | L175: 660 | M175: INF732E01078
A176: BANKINDIA | B176: EQ | C176: 60.2 | D176: 61.6 | E176: 59.65 | F176: 61.25 | G176: 61.15 | H176: 60.05 | I176: 6295769 | J176: 381804423.4 | K176: 2019-10-15 | L176: 15445 | M176: INE084A01016
A177: BANSWRAS | B177: EQ | C177: 69.7 | D177: 73 | E177: 67.05 | F177: 67.75 | G177: 68 | H177: 67 | I177: 5538 | J177: 387184.5 | K177: 2019-10-15 | L177: 92 | M177: INE629D01012
A178: BARTRONICS | B178: BE | C178: 1.7 | D178: 1.7 | E178: 1.65 | F178: 1.65 | G178: 1.65 | H178: 1.7 | I178: 5121 | J178: 8455.15 | K178: 2019-10-15 | L178: 13 | M178: INE855F01034
A179: BASF | B179: EQ | C179: 956 | D179: 960.95 | E179: 930 | F179: 931.7 | G179: 938.7 | H179: 951.9 | I179: 8245 | J179: 7763338.4 | K179: 2019-10-15 | L179: 1057 | M179: INE373A01013
A180: BASML | B180: EQ | C180: 130 | D180: 140 | E180: 130 | F180: 138.95 | G180: 140 | H180: 127.2 | I180: 7808 | J180: 1057736.65 | K180: 2019-10-15 | L180: 271 | M180: INE186H01014
A181: BATAINDIA | B181: EQ | C181: 1730 | D181: 1735 | E181: 1708.1 | F181: 1717.1 | G181: 1717.1 | H181: 1730.85 | I181: 409419 | J181: 703757024 | K181: 2019-10-15 | L181: 32378 | M181: INE176A01028
A182: BAYERCROP | B182: EQ | C182: 3343.85 | D182: 3346.9 | E182: 3307.25 | F182: 3326.5 | G182: 3311 | H182: 3333.15 | I182: 7019 | J182: 23364073.8 | K182: 2019-10-15 | L182: 1147 | M182: INE462A01022
A183: BBL | B183: EQ | C183: 904.1 | D183: 905.5 | E183: 885 | F183: 890.55 | G183: 888 | H183: 902.7 | I183: 6916 | J183: 6171382.55 | K183: 2019-10-15 | L183: 634 | M183: INE464A01028
A184: BBTC | B184: EQ | C184: 1155.05 | D184: 1208 | E184: 1149.05 | F184: 1190.15 | G184: 1194 | H184: 1150.3 | I184: 355573 | J184: 422774067.5 | K184: 2019-10-15 | L184: 15672 | M184: INE050A01025
A185: BCG | B185: EQ | C185: 3.05 | D185: 3.05 | E185: 2.8 | F185: 2.9 | G185: 2.95 | H185: 3.05 | I185: 447988 | J185: 1313167 | K185: 2019-10-15 | L185: 311 | M185: INE425B01027
A186: BCP | B186: EQ | C186: 8.85 | D186: 8.85 | E186: 8.85 | F186: 8.85 | G186: 8.85 | H186: 9 | I186: 424 | J186: 3752.4 | K186: 2019-10-15 | L186: 6 | M186: INE905P01028
A187: BDL | B187: EQ | C187: 282 | D187: 283.8 | E187: 280 | F187: 281.35 | G187: 281 | H187: 281.2 | I187: 14900 | J187: 4193495.55 | K187: 2019-10-15 | L187: 963 | M187: INE171Z01018
A188: BEARDSELL | B188: EQ | C188: 10.6 | D188: 10.8 | E188: 10.25 | F188: 10.7 | G188: 10.8 | H188: 10.35 | I188: 961 | J188: 10281.05 | K188: 2019-10-15 | L188: 12 | M188: INE520H01022
A189: BEDMUTHA | B189: EQ | C189: 10.05 | D189: 11.2 | E189: 10.05 | F189: 10.7 | G189: 11.2 | H189: 10.2 | I189: 14298 | J189: 152877.2 | K189: 2019-10-15 | L189: 29 | M189: INE844K01012
A190: BEL | B190: EQ | C190: 109.95 | D190: 111.15 | E190: 108.15 | F190: 110.5 | G190: 111.1 | H190: 108.95 | I190: 8543399 | J190: 937662043.8 | K190: 2019-10-15 | L190: 62999 | M190: INE263A01024
A191: BEML | B191: EQ | C191: 891 | D191: 905.7 | E191: 872 | F191: 878.25 | G191: 880 | H191: 890.65 | I191: 488608 | J191: 433722625.4 | K191: 2019-10-15 | L191: 15607 | M191: INE258A01016
A192: BEPL | B192: EQ | C192: 50.15 | D192: 50.9 | E192: 49 | F192: 49.9 | G192: 49.65 | H192: 49.75 | I192: 200507 | J192: 9984900.2 | K192: 2019-10-15 | L192: 2402 | M192: INE922A01025
A193: BERGEPAINT | B193: EQ | C193: 480 | D193: 484.8 | E193: 475.45 | F193: 478.25 | G193: 480 | H193: 477.1 | I193: 1856109 | J193: 890688447.5 | K193: 2019-10-15 | L193: 73037 | M193: INE463A01038
A194: BFINVEST | B194: EQ | C194: 284.5 | D194: 333.05 | E194: 283.2 | F194: 325.75 | G194: 325.3 | H194: 282.85 | I194: 929772 | J194: 295399191.2 | K194: 2019-10-15 | L194: 17054 | M194: INE878K01010
A195: BFUTILITIE | B195: EQ | C195: 167.7 | D195: 200.25 | E195: 164.05 | F195: 200.25 | G195: 200.25 | H195: 166.9 | I195: 1501002 | J195: 277947966 | K195: 2019-10-15 | L195: 20702 | M195: INE243D01012
A196: BGLOBAL | B196: BE | C196: 1.65 | D196: 1.65 | E196: 1.55 | F196: 1.65 | G196: 1.65 | H196: 1.6 | I196: 5698 | J196: 9287.9 | K196: 2019-10-15 | L196: 18 | M196: INE224M01013
A197: BGRENERGY | B197: EQ | C197: 32.3 | D197: 34 | E197: 31.25 | F197: 32 | G197: 32 | H197: 31.95 | I197: 357489 | J197: 11525661.45 | K197: 2019-10-15 | L197: 1738 | M197: INE661I01014
A198: BHAGERIA | B198: EQ | C198: 107.9 | D198: 108.5 | E198: 105 | F198: 107.35 | G198: 106.15 | H198: 106.85 | I198: 9290 | J198: 990895.85 | K198: 2019-10-15 | L198: 181 | M198: INE354C01027
A199: BHAGYANGR | B199: EQ | C199: 19.6 | D199: 19.6 | E199: 18 | F199: 18.3 | G199: 18.2 | H199: 19.25 | I199: 3120 | J199: 56830.85 | K199: 2019-10-15 | L199: 43 | M199: INE458B01036
A200: BHAGYAPROP | B200: EQ | C200: 18.75 | D200: 18.75 | E200: 17.1 | F200: 17.4 | G200: 17.4 | H200: 19 | I200: 421 | J200: 7305.5 | K200: 2019-10-15 | L200: 11 | M200: INE363W01018
... 1491 more rows

Sheet Sheet1 (hidden)

Sheet Sheet3 (hidden)

Sheet Sheet4 (hidden)

Sheet Sheet5 (hidden)
